Workbook

Sheet EventConfig
A1: ID | B1: EventLinksId | C1: EventTriggerType | D1: EventTag | E1: EventType | F1: Score | G1: EventQuality | H1: PrizeType | I1: PrizeIDs | J1: PrizeNums | K1: RefreshProbability | L1: RefreshCount | M1: placeID | N1: XiantuID | O1: =SUMIF(C:C,2,K:K) -> 0 | P1: EventConditionId | Q1: EventValue | R1: EventCount | S1: EventName | T1: Description
A2: int | B2: int[] | C2: int | D2: int | E2: int | F2: int | G2: int | H2: int[] | I2: int[] | J2: int[] | K2: int | L2: int | M2: int | N2: int | P2: int | Q2: int[] | R2: int | S2: int | T2: int
U3: 语言表最大值 | V3: =MAX(S:T) -> 4243 | X3: 1 | Y3: 2 | Z3: 3 | AA3: 4 | AB3: 5 | AC3: 6 | AD3: 7 | AE3: 8 | AF3: 9 | AG3: 10 | AH3: 11 | AI3: 12 | AJ3: 13 | AK3: 14 | AL3: 15 | AM3: 16 | AN3: 17 | AO3: 18 | AP3: 19 | AQ3: 20
A4: ID | B4: 事件包含的ID | C4: 事件类型： 1.通用事件 2.挂机事件 4.主线任务 5.仙山探险 6.支线事件 88.特定任务触发的事件 99.无标记 | D4: tag 1主线2支线 3通用 4地图通用 5道友6任务 7资源 | E4: 1.正常触发 2.直接结算 | F4: 增加进度值 | G4: 事件品质 | H4: 产出tag 在辅助表查询 | I4: 事件结局奖励 | J4: 事件结局奖励数量 | K4: 刷新的概率 （100=100%） | L4: 最大刷新数量 | M4: 属于哪张地图 | N4: 仙途日志ID | O4: 触发条件 | P4: 触发条件类型 只能配处于什么状态和数值，不能配变化的数值 | Q4: 触发效果值 | R4: 触发判定数量or次数 | S4: 任务标题 | T4: 任务详情界面的总描述 | U4: 标题 | V4: 整体描述 | W4: 总步数 | X4: 步骤1 | Y4: 步骤2 | Z4: 步骤3 | AA4: 步骤4 | AB4: 步骤5 | AC4: 步骤6 | AD4: 步骤7 | AE4: 步骤8 | AF4: 步骤9 | AG4: 步骤10 | AH4: 步骤11 | AI4: 步骤12 | AJ4: 步骤13 | AK4: 步骤14 | AL4: 步骤15 | AM4: 步骤16 | AN4: 步骤17 | AO4: 步骤18 | AP4: 步骤19 | AQ4: 步骤20 | AR4: 道具1 | AS4: 数量1 | AT4: 道具2 | AU4: 数量2
A5: 1 | B5: =IF(A5="","",_xlfn.TEXTJOIN(";",1,X5:AQ5,102)) -> 1001;1002;1003;1004;1005;100;102 | C5: 1 | D5: 7 | E5: 1 | F5: 0 | G5: 1 | H5: 5 | I5: =_xlfn.TEXTJOIN(";",1,AR5,AT5) -> 1003;999001 | J5: =_xlfn.TEXTJOIN(";",1,AS5,AU5) -> -1000;1 | K5: 100 | O5: =IF(P5="","",VLOOKUP(P5,条件类型查询!A:B,2,FALSE)) ->  | S5: 4001 | T5: 4076 | U5: 受伤的狼 | V5: 你发现一只奄奄一息的狼，决定上前一探究竟。 | W5: =COUNTIF(EventLinkConfig!O:O,EventConfig!A5) -> 5 | X5: 1001 | Y5: 1002 | Z5: 1003 | AA5: 1004 | AB5: 1005 | AQ5: 100 | AR5: 1003 | AS5: -1000 | AT5: 999001 | AU5: 1
A6: 2 | B6: =IF(A6="","",_xlfn.TEXTJOIN(";",1,X6:AQ6,102)) -> 1010;1011;1012;1013;1014;1015;1016;100;102 | C6: 1 | D6: 7 | E6: 1 | F6: 0 | G6: 1 | H6: 6 | I6: =_xlfn.TEXTJOIN(";",1,AR6,AT6) -> 1003;999002 | J6: =_xlfn.TEXTJOIN(";",1,AS6,AU6) -> -1000;1 | K6: 100 | O6: =IF(P6="","",VLOOKUP(P6,条件类型查询!A:B,2,FALSE)) ->  | S6: 4002 | T6: 4077 | U6: 鹬蚌相争 | V6: 附近的小树林闹的不可开交，你决定去看看怎么回事。 | W6: =COUNTIF(EventLinkConfig!O:O,EventConfig!A6) -> 6 | X6: 1010 | Y6: 1011 | Z6: 1012 | AA6: 1013 | AB6: 1014 | AC6: 1015 | AD6: 1016 | AQ6: 100 | AR6: 1003 | AS6: -1000 | AT6: 999002 | AU6: 1
A7: 4 | B7: 1030;100;102 | C7: 1 | D7: 7 | E7: 2 | F7: 0 | G7: 1 | H7: 1 | I7: 1003;1001 | J7: -1000;-5000 | K7: 100 | O7: =IF(P7="","",VLOOKUP(P7,条件类型查询!A:B,2,FALSE)) ->  | S7: 4003 | T7: 4078 | U7: 溅血背包 | V7: 不远处有一个小红点，走近一看你发现是一个带血的背包。 | W7: =COUNTIF(EventLinkConfig!O:O,EventConfig!A7) -> 1 | X7: 1030 | AQ7: 100 | AR7: 1003 | AS7: -1000 | AT7: 1001 | AU7: -5000
A8: 5 | B8: 1040;100;102 | C8: 1 | D8: 7 | E8: 2 | F8: 0 | G8: 1 | H8: 2 | I8: 1003;1005 | J8: -1000;-5000 | K8: 100 | O8: =IF(P8="","",VLOOKUP(P8,条件类型查询!A:B,2,FALSE)) ->  | S8: 4004 | T8: 4079 | U8: 废弃矿山 | V8: 底下一座矿山甚是磅礴雄伟，走，去看一看。 | W8: =COUNTIF(EventLinkConfig!O:O,EventConfig!A8) -> 1 | X8: 1040 | AQ8: 100 | AR8: 1003 | AS8: -1000 | AT8: 1005 | AU8: -5000
A9: 6 | B9: 1050;100;102 | C9: 1 | D9: 7 | E9: 2 | F9: 0 | G9: 1 | H9: 3 | I9: 1003;1006 | J9: -1000;-5000 | K9: 100 | O9: =IF(P9="","",VLOOKUP(P9,条件类型查询!A:B,2,FALSE)) ->  | S9: 4005 | T9: 4080 | U9: 吵架声 | V9: 你被一男一女的吵架声吸引。 | W9: =COUNTIF(EventLinkConfig!O:O,EventConfig!A9) -> 1 | X9: 1050 | AQ9: 100 | AR9: 1003 | AS9: -1000 | AT9: 1006 | AU9: -5000
A10: 7 | B10: 1060;100;102 | C10: 1 | D10: 7 | E10: 2 | F10: 0 | G10: 1 | H10: 4 | I10: 1003;999001 | J10: -1000;1 | K10: 100 | O10: =IF(P10="","",VLOOKUP(P10,条件类型查询!A:B,2,FALSE)) ->  | S10: 4006 | T10: 4081 | U10: 一座道观 | V10: 远处一座道观仙气缭绕，似有仙人在此。 | W10: =COUNTIF(EventLinkConfig!O:O,EventConfig!A10) -> 1 | X10: 1060 | AQ10: 100 | AR10: 1003 | AS10: -1000 | AT10: 999001 | AU10: 1
A11: 1011 | B11: =IF(A11="","",_xlfn.TEXTJOIN(";",1,X11:AQ11,102)) -> 101101;100;102 | C11: 1 | D11: 7 | E11: 1 | F11: 0 | G11: 1 | H11: 7 | I11: 1003;999002 | J11: -1000;1 | K11: 100 | S11: 4007 | T11: 4082 | U11: 药田 | V11: 神识探索至一处山洞之中，似乎别有洞天 | W11: =COUNTIF(EventLinkConfig!O:O,EventConfig!A11) -> 1 | X11: =IF($W11>=X$3,$A11*100+X$3,"") -> 101101 | AQ11: 100 | AR11: 1003 | AS11: -1000 | AT11: 999002 | AU11: 1
A12: 1012 | B12: 101201;100;102 | C12: 1 | D12: 7 | E12: 1 | F12: 0 | G12: 3 | H12: 7 | I12: 1003;1001 | J12: -1000;-5000 | K12: 100 | S12: 4008 | T12: 4083 | U12: 矿井 | V12: 神识探索至一处矿井之中，此处灵气氤氲 | W12: =COUNTIF(EventLinkConfig!O:O,EventConfig!A12) -> 1 | X12: 101201 | AQ12: 100 | AR12: 1003 | AS12: -1000 | AT12: 1001 | AU12: -5000
A13: 1013 | B13: 101301;100;102 | C13: 1 | D13: 7 | E13: 1 | F13: 0 | G13: 3 | H13: 7 | I13: 1003;1005 | J13: -1000;-5000 | K13: 100 | S13: 4009 | T13: 4084 | U13: 寺庙 | V13: 神识经过一处荒废寺庙之外，寺庙之中似乎有不同寻常之物 | W13: =COUNTIF(EventLinkConfig!O:O,EventConfig!A13) -> 1 | X13: 101301 | AQ13: 100 | AR13: 1003 | AS13: -1000 | AT13: 1005 | AU13: -5000
A14: 1014 | B14: 101401;100;102 | C14: 1 | D14: 7 | E14: 1 | F14: 0 | G14: 3 | H14: 7 | I14: 1003;1006 | J14: -1000;-5000 | K14: 100 | S14: 4010 | T14: 4085 | U14: 洞府遗址 | V14: 神识至一处灵气充盈之地，似乎是处洞府 | W14: =COUNTIF(EventLinkConfig!O:O,EventConfig!A14) -> 1 | X14: 101401 | AQ14: 100 | AR14: 1003 | AS14: -1000 | AT14: 1006 | AU14: -5000
A15: 1015 | B15: 101501;101502;100;102 | C15: 1 | D15: 7 | E15: 1 | F15: 0 | G15: 1 | H15: 8 | I15: 1003;999001 | J15: -1000;1 | K15: 100 | S15: 4011 | T15: 4086 | U15: 拦路山贼 | V15: 一个不知好歹的山贼拦住了你的去路 | W15: =COUNTIF(EventLinkConfig!O:O,EventConfig!A15) -> 2 | X15: 101501 | Y15: 101502 | AQ15: 100 | AR15: 1003 | AS15: -1000 | AT15: 999001 | AU15: 1
A16: 1016 | B16: 101601;101602;100;102 | C16: 1 | D16: 7 | E16: 1 | F16: 0 | G16: 1 | H16: 8 | I16: 1003;999002 | J16: -1000;1 | K16: 100 | S16: 4012 | T16: 4087 | U16: 丢袈裟的和尚 | V16: 一位和尚叫住了你，似乎有什么急事 | W16: =COUNTIF(EventLinkConfig!O:O,EventConfig!A16) -> 2 | X16: 101601 | Y16: 101602 | AQ16: 100 | AR16: 1003 | AS16: -1000 | AT16: 999002 | AU16: 1
A17: 1017 | B17: 101701;100;102 | C17: 1 | D17: 7 | E17: 1 | F17: 0 | G17: 1 | H17: 8 | I17: 1003;1001 | J17: -1000;-5000 | K17: 100 | P17: 10 | Q17: 30009 | S17: 4013 | T17: 4088 | U17: 丢袈裟的和尚 | V17: 将袈裟还给和尚 | W17: =COUNTIF(EventLinkConfig!O:O,EventConfig!A17) -> 1 | X17: 101701 | AQ17: 100 | AR17: 1003 | AS17: -1000 | AT17: 1001 | AU17: -5000
A18: 1018 | B18: 101801;101802;101803;101804;100;102 | C18: 1 | D18: 7 | E18: 1 | F18: 0 | G18: 1 | H18: 8 | I18: 1003;1005 | J18: -1000;-5000 | K18: 100 | S18: 4014 | T18: 4089 | U18: 云游修士 | V18: 一名云游修士前来问道 | W18: =COUNTIF(EventLinkConfig!O:O,EventConfig!A18) -> 4 | X18: 101801 | Y18: 101802 | Z18: 101803 | AA18: 101804 | AQ18: 100 | AR18: 1003 | AS18: -1000 | AT18: 1005 | AU18: -5000
A19: 1019 | B19: 101901;101902;101903;100;102 | C19: 1 | D19: 7 | E19: 1 | F19: 0 | G19: 1 | H19: 9 | I19: 1003;1006 | J19: -1000;-5000 | K19: 100 | S19: 4015 | T19: 4090 | U19: 镇压妖王 | V19: 逍遥宗长老前来求教 | W19: =COUNTIF(EventLinkConfig!O:O,EventConfig!A19) -> 3 | X19: 101901 | Y19: 101902 | Z19: 101903 | AQ19: 100 | AR19: 1003 | AS19: -1000 | AT19: 1006 | AU19: -5000
A20: 1020 | B20: 102001;102002;100;102 | C20: 1 | D20: 7 | E20: 1 | F20: 0 | G20: 1 | H20: 9 | I20: 1003;999001 | J20: -1000;1 | K20: 100 | S20: 4016 | T20: 4091 | U20: 清剿妖兽 | V20: 妖兽入侵了村子，消灭掉它们 | W20: =COUNTIF(EventLinkConfig!O:O,EventConfig!A20) -> 2 | X20: 102001 | Y20: 102002 | AQ20: 100 | AR20: 1003 | AS20: -1000 | AT20: 999001 | AU20: 1
A21: 1021 | B21: 102101;102102;102103;100;102 | C21: 1 | D21: 7 | E21: 1 | F21: 0 | G21: 1 | H21: 9 | I21: 1003;999002 | J21: -1000;1 | K21: 100 | S21: 4017 | T21: 4092 | U21: 失窃的琉璃盏 | V21: 琉璃盏被妖兽盗窃，前去寻回 | W21: =COUNTIF(EventLinkConfig!O:O,EventConfig!A21) -> 3 | X21: =IF($W21>=X$3,$A21*100+X$3,"") -> 102101 | Y21: 102102 | Z21: 102103 | AQ21: 100 | AR21: 1003 | AS21: -1000 | AT21: 999002 | AU21: 1
A22: 1022 | B22: 102201;102202;102203;102204;102205;102206;102207;100;102 | C22: 1 | D22: 7 | E22: 1 | F22: 0 | G22: 1 | H22: 10 | I22: 1003;1001 | J22: -1000;-5000 | K22: 100 | S22: 4018 | T22: 4093 | U22: 论道何长 | V22: 明镜道长前来论道 | W22: =COUNTIF(EventLinkConfig!O:O,EventConfig!A22) -> 7 | X22: 102201 | Y22: 102202 | Z22: 102203 | AA22: 102204 | AB22: 102205 | AC22: 102206 | AD22: 102207 | AQ22: 100 | AR22: 1003 | AS22: -1000 | AT22: 1001 | AU22: -5000
A23: 1023 | B23: 102301;102302;102303;100;102 | C23: 1 | D23: 7 | E23: 1 | F23: 0 | G23: 1 | H23: 10 | I23: 1003;1005 | J23: -1000;-5000 | K23: 100 | S23: 4019 | T23: 4094 | U23: 炼丹药童 | V23: 炼丹药童前来询问丹药 | W23: =COUNTIF(EventLinkConfig!O:O,EventConfig!A23) -> 3 | X23: 102301 | Y23: 102302 | Z23: 102303 | AQ23: 100 | AR23: 1003 | AS23: -1000 | AT23: 1005 | AU23: -5000
A24: 1024 | B24: 102401;102402;102403;100;102 | C24: 1 | D24: 7 | E24: 1 | F24: 0 | G24: 1 | H24: 11 | I24: 1003;1006 | J24: -1000;-5000 | K24: 100 | S24: 4020 | T24: 4095 | U24: 风无咎前来切磋 | V24: 风无咎前来与你武艺论道 | W24: =COUNTIF(EventLinkConfig!O:O,EventConfig!A24) -> 3 | X24: 102401 | Y24: 102402 | Z24: 102403 | AQ24: 100 | AR24: 1003 | AS24: -1000 | AT24: 1006 | AU24: -5000
A25: 1025 | B25: 102501;102502;102503;100;102 | C25: 1 | D25: 7 | E25: 1 | F25: 0 | G25: 1 | H25: 1 | I25: 1003;1002 | J25: -1000;100 | K25: 100 | S25: 4021 | T25: 4096 | U25: 魔族来犯 | V25: 与魔族交涉 | W25: =COUNTIF(EventLinkConfig!O:O,EventConfig!A25) -> 3 | X25: 102501 | Y25: 102502 | Z25: 102503 | AQ25: 100 | AR25: 1003 | AS25: -1000 | AT25: 1002 | AU25: 100
A26: 1026 | B26: 102601;102602;100;102 | C26: 1 | D26: 7 | E26: 1 | F26: 0 | G26: 1 | H26: 2 | I26: 1003;1004 | J26: -1000;10 | K26: 100 | S26: 4022 | T26: 4097 | U26: 妖族入侵 | V26: 击败妖族 | W26: =COUNTIF(EventLinkConfig!O:O,EventConfig!A26) -> 2 | X26: 102601 | Y26: 102602 | AQ26: 100 | AR26: 1003 | AS26: -1000 | AT26: 1004 | AU26: 10
A27: 1027 | B27: 102701;102702;100;102 | C27: 1 | D27: 7 | E27: 1 | F27: 0 | G27: 1 | H27: 3 | I27: 1003;1501 | J27: -1000;1 | K27: 100 | S27: 4023 | T27: 4098 | U27: 北海危机 | V27: 击败拦路妖兽 | W27: =COUNTIF(EventLinkConfig!O:O,EventConfig!A27) -> 2 | X27: 102701 | Y27: 102702 | AQ27: 100 | AR27: 1003 | AS27: -1000 | AT27: 1501 | AU27: 1
A28: 1028 | B28: 102801;102802;102803;102804;102805;100;102 | C28: 1 | D28: 7 | E28: 1 | F28: 0 | G28: 1 | H28: 4 | I28: 1003;1601 | J28: -1000;1 | K28: 100 | S28: 4024 | T28: 4099 | U28: 保护北海 | V28: 击败入侵妖兽 | W28: =COUNTIF(EventLinkConfig!O:O,EventConfig!A28) -> 5 | X28: 102801 | Y28: 102802 | Z28: 102803 | AA28: 102804 | AB28: 102805 | AQ28: 100 | AR28: 1003 | AS28: -1000 | AT28: 1601 | AU28: 1
A29: 1029 | B29: 102901;102902;102903;102904;102905;102906;102907;102908;100;102 | C29: 1 | D29: 7 | E29: 1 | F29: 0 | G29: 1 | H29: 7 | I29: 1003;21012 | J29: -1000;1 | K29: 100 | S29: 4025 | T29: 4100 | U29: 境明论道 | V29: 境明道长邀请你与其论道 | W29: =COUNTIF(EventLinkConfig!O:O,EventConfig!A29) -> 8 | X29: 102901 | Y29: 102902 | Z29: 102903 | AA29: 102904 | AB29: 102905 | AC29: 102906 | AD29: 102907 | AE29: 102908 | AQ29: 100 | AR29: 1003 | AS29: -1000 | AT29: 21012 | AU29: 1
A30: 1030 | B30: 103001;103002;103003;103004;103005;103006;103007;100;102 | C30: 1 | D30: 7 | E30: 1 | F30: 0 | G30: 1 | H30: 8 | I30: 1003;21013 | J30: -1000;1 | K30: 100 | S30: 4026 | T30: 4101 | U30: 听经习道 | V30: 前去寺庙之中听经 | W30: =COUNTIF(EventLinkConfig!O:O,EventConfig!A30) -> 7 | X30: 103001 | Y30: 103002 | Z30: 103003 | AA30: 103004 | AB30: 103005 | AC30: 103006 | AD30: 103007 | AQ30: 100 | AR30: 1003 | AS30: -1000 | AT30: 21013 | AU30: 1
A31: 1031 | B31: 103101;103102;103103;103104;103105;100;102 | C31: 1 | D31: 7 | E31: 1 | F31: 0 | G31: 1 | H31: 9 | I31: 1003;1002 | J31: -1000;50 | K31: 100 | S31: 4027 | T31: 4102 | U31: 境明论道二 | V31: 境明道长邀请你与其论道 | W31: =COUNTIF(EventLinkConfig!O:O,EventConfig!A31) -> 5 | X31: 103101 | Y31: 103102 | Z31: 103103 | AA31: 103104 | AB31: 103105 | AQ31: 100 | AR31: 1003 | AS31: -1000 | AT31: 1002 | AU31: 50
C33: 2 | D33: 3 | E33: 1 | F33: 0 | G33: 1 | I33: =_xlfn.TEXTJOIN(";",1,AR33,AT33) -> 1003 | J33: =_xlfn.TEXTJOIN(";",1,AS33,AU33) -> -5 | U33: 挂机1 | V33: 修为 | W33: =COUNTIF(EventLinkConfig!O:O,EventConfig!A33) -> 0 | X33: =IF($W33>=X$3,$A33*100+X$3,"") ->  | AQ33: 100 | AR33: 1003 | AS33: -5
C34: 2 | D34: 3 | E34: 1 | F34: 0 | G34: 1 | I34: =_xlfn.TEXTJOIN(";",1,AR34,AT34) -> 1005 | J34: =_xlfn.TEXTJOIN(";",1,AS34,AU34) -> -5 | U34: 挂机2 | V34: 灵气 | W34: =COUNTIF(EventLinkConfig!O:O,EventConfig!A34) -> 0 | AQ34: 100 | AR34: 1005 | AS34: -5
C35: 2 | D35: 3 | E35: 1 | F35: 0 | G35: 1 | I35: 1006 | J35: -5 | U35: 挂机3 | V35: 玄晶 | W35: =COUNTIF(EventLinkConfig!O:O,EventConfig!A35) -> 0 | AQ35: 100 | AR35: 1006 | AS35: -5
C36: 2 | D36: 3 | E36: 1 | F36: 0 | G36: 1 | I36: 1001 | J36: -5 | U36: 挂机4 | V36: 灵石 | W36: =COUNTIF(EventLinkConfig!O:O,EventConfig!A36) -> 0 | AQ36: 100 | AR36: 1001 | AS36: -5
C37: 2 | D37: 3 | E37: 1 | F37: 0 | G37: 1 | I37: 1001 | J37: -5 | U37: 挂机5 | V37: 神识丹 | W37: =COUNTIF(EventLinkConfig!O:O,EventConfig!A37) -> 0 | AQ37: 100 | AR37: 1001 | AS37: -5
B38: =IF(A38="","",_xlfn.TEXTJOIN(";",1,X38:AQ38,102)) ->  | C38: 2 | D38: 3 | E38: 1 | F38: 0 | G38: 1 | I38: 1001 | J38: -5 | U38: 挂机6 | V38: 妖丹 | W38: =COUNTIF(EventLinkConfig!O:O,EventConfig!A38) -> 0 | AQ38: 100 | AR38: 1001 | AS38: -5
O39: =IF(P39="","",VLOOKUP(P39,条件类型查询!A:B,2,FALSE)) -> 
A40: 10001 | B40: =IF(W40>0,_xlfn.TEXTJOIN(";",1,ROW(INDIRECT(CONCATENATE("",A40*100+1,":",A40*100+W40,""))),102),"") -> 1000101;1000102;1000103;1000104;102 | C40: 4 | D40: 1 | E40: 1 | F40: 10 | G40: 1 | I40: 1701;1401 | J40: 1;2 | M40: 1 | N40: 1 | S40: 4028 | T40: 4103 | U40: 鲲鹏何在 | V40: 神识未灭 | W40: =COUNTIF(EventLinkConfig!O:O,EventConfig!A40) -> 4 | X40: =IF($W40>=X$3,$A40*100+X$3,"") -> 1000101 | Y40: 1000102 | Z40: 1000103 | AA40: 1000104
A41: 10002 | B41: =IF(W41>0,_xlfn.TEXTJOIN(";",1,ROW(INDIRECT(CONCATENATE("",A41*100+1,":",A41*100+W41,""))),102),"") -> 1000201;1000202;1000203;102 | C41: 4 | D41: 1 | E41: 1 | F41: 10 | G41: 1 | I41: 1701;1401 | J41: 1;2 | M41: 1 | N41: 1 | S41: 4029 | T41: 4104 | U41: 北海迷径1 | V41: 御剑而行 | W41: =COUNTIF(EventLinkConfig!O:O,EventConfig!A41) -> 3 | X41: 1000201 | Y41: 1000202 | Z41: 1000203
A42: 10003 | B42: =IF(W42>0,_xlfn.TEXTJOIN(";",1,ROW(INDIRECT(CONCATENATE("",A42*100+1,":",A42*100+W42,""))),102),"") -> 1000301;1000302;1000303;1000304;1000305;1000306;1000307;1000308;1000309;102 | C42: 4 | D42: 1 | E42: 1 | F42: 10 | G42: 1 | I42: 1701;1401 | J42: 1;2 | M42: 1 | N42: 1 | S42: 4030 | T42: 4105 | U42: 北海迷径2 | V42: 雀笑大鹏 | W42: =COUNTIF(EventLinkConfig!O:O,EventConfig!A42) -> 9 | X42: 1000301 | Y42: 1000302 | Z42: 1000303 | AA42: 1000304 | AB42: 1000305 | AC42: 1000306 | AD42: 1000307 | AE42: 1000308 | AF42: 1000309
A43: 10004 | B43: =IF(W43>0,_xlfn.TEXTJOIN(";",1,ROW(INDIRECT(CONCATENATE("",A43*100+1,":",A43*100+W43,""))),102),"") -> 1000401;1000402;1000403;1000404;102 | C43: 4 | D43: 1 | E43: 1 | F43: 10 | G43: 1 | I43: 1701;1401 | J43: 1;2 | M43: 1 | N43: 1 | S43: 4031 | T43: 4106 | U43: 古径阵法 | V43: 击败结界兽 | W43: =COUNTIF(EventLinkConfig!O:O,EventConfig!A43) -> 4 | X43: 1000401 | Y43: 1000402 | Z43: 1000403 | AA43: 1000404
A44: 10005 | B44: =IF(W44>0,_xlfn.TEXTJOIN(";",1,ROW(INDIRECT(CONCATENATE("",A44*100+1,":",A44*100+W44,""))),102),"") -> 1000501;1000502;1000503;1000504;1000505;1000506;1000507;1000508;1000509;1000510;1000511;1000512;1000513;1000514;102 | C44: 4 | D44: 1 | E44: 1 | F44: 10 | G44: 1 | I44: 1701;1401 | J44: 1;2 | M44: 1 | N44: 1 | O44: 11 | S44: 4032 | T44: 4107 | U44: 浮空之岛1 | V44: 初见疯道人 | W44: =COUNTIF(EventLinkConfig!O:O,EventConfig!A44) -> 14 | X44: 1000501 | Y44: 1000502 | Z44: 1000503 | AA44: 1000504 | AB44: 1000505 | AC44: 1000506 | AD44: 1000507 | AE44: 1000508 | AF44: 1000509 | AG44: 1000510 | AH44: 1000511 | AI44: 1000512 | AJ44: 1000513 | AK44: 1000514
A45: 10006 | B45: =IF(W45>0,_xlfn.TEXTJOIN(";",1,ROW(INDIRECT(CONCATENATE("",A45*100+1,":",A45*100+W45,""))),102),"") -> 1000601;1000602;1000603;1000604;1000605;1000606;102 | C45: 4 | D45: 1 | E45: 1 | F45: 10 | G45: 1 | I45: 1701;1401 | J45: 2;2 | M45: 1 | N45: 1 | S45: 4033 | T45: 4108 | U45: 浮空之岛2 | V45: 筑基中期 | W45: =COUNTIF(EventLinkConfig!O:O,EventConfig!A45) -> 6 | X45: 1000601 | Y45: 1000602 | Z45: 1000603 | AA45: 1000604 | AB45: 1000605 | AC45: 1000606
A46: 10007 | B46: =IF(W46>0,_xlfn.TEXTJOIN(";",1,ROW(INDIRECT(CONCATENATE("",A46*100+1,":",A46*100+W46,""))),102),"") -> 1000701;1000702;1000703;1000704;1000705;102 | C46: 4 | D46: 1 | E46: 1 | F46: 10 | G46: 1 | I46: 1701;1401 | J46: 2;2 | M46: 1 | N46: 1 | S46: 4034 | T46: 4109 | U46: 风中洞府1 | V46: 击败痴道人 | W46: =COUNTIF(EventLinkConfig!O:O,EventConfig!A46) -> 5 | X46: 1000701 | Y46: 1000702 | Z46: 1000703 | AA46: 1000704 | AB46: 1000705
A47: 10008 | B47: =IF(W47>0,_xlfn.TEXTJOIN(";",1,ROW(INDIRECT(CONCATENATE("",A47*100+1,":",A47*100+W47,""))),102),"") -> 1000801;1000802;1000803;1000804;1000805;1000806;1000807;1000808;1000809;1000810;1000811;1000812;1000813;1000814;102 | C47: 4 | D47: 1 | E47: 1 | F47: 10 | G47: 1 | I47: 1701;1401 | J47: 2;2 | M47: 1 | N47: 1 | S47: 4035 | T47: 4110 | U47: 风中洞府2 | V47: 疯痴相聚 | W47: =COUNTIF(EventLinkConfig!O:O,EventConfig!A47) -> 14 | X47: 1000801 | Y47: 1000802 | Z47: 1000803 | AA47: 1000804 | AB47: 1000805 | AC47: 1000806 | AD47: 1000807 | AE47: 1000808 | AF47: 1000809 | AG47: 1000810 | AH47: 1000811 | AI47: 1000812 | AJ47: 1000813 | AK47: 1000814
A48: 10009 | B48: =IF(W48>0,_xlfn.TEXTJOIN(";",1,ROW(INDIRECT(CONCATENATE("",A48*100+1,":",A48*100+W48,""))),102),"") -> 1000901;1000902;1000903;102 | C48: 4 | D48: 1 | E48: 1 | F48: 10 | G48: 1 | I48: 1701;1401 | J48: 2;2 | M48: 1 | N48: 1 | O48: 21 | S48: 4036 | T48: 4111 | U48: 风灵之力 | V48: 筑基后期 | W48: =COUNTIF(EventLinkConfig!O:O,EventConfig!A48) -> 3 | X48: 1000901 | Y48: 1000902 | Z48: 1000903
A49: 10010 | B49: =IF(W49>0,_xlfn.TEXTJOIN(";",1,ROW(INDIRECT(CONCATENATE("",A49*100+1,":",A49*100+W49,""))),102),"") -> 1001001;1001002;1001003;1001004;1001005;1001006;102 | C49: 4 | D49: 1 | E49: 1 | F49: 10 | G49: 1 | I49: 1701;1401 | J49: 2;2 | M49: 1 | N49: 1 | S49: 4037 | T49: 4112 | U49: 北海深处1 | V49: 妖兽横行 | W49: =COUNTIF(EventLinkConfig!O:O,EventConfig!A49) -> 6 | X49: 1001001 | Y49: 1001002 | Z49: 1001003 | AA49: 1001004 | AB49: 1001005 | AC49: 1001006
A50: 10011 | B50: =IF(W50>0,_xlfn.TEXTJOIN(";",1,ROW(INDIRECT(CONCATENATE("",A50*100+1,":",A50*100+W50,""))),102),"") -> 1001101;1001102;1001103;1001104;1001105;1001106;1001107;1001108;1001109;1001110;1001111;1001112;102 | C50: 4 | D50: 1 | E50: 1 | F50: 10 | G50: 1 | I50: 1702;1401 | J50: 1;2 | M50: 1 | N50: 1 | O50: 31 | S50: 4038 | T50: 4113 | U50: 北海深处2 | V50: 遇见鲲鹏 | W50: =COUNTIF(EventLinkConfig!O:O,EventConfig!A50) -> 12 | X50: =IF($W50>=X$3,$A50*100+X$3,"") -> 1001101 | Y50: 1001102 | Z50: 1001103 | AA50: 1001104 | AB50: 1001105 | AC50: 1001106 | AD50: 1001107 | AE50: 1001108 | AF50: 1001109 | AG50: 1001110 | AH50: 1001111 | AI50: 1001112
A51: 10012 | B51: =IF(W51>0,_xlfn.TEXTJOIN(";",1,ROW(INDIRECT(CONCATENATE("",A51*100+1,":",A51*100+W51,""))),102),"") -> 1001201;1001202;1001203;102 | C51: 4 | D51: 1 | E51: 1 | F51: 10 | G51: 1 | I51: 1702;1401 | J51: 1;2 | M51: 2 | N51: 1 | S51: 4039 | T51: 4114 | U51: 尧都寻踪 | W51: =COUNTIF(EventLinkConfig!O:O,EventConfig!A51) -> 3 | X51: 1001201 | Y51: 1001202 | Z51: 1001203
A52: 10013 | B52: =IF(W52>0,_xlfn.TEXTJOIN(";",1,ROW(INDIRECT(CONCATENATE("",A52*100+1,":",A52*100+W52,""))),102),"") -> 1001301;1001302;1001303;1001304;1001305;1001306;1001307;1001308;1001309;1001310;1001311;1001312;102 | C52: 4 | D52: 1 | E52: 1 | F52: 10 | G52: 1 | I52: 1702;1401 | J52: 1;2 | M52: 2 | N52: 1 | S52: 4040 | T52: 4115 | U52: 尧之都 | V52: 尧让天下 | W52: =COUNTIF(EventLinkConfig!O:O,EventConfig!A52) -> 12 | X52: 1001301 | Y52: 1001302 | Z52: 1001303 | AA52: 1001304 | AB52: 1001305 | AC52: 1001306 | AD52: 1001307 | AE52: 1001308 | AF52: 1001309 | AG52: 1001310 | AH52: 1001311 | AI52: 1001312
A53: 10014 | B53: =IF(W53>0,_xlfn.TEXTJOIN(";",1,ROW(INDIRECT(CONCATENATE("",A53*100+1,":",A53*100+W53,""))),102),"") -> 1001401;1001402;1001403;1001404;1001405;1001406;1001407;1001408;1001409;1001410;1001411;1001412;1001413;1001414;1001415;1001416;102 | C53: 4 | D53: 1 | E53: 1 | F53: 10 | G53: 1 | I53: 1702;1402 | J53: 1;2 | M53: 2 | N53: 1 | O53: 41 | S53: 4041 | T53: 4116 | U53: 山林清音 | V53: 访贤许由 | W53: =COUNTIF(EventLinkConfig!O:O,EventConfig!A53) -> 16 | X53: 1001401 | Y53: 1001402 | Z53: 1001403 | AA53: 1001404 | AB53: 1001405 | AC53: 1001406 | AD53: 1001407 | AE53: 1001408 | AF53: 1001409 | AG53: 1001410 | AH53: 1001411 | AI53: 1001412 | AJ53: 1001413 | AK53: 1001414 | AL53: 1001415 | AM53: 1001416
A54: 10015 | B54: =IF(W54>0,_xlfn.TEXTJOIN(";",1,ROW(INDIRECT(CONCATENATE("",A54*100+1,":",A54*100+W54,""))),102),"") -> 1001501;1001502;1001503;1001504;1001505;1001506;1001507;1001508;102 | C54: 4 | D54: 1 | E54: 1 | F54: 10 | G54: 1 | I54: 1702;1402 | J54: 1;2 | M54: 2 | N54: 1 | S54: 4042 | T54: 4117 | U54: 山中劳作 | V54: 割草喝茶 | W54: =COUNTIF(EventLinkConfig!O:O,EventConfig!A54) -> 8 | X54: 1001501 | Y54: 1001502 | Z54: 1001503 | AA54: 1001504 | AB54: 1001505 | AC54: 1001506 | AD54: 1001507 | AE54: 1001508
A55: 10016 | B55: =IF(W55>0,_xlfn.TEXTJOIN(";",1,ROW(INDIRECT(CONCATENATE("",A55*100+1,":",A55*100+W55,""))),102),"") -> 1001601;1001602;1001603;1001604;1001605;1001606;1001607;1001608;102 | C55: 4 | D55: 1 | E55: 1 | F55: 10 | G55: 1 | I55: 1702;1402 | J55: 1;2 | M55: 2 | N55: 1 | O55: 51 | S55: 4043 | T55: 4118 | U55: 风起夜战 | V55: 再来一杯 | W55: =COUNTIF(EventLinkConfig!O:O,EventConfig!A55) -> 8 | X55: 1001601 | Y55: 1001602 | Z55: 1001603 | AA55: 1001604 | AB55: 1001605 | AC55: 1001606 | AD55: 1001607 | AE55: 1001608
A56: 10017 | B56: =IF(W56>0,_xlfn.TEXTJOIN(";",1,ROW(INDIRECT(CONCATENATE("",A56*100+1,":",A56*100+W56,""))),102),"") -> 1001701;1001702;1001703;1001704;1001705;1001706;1001707;1001708;1001709;1001710;1001711;1001712;1001713;102 | C56: 4 | D56: 1 | E56: 1 | F56: 10 | G56: 1 | I56: 1702;1402 | J56: 1;2 | M56: 2 | N56: 1 | S56: 4044 | T56: 4119 | U56: 吃茶三问 | V56: 战胜妖王 | W56: =COUNTIF(EventLinkConfig!O:O,EventConfig!A56) -> 13 | X56: 1001701 | Y56: 1001702 | Z56: 1001703 | AA56: 1001704 | AB56: 1001705 | AC56: 1001706 | AD56: 1001707 | AE56: 1001708 | AF56: 1001709 | AG56: 1001710 | AH56: 1001711 | AI56: 1001712 | AJ56: 1001713
A57: 10018 | B57: =IF(W57>0,_xlfn.TEXTJOIN(";",1,ROW(INDIRECT(CONCATENATE("",A57*100+1,":",A57*100+W57,""))),102),"") -> 1001801;1001802;1001803;1001804;1001805;1001806;1001807;1001808;1001809;1001810;102 | C57: 4 | D57: 1 | E57: 1 | F57: 10 | G57: 1 | I57: 1702;1402 | J57: 1;2 | M57: 2 | N57: 1 | O57: 61 | S57: 4045 | T57: 4120 | U57: 尧让天下 | V57: 复命尧帝 | W57: =COUNTIF(EventLinkConfig!O:O,EventConfig!A57) -> 10 | X57: 1001801 | Y57: 1001802 | Z57: 1001803 | AA57: 1001804 | AB57: 1001805 | AC57: 1001806 | AD57: 1001807 | AE57: 1001808 | AF57: 1001809 | AG57: 1001810
A58: 10019 | B58: =IF(W58>0,_xlfn.TEXTJOIN(";",1,ROW(INDIRECT(CONCATENATE("",A58*100+1,":",A58*100+W58,""))),102),"") -> 1001901;1001902;1001903;1001904;1001905;1001906;1001907;1001908;1001909;1001910;1001911;1001912;1001913;1001914;1001915;1001916;1001917;1001918;1001919;1001920;102 | C58: 4 | D58: 1 | E58: 1 | F58: 10 | G58: 1 | I58: 1702;1403 | J58: 2;2 | M58: 2 | N58: 1 | S58: 4046 | T58: 4121 | U58: 无用之树 | V58: 树下闲话 | W58: =COUNTIF(EventLinkConfig!O:O,EventConfig!A58) -> 20 | X58: 1001901 | Y58: 1001902 | Z58: 1001903 | AA58: 1001904 | AB58: 1001905 | AC58: 1001906 | AD58: 1001907 | AE58: 1001908 | AF58: 1001909 | AG58: 1001910 | AH58: 1001911 | AI58: 1001912 | AJ58: 1001913 | AK58: 1001914 | AL58: 1001915 | AM58: 1001916 | AN58: =IF($W58>=AN$3,$A58*100+AN$3,"") -> 1001917 | AO58: =IF($W58>=AO$3,$A58*100+AO$3,"") -> 1001918 | AP58: =IF($W58>=AP$3,$A58*100+AP$3,"") -> 1001919 | AQ58: =IF($W58>=AQ$3,$A58*100+AQ$3,"") -> 1001920
A59: 10020 | B59: =IF(W59>0,_xlfn.TEXTJOIN(";",1,ROW(INDIRECT(CONCATENATE("",A59*100+1,":",A59*100+W59,""))),102),"") -> 1002001;1002002;102 | C59: 4 | D59: 1 | E59: 1 | F59: 10 | G59: 1 | I59: 1702;1403 | J59: 2;2 | M59: 2 | N59: 1 | S59: 4047 | T59: 4122 | U59: 樗木之灵 | V59: 切磋切磋 | W59: =COUNTIF(EventLinkConfig!O:O,EventConfig!A59) -> 2 | X59: 1002001 | Y59: 1002002
A60: 10021 | B60: =IF(W60>0,_xlfn.TEXTJOIN(";",1,ROW(INDIRECT(CONCATENATE("",A60*100+1,":",A60*100+W60,""))),102),"") -> 1002101;1002102;1002103;1002104;102 | C60: 4 | D60: 1 | E60: 1 | F60: 10 | G60: 1 | I60: 1702;1403 | J60: 2;2 | M60: 2 | N60: 1 | O60: 71 | S60: 4048 | T60: 4123 | U60: 游尧都 | V60: 金丹前期 | W60: =COUNTIF(EventLinkConfig!O:O,EventConfig!A60) -> 4 | X60: 1002101 | Y60: 1002102 | Z60: 1002103 | AA60: 1002104
A61: 10022 | B61: =IF(W61>0,_xlfn.TEXTJOIN(";",1,ROW(INDIRECT(CONCATENATE("",A61*100+1,":",A61*100+W61,""))),102),"") -> 1002201;1002202;1002203;1002204;1002205;1002206;1002207;1002208;1002209;1002210;1002211;1002212;102 | C61: 4 | D61: 1 | E61: 1 | F61: 10 | G61: 1 | I61: 1702;1403 | J61: 2;2 | M61: 2 | N61: 1 | O61: 81 | S61: 4049 | T61: 4124 | U61: 再见尧帝 | V61: 仙山传说 | W61: =COUNTIF(EventLinkConfig!O:O,EventConfig!A61) -> 12 | X61: =IF($W61>=X$3,$A61*100+X$3,"") -> 1002201 | Y61: 1002202 | Z61: 1002203 | AA61: 1002204 | AB61: 1002205 | AC61: 1002206 | AD61: 1002207 | AE61: 1002208 | AF61: 1002209 | AG61: 1002210 | AH61: 1002211 | AI61: 1002212
A62: 10023 | B62: =IF(W62>0,_xlfn.TEXTJOIN(";",1,ROW(INDIRECT(CONCATENATE("",A62*100+1,":",A62*100+W62,""))),102),"") -> 1002301;1002302;1002303;102 | C62: 4 | D62: 1 | E62: 1 | F62: 10 | G62: 1 | I62: 1702;1403 | J62: 2;2 | M62: 3 | N62: 1 | S62: 4050 | T62: 4125 | U62: 云海漫行 | V62: 入山幻阵 | W62: =COUNTIF(EventLinkConfig!O:O,EventConfig!A62) -> 3 | X62: 1002301 | Y62: 1002302 | Z62: 1002303
A63: 10024 | B63: =IF(W63>0,_xlfn.TEXTJOIN(";",1,ROW(INDIRECT(CONCATENATE("",A63*100+1,":",A63*100+W63,""))),102),"") -> 1002401;1002402;1002403;1002404;1002405;1002406;1002407;1002408;1002409;1002410;1002411;1002412;1002413;102 | C63: 4 | D63: 1 | E63: 1 | F63: 10 | G63: 1 | I63: 1702;1403 | J63: 2;2 | M63: 3 | N63: 1 | O63: 91 | S63: 4051 | T63: 4126 | U63: 初见惠子 | V63: 葫芦种子 | W63: =COUNTIF(EventLinkConfig!O:O,EventConfig!A63) -> 13 | X63: 1002401 | Y63: 1002402 | Z63: 1002403 | AA63: 1002404 | AB63: 1002405 | AC63: 1002406 | AD63: 1002407 | AE63: 1002408 | AF63: 1002409 | AG63: 1002410 | AH63: 1002411 | AI63: 1002412 | AJ63: 1002413
A64: 10025 | B64: =IF(W64>0,_xlfn.TEXTJOIN(";",1,ROW(INDIRECT(CONCATENATE("",A64*100+1,":",A64*100+W64,""))),102),"") -> 1002501;1002502;1002503;1002504;1002505;1002506;1002507;1002508;102 | C64: 4 | D64: 1 | E64: 1 | F64: 10 | G64: 1 | I64: 1703;1404 | J64: 1;2 | M64: 3 | N64: 1 | O64: 101 | S64: 4052 | T64: 4127 | U64: 葫芦肥料 | V64: 天肥地肥 | W64: =COUNTIF(EventLinkConfig!O:O,EventConfig!A64) -> 8 | X64: 1002501 | Y64: 1002502 | Z64: 1002503 | AA64: 1002504 | AB64: 1002505 | AC64: 1002506 | AD64: 1002507 | AE64: 1002508
A65: 10026 | B65: =IF(W65>0,_xlfn.TEXTJOIN(";",1,ROW(INDIRECT(CONCATENATE("",A65*100+1,":",A65*100+W65,""))),102),"") -> 1002601;1002602;1002603;1002604;1002605;1002606;1002607;1002608;1002609;102 | C65: 4 | D65: 1 | E65: 1 | F65: 10 | G65: 1 | I65: 1703;1404 | J65: 1;2 | M65: 3 | N65: 1 | O65: 111 | S65: 4053 | T65: 4128 | U65: 藐姑射山 | V65: 登山 | W65: =COUNTIF(EventLinkConfig!O:O,EventConfig!A65) -> 9 | X65: 1002601 | Y65: 1002602 | Z65: 1002603 | AA65: 1002604 | AB65: 1002605 | AC65: 1002606 | AD65: 1002607 | AE65: 1002608 | AF65: 1002609
A66: 10027 | B66: =IF(W66>0,_xlfn.TEXTJOIN(";",1,ROW(INDIRECT(CONCATENATE("",A66*100+1,":",A66*100+W66,""))),102),"") -> 1002701;1002702;1002703;1002704;1002705;1002706;1002707;1002708;1002709;1002710;1002711;1002712;1002713;1002714;1002715;1002716;1002717;1002718;1002719;1002720;1002721;1002722;1002723;1002724;1002725;1002726;1002727;1002728;1002729;1002730;1002731;1002732;1002733;1002734;1002735;1002736;102 | C66: 4 | D66: 1 | E66: 1 | F66: 10 | G66: 1 | I66: 1703;1404 | J66: 1;2 | M66: 3 | N66: 1 | O66: 121 | S66: 4054 | T66: 4129 | U66: 藐姑射山 | V66: 雾中幻径 | W66: =COUNTIF(EventLinkConfig!O:O,EventConfig!A66) -> 36 | X66: 1002701 | Y66: 1002702 | Z66: 1002703 | AA66: 1002704 | AB66: 1002705 | AC66: 1002706 | AD66: 1002707 | AE66: 1002708 | AF66: 1002709 | AG66: 1002710 | AH66: 1002711 | AI66: 1002712 | AJ66: 1002713 | AK66: 1002714 | AL66: 1002715 | AM66: 1002716
A67: 10028 | B67: =IF(W67>0,_xlfn.TEXTJOIN(";",1,ROW(INDIRECT(CONCATENATE("",A67*100+1,":",A67*100+W67,""))),102),"") -> 1002801;102 | C67: 4 | D67: 1 | E67: 1 | F67: 10 | G67: 1 | I67: 1703;1404 | J67: 1;2 | M67: 3 | N67: 1 | S67: 4055 | T67: 4130 | U67: 露水清心 | W67: =COUNTIF(EventLinkConfig!O:O,EventConfig!A67) -> 1 | X67: 1002801
A68: 10029 | B68: =IF(W68>0,_xlfn.TEXTJOIN(";",1,ROW(INDIRECT(CONCATENATE("",A68*100+1,":",A68*100+W68,""))),102),"") -> 1002901;1002902;1002903;1002904;1002905;1002906;1002907;1002908;1002909;1002910;1002911;1002912;1002913;1002914;1002915;1002916;1002917;1002918;1002919;1002920;102 | C68: 4 | D68: 1 | E68: 1 | F68: 10 | G68: 1 | I68: 1703;1404 | J68: 1;2 | M68: 3 | N68: 1 | O68: 131 | S68: 4056 | T68: 4131 | U68: 山顶神仙 | W68: =COUNTIF(EventLinkConfig!O:O,EventConfig!A68) -> 20 | X68: 1002901 | Y68: 1002902 | Z68: 1002903 | AA68: 1002904 | AB68: 1002905 | AC68: 1002906 | AD68: 1002907 | AE68: 1002908 | AF68: 1002909 | AG68: 1002910 | AH68: 1002911 | AI68: 1002912 | AJ68: 1002913 | AK68: 1002914 | AL68: 1002915 | AM68: 1002916
A69: 10030 | B69: =IF(W69>0,_xlfn.TEXTJOIN(";",1,ROW(INDIRECT(CONCATENATE("",A69*100+1,":",A69*100+W69,""))),102),"") -> 1003001;1003002;1003003;1003004;1003005;1003006;1003007;1003008;102 | C69: 4 | D69: 1 | E69: 1 | F69: 10 | G69: 1 | I69: 1703;1404 | J69: 1;2 | M69: 3 | N69: 1 | O69: 141 | S69: 4057 | T69: 4132 | U69: 心魔之战 | V69: 破除枷锁 | W69: =COUNTIF(EventLinkConfig!O:O,EventConfig!A69) -> 8 | X69: 1003001 | Y69: 1003002 | Z69: 1003003 | AA69: 1003004 | AB69: 1003005 | AC69: 1003006 | AD69: 1003007 | AE69: 1003008
A70: 10031 | B70: =IF(W70>0,_xlfn.TEXTJOIN(";",1,ROW(INDIRECT(CONCATENATE("",A70*100+1,":",A70*100+W70,""))),102),"") -> 1003101;1003102;1003103;1003104;1003105;1003106;1003107;1003108;1003109;1003110;1003111;1003112;1003113;1003114;1003115;1003116;102 | C70: 4 | D70: 1 | E70: 1 | F70: 10 | G70: 1 | I70: 1703;1404 | J70: 1;2 | M70: 3 | N70: 1 | O70: 151 | S70: 4191 | T70: 4192 | U70: 鲲鹏飞天 | W70: =COUNTIF(EventLinkConfig!O:O,EventConfig!A70) -> 16 | X70: 1003101 | Y70: 1003102 | Z70: 1003103 | AA70: 1003104 | AB70: 1003105 | AC70: 1003106 | AD70: 1003107 | AE70: 1003108 | AF70: 1003109 | AG70: 1003110 | AH70: 1003111 | AI70: 1003112 | AJ70: 1003113 | AK70: 1003114 | AL70: 1003115 | AM70: 1003116
A72: 20001 | B72: 1001;1002;1003;1004;1005;102 | C72: 5 | E72: 1 | F72: 0 | G72: 1 | I72: 1001 | J72: 10 | S72: 4058 | T72: 4133 | U72: 受伤的狼 | V72: 你发现一只奄奄一息的狼，决定上前一探究竟。 | X72: 1001 | Y72: 1002 | Z72: 1003 | AA72: 1004 | AB72: 1005
A73: 20002 | B73: =IF(A73="","",_xlfn.TEXTJOIN(";",1,X73:AQ73,102)) -> 1010;1011;1012;1013;1014;1015;1016;102 | C73: 5 | E73: 1 | F73: 0 | G73: 1 | I73: 1001 | J73: 10 | O73: =IF(P73="","",VLOOKUP(P73,条件类型查询!A:B,2,FALSE)) ->  | S73: 4059 | T73: 4134 | U73: 鹬蚌相争 | V73: 附近的小树林闹的不可开交，你决定去看看怎么回事。 | X73: 1010 | Y73: 1011 | Z73: 1012 | AA73: 1013 | AB73: 1014 | AC73: 1015 | AD73: 1016
A74: 20003 | B74: 1001;1002;1003;1004;1005;102 | C74: 5 | E74: 1 | F74: 0 | G74: 1 | I74: 1001 | J74: 10 | S74: 4060 | T74: 4135 | U74: 受伤的鸟 | V74: 你发现一只奄奄一息的鸟，决定上前一探究竟。 | X74: 1001 | Y74: 1002 | Z74: 1003 | AA74: 1004 | AB74: 1005
A76: 9001 | B76: 1001;1002;1003;1004;1005;102 | C76: 6 | D76: 3 | E76: 1 | F76: 0 | G76: 1 | I76: 1001 | J76: 10 | S76: 4061 | T76: 4136 | U76: 受伤的狼 | V76: 你发现一只奄奄一息的狼，决定上前一探究竟。 | X76: 1001 | Y76: 1002 | Z76: 1003 | AA76: 1004 | AB76: 1005
A77: 9002 | B77: 1010;1011;1012;1013;1014;1015;1016;102 | C77: 6 | D77: 3 | E77: 1 | F77: 0 | G77: 1 | I77: 1001 | J77: 10 | O77: =IF(P77="","",VLOOKUP(P77,条件类型查询!A:B,2,FALSE)) ->  | S77: 4062 | T77: 4137 | U77: 鹬蚌相争 | V77: 附近的小树林闹的不可开交，你决定去看看怎么回事。 | X77: 1010 | Y77: 1011 | Z77: 1012 | AA77: 1013 | AB77: 1014 | AC77: 1015 | AD77: 1016
A78: 9025 | B78: 102 | C78: 6 | D78: 3 | E78: 1 | F78: 0 | G78: 1 | I78: 1001 | J78: 10 | M78: 1 | N78: 2 | S78: 4063 | T78: 4138 | U78: 惠子.没用的大葫芦 | V78: 惠子种的葫芦没用，他非常生气
A79: 9014 | B79: 9014;102 | C79: 6 | D79: 3 | E79: 1 | F79: 0 | G79: 1 | I79: 1001 | J79: 10 | M79: 2 | N79: 2 | S79: 4064 | T79: 4139 | U79: 发现魔修 | V79: 发现一群魔修，正在夺人钱财 | X79: 9014
A80: 9031 | B80: 9031;102 | C80: 6 | D80: 3 | E80: 1 | F80: 0 | G80: 1 | I80: 1001 | J80: 10 | K80: 30 | L80: 2 | M80: 3 | N80: 2 | S80: 4065 | T80: 4140 | U80: 魔修 | V80: 打败魔休 | X80: 9031
A81: 9003 | B81: 9003;9004;9005;9006;9007;9008;102 | C81: 6 | D81: 5 | E81: 1 | F81: 0 | G81: 1 | I81: 1001 | J81: 10 | S81: 4066 | T81: 4141 | U81: 幽谷剑鸣 | V81: 你在闭关修炼时，感受到一股凌厉的剑意波动。深入探查，发现一名白衣剑修“清霜”盘坐于谷中，周围剑气环绕，正与一柄散发不祥气息的灵剑对峙。她似在参悟剑诀，却灵气不足，剑灵桀骜。 | X81: 9003 | Y81: 9004 | Z81: 9005 | AA81: 9006 | AB81: 9007 | AC81: 9008
A83: 9101 | B83: =IF(A83="","",_xlfn.TEXTJOIN(";",1,X83:AQ83,102)) -> 910101;102 | C83: 1 | D83: 5 | E83: 1 | F83: 0 | G83: 1 | I83: 1501 | J83: 1 | U83: 初遇道友1 | V83: 你偶遇正在修炼的道友1 | W83: =COUNTIF(EventLinkConfig!O:O,EventConfig!A83) -> 1 | X83: =IF($W83>=X$3,$A83*100+X$3,"") -> 910101
A84: 9102 | B84: =IF(A84="","",_xlfn.TEXTJOIN(";",1,X84:AQ84,102)) -> 910201;102 | C84: 1 | D84: 5 | E84: 1 | F84: 0 | G84: 1 | I84: 1501 | J84: 1 | U84: 初遇道友2 | V84: 你偶遇正在修炼的道友2 | W84: =COUNTIF(EventLinkConfig!O:O,EventConfig!A84) -> 1 | X84: 910201
A85: 9103 | B85: 910301;102 | C85: 1 | D85: 5 | E85: 1 | F85: 0 | G85: 1 | I85: 1501 | J85: 1 | U85: 初遇道友3 | V85: 你偶遇正在修炼的道友3 | W85: =COUNTIF(EventLinkConfig!O:O,EventConfig!A85) -> 1 | X85: 910301
A86: 9104 | B86: =IF(A86="","",_xlfn.TEXTJOIN(";",1,X86:AQ86,102)) -> 910401;102 | C86: 1 | D86: 5 | E86: 1 | F86: 0 | G86: 1 | I86: 1501 | J86: 1 | U86: 初遇道友4 | V86: 你偶遇正在修炼的道友4 | W86: =COUNTIF(EventLinkConfig!O:O,EventConfig!A86) -> 1 | X86: 910401
A87: 9105 | B87: 910501;102 | C87: 1 | D87: 5 | E87: 1 | F87: 0 | G87: 1 | I87: 1501 | J87: 1 | U87: 初遇道友5 | V87: 你偶遇正在修炼的道友5 | W87: =COUNTIF(EventLinkConfig!O:O,EventConfig!A87) -> 1 | X87: 910501
A88: 9106 | B88: 910601;102 | C88: 1 | D88: 5 | E88: 1 | F88: 0 | G88: 1 | I88: 1501 | J88: 1 | U88: 初遇道友6 | V88: 你偶遇正在修炼的道友6 | W88: =COUNTIF(EventLinkConfig!O:O,EventConfig!A88) -> 1 | X88: 910601
A89: 9107 | B89: 910701;102 | C89: 1 | D89: 5 | E89: 1 | F89: 0 | G89: 1 | I89: 1501 | J89: 1 | U89: 初遇道友7 | V89: 你偶遇正在修炼的道友7 | W89: =COUNTIF(EventLinkConfig!O:O,EventConfig!A89) -> 1 | X89: 910701
A90: 9108 | B90: =IF(A90="","",_xlfn.TEXTJOIN(";",1,X90:AQ90,102)) -> 910801;102 | C90: 1 | D90: 5 | E90: 1 | F90: 0 | G90: 1 | I90: 1501 | J90: 1 | U90: 初遇道友8 | V90: 你偶遇正在修炼的道友8 | W90: =COUNTIF(EventLinkConfig!O:O,EventConfig!A90) -> 1 | X90: 910801
A91: 9109 | B91: 910901;102 | C91: 1 | D91: 5 | E91: 1 | F91: 0 | G91: 1 | I91: 1501 | J91: 1 | U91: 初遇道友9 | V91: 你偶遇正在修炼的道友9 | W91: =COUNTIF(EventLinkConfig!O:O,EventConfig!A91) -> 1 | X91: 910901
A92: 9110 | B92: =IF(A92="","",_xlfn.TEXTJOIN(";",1,X92:AQ92,102)) -> 911001;102 | C92: 1 | D92: 5 | E92: 1 | F92: 0 | G92: 1 | I92: 1501 | J92: 1 | U92: 初遇道友10 | V92: 你偶遇正在修炼的道友10 | W92: =COUNTIF(EventLinkConfig!O:O,EventConfig!A92) -> 1 | X92: 911001
A94: 3 | B94: =IF(A94="","",_xlfn.TEXTJOIN(";",1,X94:AQ94,102)) -> 1020;1021;1022;1023;1024;1025;1026;102 | C94: 99 | D94: 2 | E94: 1 | F94: 10 | G94: 1 | I94: 1001 | J94: 10 | M94: 1 | N94: 4 | O94: =IF(P94="","",VLOOKUP(P94,条件类型查询!A:B,2,FALSE)) -> 拥有特定道具 | P94: 1 | Q94: 1004 | R94: 1 | S94: 4067 | T94: 4142 | U94: 鹬蚌相争2 | V94: 附近的小树林闹的不可开交，你决定去看看怎么回事。 | X94: 1020 | Y94: 1021 | Z94: 1022 | AA94: 1023 | AB94: 1024 | AC94: 1025 | AD94: 1026
A95: 1001 | B95: =IF(A95="","",_xlfn.TEXTJOIN(";",1,X95:AQ95,102)) -> 1001;1002;1003;1004;1005;100;102 | C95: 99 | D95: 4 | E95: 1 | F95: 10 | G95: 1 | I95: 1001 | J95: 10 | O95: =IF(P95="","",VLOOKUP(P95,条件类型查询!A:B,2,FALSE)) ->  | S95: 4068 | T95: 4143 | U95: 受伤的鸟 | V95: 你发现一只奄奄一息的鸟，决定上前一探究竟。 | X95: 1001 | Y95: 1002 | Z95: 1003 | AA95: 1004 | AB95: 1005 | AQ95: 100
A96: 30001 | B96: 100;102 | C96: 98 | D96: 6 | E96: 1 | F96: 0 | G96: 1 | K96: 50 | L96: 5 | O96: =IF(P96="","",VLOOKUP(P96,条件类型查询!A:B,2,FALSE)) ->  | W96: =COUNTIF(EventLinkConfig!O:O,EventConfig!A96) -> 0 | X96: =IF($W96>=X$3,$A96*100+X$3,"") ->  | AQ96: 100
A97: =A96+1 -> 30002 | B97: 100;102 | C97: 98 | D97: 6 | E97: 1 | F97: 0 | G97: 1 | K97: 50 | L97: 1 | O97: =IF(P97="","",VLOOKUP(P97,条件类型查询!A:B,2,FALSE)) ->  | W97: =COUNTIF(EventLinkConfig!O:O,EventConfig!A97) -> 0 | AQ97: 100
A98: 30003 | B98: 3000301;100;102 | C98: 98 | D98: 6 | E98: 1 | F98: 0 | G98: 1 | K98: 50 | L98: 1 | M98: 1 | O98: =IF(P98="","",VLOOKUP(P98,条件类型查询!A:B,2,FALSE)) ->  | W98: =COUNTIF(EventLinkConfig!O:O,EventConfig!A98) -> 1 | X98: 3000301 | AQ98: 100
A99: 30004 | B99: 3000401;100;102 | C99: 98 | D99: 6 | E99: 1 | F99: 0 | G99: 1 | K99: 50 | L99: 3 | M99: 2 | O99: =IF(P99="","",VLOOKUP(P99,条件类型查询!A:B,2,FALSE)) ->  | W99: =COUNTIF(EventLinkConfig!O:O,EventConfig!A99) -> 1 | X99: 3000401 | AQ99: 100
A100: 30005 | B100: 3000501;100;102 | C100: 98 | D100: 6 | E100: 1 | F100: 0 | G100: 1 | K100: 50 | L100: 1 | M100: 2 | O100: =IF(P100="","",VLOOKUP(P100,条件类型查询!A:B,2,FALSE)) ->  | W100: =COUNTIF(EventLinkConfig!O:O,EventConfig!A100) -> 1 | X100: 3000501 | AQ100: 100
A101: 30006 | B101: 3000601;100;102 | C101: 98 | D101: 6 | E101: 1 | F101: 0 | G101: 1 | K101: 50 | L101: 1 | M101: 2 | O101: =IF(P101="","",VLOOKUP(P101,条件类型查询!A:B,2,FALSE)) ->  | W101: =COUNTIF(EventLinkConfig!O:O,EventConfig!A101) -> 1 | X101: 3000601 | AQ101: 100
A102: 30007 | B102: 3000701;100;102 | C102: 98 | D102: 6 | E102: 1 | F102: 0 | G102: 1 | K102: 50 | L102: 1 | M102: 3 | O102: =IF(P102="","",VLOOKUP(P102,条件类型查询!A:B,2,FALSE)) ->  | W102: =COUNTIF(EventLinkConfig!O:O,EventConfig!A102) -> 1 | X102: 3000701 | AQ102: 100
A103: 30008 | B103: 3000801;100;102 | C103: 98 | D103: 6 | E103: 1 | F103: 0 | G103: 1 | K103: 15 | L103: 1 | M103: 3 | O103: =IF(P103="","",VLOOKUP(P103,条件类型查询!A:B,2,FALSE)) ->  | W103: =COUNTIF(EventLinkConfig!O:O,EventConfig!A103) -> 1 | X103: 3000801 | AQ103: 100
A104: 30009 | B104: 3000901;3000902;100;102 | C104: 98 | D104: 6 | E104: 1 | F104: 0 | G104: 1 | I104: 1301 | J104: 1 | K104: 100 | L104: 1 | M104: 3 | O104: =IF(P104="","",VLOOKUP(P104,条件类型查询!A:B,2,FALSE)) ->  | W104: =COUNTIF(EventLinkConfig!O:O,EventConfig!A104) -> 2 | X104: 3000901 | Y104: 3000902 | AQ104: 100
A105: 30010 | B105: 3001001;100;102 | C105: 98 | D105: 6 | E105: 1 | F105: 0 | G105: 1 | I105: 1001 | J105: 1 | K105: 100 | L105: 1 | M105: 3 | O105: =IF(P105="","",VLOOKUP(P105,条件类型查询!A:B,2,FALSE)) -> 前置事件 | P105: 10 | Q105: 1021 | W105: =COUNTIF(EventLinkConfig!O:O,EventConfig!A105) -> 1 | X105: 3001001 | AQ105: 100
A106: 30011 | B106: 3001101;3001102;100;102 | C106: 98 | D106: 6 | E106: 1 | F106: 0 | G106: 1 | I106: 20003 | J106: 3 | K106: 100 | L106: 1 | M106: 2 | O106: =IF(P106="","",VLOOKUP(P106,条件类型查询!A:B,2,FALSE)) ->  | W106: =COUNTIF(EventLinkConfig!O:O,EventConfig!A106) -> 2 | X106: 3001101 | Y106: 3001102 | AQ106: 100
A107: 30012 | B107: 3001201;102 | C107: 98 | D107: 6 | E107: 1 | F107: 0 | G107: 1 | I107: 20004 | J107: 1 | K107: 20 | L107: 1 | M107: 2 | O107: =IF(P107="","",VLOOKUP(P107,条件类型查询!A:B,2,FALSE)) ->  | W107: =COUNTIF(EventLinkConfig!O:O,EventConfig!A107) -> 1 | X107: 3001201
A108: 30013 | B108: =IF(A108="","",_xlfn.TEXTJOIN(";",1,X108:AQ108,102)) -> 3001301;102 | C108: 98 | D108: 6 | E108: 1 | F108: 0 | G108: 1 | I108: 20005 | J108: 1 | K108: 20 | L108: 1 | M108: 1 | O108: =IF(P108="","",VLOOKUP(P108,条件类型查询!A:B,2,FALSE)) ->  | R108: 3 | S108: 4163 | T108: 4164 | U108: 搜集风铃 | V108: 为雀灵儿搜集风铃 | W108: =COUNTIF(EventLinkConfig!O:O,EventConfig!A108) -> 1 | X108: 3001301
A109: 30014 | B109: =IF(A109="","",_xlfn.TEXTJOIN(";",1,X109:AQ109,102)) -> 3001401;102 | C109: 98 | D109: 6 | E109: 1 | F109: 0 | G109: 1 | I109: 1001 | J109: 100 | K109: 20 | L109: 1 | M109: 1 | O109: =IF(P109="","",VLOOKUP(P109,条件类型查询!A:B,2,FALSE)) ->  | R109: 1 | S109: 4177 | T109: 4178 | U109: 击败风妖 | V109: 云枝-击败风妖 | W109: =COUNTIF(EventLinkConfig!O:O,EventConfig!A109) -> 1 | X109: 3001401
A110: 30015 | B110: =IF(A110="","",_xlfn.TEXTJOIN(";",1,X110:AQ110,102)) -> 3001501;102 | C110: 98 | D110: 6 | E110: 1 | F110: 0 | G110: 1 | I110: 20006 | J110: 1 | K110: 33 | L110: 1 | M110: 1 | O110: =IF(P110="","",VLOOKUP(P110,条件类型查询!A:B,2,FALSE)) ->  | R110: 3 | S110: 4193 | T110: 4194 | U110: 搜集风灵碎片 | V110: 风瑶-2. 风灵碎片.岛间搜寻 | W110: =COUNTIF(EventLinkConfig!O:O,EventConfig!A110) -> 1 | X110: 3001501
A111: 30016 | B111: =IF(A111="","",_xlfn.TEXTJOIN(";",1,X111:AQ111,102)) -> 3001601;3001602;3001603;3001604;102 | C111: 98 | D111: 6 | E111: 1 | F111: 0 | G111: 1 | I111: 1001 | J111: 100 | K111: 20 | L111: 1 | M111: 1 | O111: =IF(P111="","",VLOOKUP(P111,条件类型查询!A:B,2,FALSE)) ->  | R111: 1 | S111: 4195 | T111: 4196 | U111: 云隐秘闻 | V111: 风瑶-3. 风中疑云.探听消息 | W111: =COUNTIF(EventLinkConfig!O:O,EventConfig!A111) -> 4 | X111: 3001601 | Y111: 3001602 | Z111: 3001603 | AA111: 3001604 | AM111: =IF($W111>=AM$3,$A111*100+AM$3,"") -> 
A112: =A111+1 -> 30017 | B112: =IF(A112="","",_xlfn.TEXTJOIN(";",1,X112:AQ112,102)) -> 3001701;102 | C112: 98 | D112: 6 | E112: 1 | F112: 0 | G112: 1 | I112: 20007 | J112: 1 | K112: 20 | L112: 1 | M112: 1 | O112: =IF(P112="","",VLOOKUP(P112,条件类型查询!A:B,2,FALSE)) ->  | R112: 3 | S112: 4197 | T112: 4198 | U112: 搜集浮岛灵石 | V112: 风瑶-4. 隐秘信物.追踪残片 | W112: =COUNTIF(EventLinkConfig!O:O,EventConfig!A112) -> 1 | X112: =IF($W112>=X$3,$A112*100+X$3,"") -> 3001701
A113: 30018 | B113: =IF(A113="","",_xlfn.TEXTJOIN(";",1,X113:AQ113,102)) -> 3001801;102 | C113: 98 | D113: 6 | E113: 1 | F113: 0 | G113: 1 | I113: 20008 | J113: 1 | K113: 20 | L113: 1 | M113: 1 | O113: =IF(P113="","",VLOOKUP(P113,条件类型查询!A:B,2,FALSE)) ->  | R113: 1 | S113: 4199 | T113: 4200 | U113: 搜集浮岛灵石 | V113: 风瑶-5. 风中密信.截获情报 | W113: =COUNTIF(EventLinkConfig!O:O,EventConfig!A113) -> 1 | X113: 3001801
A114: 30019 | B114: =IF(A114="","",_xlfn.TEXTJOIN(";",1,X114:AQ114,102)) -> 3001901;102 | C114: 98 | D114: 6 | E114: 1 | F114: 0 | G114: 1 | I114: 20009 | J114: 1 | K114: 20 | L114: 1 | M114: 1 | O114: =IF(P114="","",VLOOKUP(P114,条件类型查询!A:B,2,FALSE)) ->  | R114: 2 | S114: 4213 | T114: 4214 | U114: 搜集尧都玉佩 | V114: 婉溪-4. 玉佩稳灵.收集信物 | W114: =COUNTIF(EventLinkConfig!O:O,EventConfig!A114) -> 1 | X114: 3001901
A115: 30020 | B115: =IF(A115="","",_xlfn.TEXTJOIN(";",1,X115:AQ115,102)) -> 3002001;102 | C115: 98 | D115: 6 | E115: 1 | F115: 0 | G115: 1 | I115: 20010 | J115: 1 | K115: 20 | L115: 1 | M115: 1 | O115: =IF(P115="","",VLOOKUP(P115,条件类型查询!A:B,2,FALSE)) ->  | R115: 2 | S115: 4227 | T115: 4228 | U115: 搜集山野灵草 | V115: 许由-2. 山野采草.炼丹初助 | W115: =COUNTIF(EventLinkConfig!O:O,EventConfig!A115) -> 1 | X115: 3002001
A116: 30021 | B116: =IF(A116="","",_xlfn.TEXTJOIN(";",1,X116:AQ116,102)) -> 3002101;3002102;3002103;102 | C116: 98 | D116: 6 | E116: 1 | F116: 0 | G116: 1 | I116: 20011 | J116: 1 | K116: 20 | L116: 1 | M116: 1 | O116: =IF(P116="","",VLOOKUP(P116,条件类型查询!A:B,2,FALSE)) ->  | R116: 2 | S116: 4229 | T116: 4230 | U116: 搜集秘境种子 | V116: 许由-4. 玉佩镇丹.稳气寻材 | W116: =COUNTIF(EventLinkConfig!O:O,EventConfig!A116) -> 3 | X116: 3002101 | Y116: 3002102 | Z116: 3002103
A117: 30022 | B117: =IF(A117="","",_xlfn.TEXTJOIN(";",1,X117:AQ117,102)) -> 3002201;3002202;102 | C117: 98 | D117: 6 | E117: 1 | F117: 0 | G117: 1 | I117: 20012 | J117: 1 | K117: 20 | L117: 1 | M117: 1 | O117: =IF(P117="","",VLOOKUP(P117,条件类型查询!A:B,2,FALSE)) ->  | R117: 3 | S117: 4242 | T117: 4243 | U117: 搜集甜蜜果实 | V117: 疯道人-2. 途中解乏 | W117: =COUNTIF(EventLinkConfig!O:O,EventConfig!A117) -> 2 | X117: 3002201 | Y117: 3002202
A119: 5001 | B119: 500101;500102;500103;500104;500105;500106;500107;500108;500109;500110;500111;500112;500113;500114;500115;500116;500117;500118;500119;102 | C119: 99 | D119: 5 | E119: 1 | F119: 10 | G119: 1 | H119: 10 | I119: 1501 | J119: 1 | M119: 1 | N119: 1 | O119: =IF(P119="","",VLOOKUP(P119,条件类型查询!A:B,2,FALSE)) ->  | S119: 4069 | T119: 4144 | U119: 风影为二 | V119: 风影为二详情占位 | W119: =COUNTIF(EventLinkConfig!O:O,EventConfig!A119) -> 19 | X119: =IF($W119>=X$3,$A119*100+X$3,"") -> 500101 | Y119: 500102 | Z119: 500103 | AA119: 500104 | AB119: 500105 | AC119: 500106 | AD119: 500107 | AE119: 500108 | AF119: 500109 | AG119: 500110 | AH119: =IF($W119>=AH$3,$A119*100+AH$3,"") -> 500111 | AI119: 500112 | AJ119: 500113 | AK119: 500114 | AL119: 500115 | AM119: 500116 | AN119: 500117 | AO119: 500118 | AP119: 500119
A120: 5002 | B120: 500201;500202;500203;500204;500205;500206;500207;500208;500209;500210;500211;500212;500213;500214;500215;500216;102 | C120: 99 | D120: 5 | E120: 1 | F120: 10 | G120: 1 | H120: 11 | I120: 1601 | J120: 1 | M120: 1 | N120: 1 | O120: =IF(P120="","",VLOOKUP(P120,条件类型查询!A:B,2,FALSE)) -> 前置事件 | P120: 10 | Q120: 5001 | S120: 4070 | T120: 4145 | U120: 风影合一 | V120: 风影合一详情占位 | W120: =COUNTIF(EventLinkConfig!O:O,EventConfig!A120) -> 16 | X120: 500201 | Y120: 500202 | Z120: 500203 | AA120: 500204 | AB120: 500205 | AC120: 500206 | AD120: 500207 | AE120: 500208 | AF120: 500209 | AG120: 500210 | AH120: 500211 | AI120: 500212 | AJ120: 500213 | AK120: 500214 | AL120: 500215 | AM120: 500216
A121: 5003 | B121: 500301;500302;500303;500304;500305;500306;500307;500308;500309;500310;500311;500312;500313;500314;500315;500316;500317;500318;500319;500320;102 | C121: 99 | D121: 2 | E121: 1 | F121: 0 | G121: 1 | H121: 1 | I121: 1001 | J121: 500 | M121: 1 | N121: 1 | O121: =IF(P121="","",VLOOKUP(P121,条件类型查询!A:B,2,FALSE)) ->  | S121: 4071 | T121: 4146 | U121: 北海剑妖 | V121: 百年化妖为红颜，一剑焚海断孽缘 | W121: =COUNTIF(EventLinkConfig!O:O,EventConfig!A121) -> 20 | X121: 500301 | Y121: 500302 | Z121: 500303 | AA121: 500304 | AB121: 500305 | AC121: 500306 | AD121: 500307 | AE121: 500308 | AF121: 500309 | AG121: 500310 | AH121: 500311 | AI121: 500312 | AJ121: 500313 | AK121: 500314 | AL121: 500315 | AM121: 500316 | AN121: 500317 | AO121: 500318 | AP121: 500319 | AQ121: 500320
A122: 5004 | B122: =IF(A122="","",_xlfn.TEXTJOIN(";",1,X122:AQ122,102)) -> 500401;102 | C122: 99 | D122: 7 | E122: 1 | F122: 0 | G122: 1 | H122: 1 | I122: 1001 | J122: -20000 | O122: =IF(P122="","",VLOOKUP(P122,条件类型查询!A:B,2,FALSE)) ->  | S122: 4072 | T122: 4147 | U122: 【纳福】灵石 | V122: 大量获取灵石 | W122: =COUNTIF(EventLinkConfig!O:O,EventConfig!A122) -> 1 | X122: 500401
A123: 5005 | B123: =IF(A123="","",_xlfn.TEXTJOIN(";",1,X123:AQ123,102)) -> 500501;102 | C123: 99 | D123: 7 | E123: 1 | F123: 0 | G123: 1 | H123: 1 | I123: 1003 | J123: -20000 | O123: =IF(P123="","",VLOOKUP(P123,条件类型查询!A:B,2,FALSE)) ->  | S123: 4073 | T123: 4148 | U123: 【纳福】修为 | V123: 大量获取修为 | W123: =COUNTIF(EventLinkConfig!O:O,EventConfig!A123) -> 1 | X123: 500501
A124: 5006 | B124: 500601;102 | C124: 99 | D124: 7 | E124: 1 | F124: 0 | G124: 1 | H124: 1 | I124: 1005 | J124: -20000 | O124: =IF(P124="","",VLOOKUP(P124,条件类型查询!A:B,2,FALSE)) ->  | S124: 4074 | T124: 4149 | U124: 【纳福】灵气 | V124: 大量获取灵气 | W124: =COUNTIF(EventLinkConfig!O:O,EventConfig!A124) -> 1 | X124: 500601
A125: 5007 | B125: =IF(A125="","",_xlfn.TEXTJOIN(";",1,X125:AQ125,102)) -> 500701;102 | C125: 99 | D125: 7 | E125: 1 | F125: 0 | G125: 1 | H125: 1 | I125: 1006 | J125: -20000 | O125: =IF(P125="","",VLOOKUP(P125,条件类型查询!A:B,2,FALSE)) ->  | S125: 4075 | T125: 4150 | U125: 【纳福】玄晶 | V125: 大量获取玄晶 | W125: =COUNTIF(EventLinkConfig!O:O,EventConfig!A125) -> 1 | X125: 500701
A127: 6001 | B127: 600101;600102;600103;600104;600105;600106;600107;600108;600109;600110;600111;600112;600113;600114;600115;600116;600117;102 | C127: 7 | D127: 5 | E127: 1 | F127: 0 | G127: 1 | K127: 35 | L127: 1 | M127: 1 | O127: =IF(P127="","",VLOOKUP(P127,条件类型查询!A:B,2,FALSE)) -> 前置事件 | P127: 10 | Q127: 10003 | S127: 4151 | T127: 4152 | U127: 树间闲聊 | V127: 雀灵儿1 | W127: =COUNTIF(EventLinkConfig!O:O,EventConfig!A127) -> 17 | X127: 600101 | Y127: 600102 | Z127: 600103 | AA127: 600104 | AB127: 600105 | AC127: 600106 | AD127: 600107 | AE127: 600108 | AF127: 600109 | AG127: 600110 | AH127: 600111 | AI127: 600112 | AJ127: 600113 | AK127: 600114 | AL127: 600115 | AM127: 600116 | AN127: 600117
A128: 6002 | B128: =IF(A128="","",_xlfn.TEXTJOIN(";",1,X128:AQ128,102)) -> 600201;600202;600203;600204;600205;600206;102 | C128: 7 | D128: 5 | E128: 1 | F128: 0 | G128: 1 | K128: 30 | L128: 1 | M128: 1 | O128: =IF(P128="","",VLOOKUP(P128,条件类型查询!A:B,2,FALSE)) -> 前置事件 | P128: 10 | Q128: =A127 -> 6001 | S128: 4153 | T128: 4154 | U128: 风铃寻趣 | V128: 雀灵儿2 | W128: =COUNTIF(EventLinkConfig!O:O,EventConfig!A128) -> 6 | X128: 600201 | Y128: 600202 | Z128: 600203 | AA128: 600204 | AB128: 600205 | AC128: 600206
A129: 6003 | B129: 600301;600302;600303;600304;600305;600306;600307;600308;600309;600310;600311;600312;600313;600314;600315;102 | C129: 7 | D129: 5 | E129: 1 | F129: 0 | G129: 1 | K129: 25 | L129: 1 | M129: 1 | O129: =IF(P129="","",VLOOKUP(P129,条件类型查询!A:B,2,FALSE)) -> 前置事件 | P129: 10 | Q129: =A128 -> 6002 | S129: 4155 | T129: 4156 | U129: 守护雀巢 | V129: 雀灵儿3 | W129: =COUNTIF(EventLinkConfig!O:O,EventConfig!A129) -> 15 | X129: 600301 | Y129: 600302 | Z129: 600303 | AA129: 600304 | AB129: 600305 | AC129: 600306 | AD129: 600307 | AE129: 600308 | AF129: 600309 | AG129: 600310 | AH129: 600311 | AI129: 600312 | AJ129: 600313 | AK129: 600314 | AL129: 600315
A130: 6004 | B130: 600401;600402;600403;600404;600405;600406;600407;600408;600409;102 | C130: 7 | D130: 5 | E130: 1 | F130: 0 | G130: 1 | K130: 20 | L130: 1 | M130: 1 | O130: =IF(P130="","",VLOOKUP(P130,条件类型查询!A:B,2,FALSE)) -> 前置事件 | P130: 10 | Q130: 6003 | S130: 4157 | T130: 4158 | U130: 小飞试胆 | V130: 雀灵儿4 | W130: =COUNTIF(EventLinkConfig!O:O,EventConfig!A130) -> 9 | X130: 600401 | Y130: 600402 | Z130: 600403 | AA130: 600404 | AB130: 600405 | AC130: 600406 | AD130: 600407 | AE130: 600408 | AF130: 600409
A131: 6005 | B131: 600501;600502;600503;600504;600505;600506;102 | C131: 7 | D131: 5 | E131: 1 | F131: 0 | G131: 1 | K131: 15 | L131: 1 | M131: 1 | O131: =IF(P131="","",VLOOKUP(P131,条件类型查询!A:B,2,FALSE)) -> 前置事件 | P131: 10 | Q131: 6004 | S131: 4159 | T131: 4160 | U131: 风涡营救 | V131: 雀灵儿5 | W131: =COUNTIF(EventLinkConfig!O:O,EventConfig!A131) -> 6 | X131: 600501 | Y131: 600502 | Z131: 600503 | AA131: 600504 | AB131: 600505 | AC131: 600506
A132: 6006 | B132: 600601;600602;600603;600604;600605;600606;600607;600608;600609;102 | C132: 7 | D132: 5 | E132: 1 | F132: 0 | G132: 1 | K132: 10 | L132: 1 | M132: 1 | O132: =IF(P132="","",VLOOKUP(P132,条件类型查询!A:B,2,FALSE)) -> 前置事件 | P132: 10 | Q132: 6005 | S132: 4161 | T132: 4162 | U132: 雀侣同行 | V132: 雀灵儿6 | W132: =COUNTIF(EventLinkConfig!O:O,EventConfig!A132) -> 9 | X132: 600601 | Y132: 600602 | Z132: 600603 | AA132: 600604 | AB132: 600605 | AC132: 600606 | AD132: 600607 | AE132: 600608 | AF132: 600609
A134: 6011 | B134: =IF(A134="","",_xlfn.TEXTJOIN(";",1,X134:AQ134,102)) -> 601101;601102;601103;601104;601105;601106;601107;102 | C134: 7 | D134: 5 | E134: 1 | F134: 0 | G134: 1 | K134: 35 | L134: 1 | M134: 1 | O134: =IF(P134="","",VLOOKUP(P134,条件类型查询!A:B,2,FALSE)) -> 前置事件 | P134: 10 | Q134: 6001 | S134: 4165 | T134: 4171 | U134: 绿林试探 | V134: 云枝1 | W134: =COUNTIF(EventLinkConfig!O:O,EventConfig!A134) -> 7 | X134: 601101 | Y134: 601102 | Z134: 601103 | AA134: 601104 | AB134: 601105 | AC134: 601106 | AD134: 601107
A135: 6012 | B135: 601201;601202;601203;601204;601205;601206;601207;601208;102 | C135: 7 | D135: 5 | E135: 1 | F135: 0 | G135: 1 | K135: 30 | L135: 1 | M135: 1 | O135: =IF(P135="","",VLOOKUP(P135,条件类型查询!A:B,2,FALSE)) -> 前置事件 | P135: 10 | Q135: =A134 -> 6011 | S135: 4166 | T135: 4172 | U135: 风林除妖 | V135: 云枝2 | W135: =COUNTIF(EventLinkConfig!O:O,EventConfig!A135) -> 8 | X135: =IF($W135>=X$3,$A135*100+X$3,"") -> 601201 | Y135: 601202 | Z135: 601203 | AA135: 601204 | AB135: 601205 | AC135: 601206 | AD135: 601207 | AE135: 601208 | AN135: =IF($W135>=AN$3,$A135*100+AN$3,"") -> 
A136: 6013 | B136: 601301;601302;601303;601304;601305;601306;601307;601308;601309;601310;102 | C136: 7 | D136: 5 | E136: 1 | F136: 0 | G136: 1 | K136: 25 | L136: 1 | M136: 1 | O136: =IF(P136="","",VLOOKUP(P136,条件类型查询!A:B,2,FALSE)) -> 前置事件 | P136: 10 | Q136: =A135 -> 6012 | S136: 4167 | T136: 4173 | U136: 琴音守护 | V136: 云枝3 | W136: =COUNTIF(EventLinkConfig!O:O,EventConfig!A136) -> 10 | X136: 601301 | Y136: 601302 | Z136: 601303 | AA136: 601304 | AB136: 601305 | AC136: 601306 | AD136: 601307 | AE136: 601308 | AF136: 601309 | AG136: 601310
A137: 6014 | B137: 601401;601402;601403;601404;601405;601406;601407;601408;601409;601410;102 | C137: 7 | D137: 5 | E137: 1 | F137: 0 | G137: 1 | K137: 20 | L137: 1 | M137: 1 | O137: =IF(P137="","",VLOOKUP(P137,条件类型查询!A:B,2,FALSE)) -> 前置事件 | P137: 10 | Q137: 6013 | S137: 4168 | T137: 4174 | U137: 往事如风 | V137: 云枝4 | W137: =COUNTIF(EventLinkConfig!O:O,EventConfig!A137) -> 10 | X137: 601401 | Y137: 601402 | Z137: 601403 | AA137: 601404 | AB137: 601405 | AC137: 601406 | AD137: 601407 | AE137: 601408 | AF137: 601409 | AG137: 601410
A138: 6015 | B138: 601501;601502;601503;601504;601505;601506;601507;601508;601509;601510;601511;102 | C138: 7 | D138: 5 | E138: 1 | F138: 0 | G138: 1 | K138: 15 | L138: 1 | M138: 1 | O138: =IF(P138="","",VLOOKUP(P138,条件类型查询!A:B,2,FALSE)) -> 前置事件 | P138: 10 | Q138: 6014 | S138: 4169 | T138: 4175 | U138: 大风危机 | V138: 云枝5 | W138: =COUNTIF(EventLinkConfig!O:O,EventConfig!A138) -> 11 | X138: 601501 | Y138: 601502 | Z138: 601503 | AA138: 601504 | AB138: 601505 | AC138: 601506 | AD138: 601507 | AE138: 601508 | AF138: 601509 | AG138: 601510 | AH138: 601511
A139: 6016 | B139: 601601;601602;601603;601604;601605;102 | C139: 7 | D139: 5 | E139: 1 | F139: 0 | G139: 1 | K139: 10 | L139: 1 | M139: 1 | O139: =IF(P139="","",VLOOKUP(P139,条件类型查询!A:B,2,FALSE)) -> 前置事件 | P139: 10 | Q139: 6015 | S139: 4170 | T139: 4176 | U139: 枝侣同行 | V139: 云枝6 | W139: =COUNTIF(EventLinkConfig!O:O,EventConfig!A139) -> 5 | X139: 601601 | Y139: 601602 | Z139: 601603 | AA139: 601604 | AB139: 601605
A141: 6021 | B141: =IF(A141="","",_xlfn.TEXTJOIN(";",1,X141:AQ141,102)) -> 602101;602102;602103;602104;102 | C141: 7 | D141: 5 | E141: 1 | F141: 0 | G141: 1 | K141: 35 | L141: 1 | M141: 1 | O141: =IF(P141="","",VLOOKUP(P141,条件类型查询!A:B,2,FALSE)) -> 境界判断 | P141: 3 | Q141: 81 | S141: 4179 | T141: 4185 | U141: 1. 浮岛边缘.初遇风瑶 | V141: 风瑶1 | W141: =COUNTIF(EventLinkConfig!O:O,EventConfig!A141) -> 4 | X141: =IF($W141>=X$3,$A141*100+X$3,"") -> 602101 | Y141: 602102 | Z141: 602103 | AA141: 602104 | AN141: =IF($W141>=AN$3,$A141*100+AN$3,"") -> 
A142: 6022 | B142: 602201;602202;602203;602204;602205;602206;102 | C142: 7 | D142: 5 | E142: 1 | F142: 0 | G142: 1 | K142: 30 | L142: 1 | M142: 1 | O142: =IF(P142="","",VLOOKUP(P142,条件类型查询!A:B,2,FALSE)) -> 前置事件 | P142: 10 | Q142: =A141 -> 6021 | S142: 4180 | T142: 4186 | U142: 2. 风灵碎片.岛间搜寻 | V142: 风瑶2 | W142: =COUNTIF(EventLinkConfig!O:O,EventConfig!A142) -> 6 | X142: 602201 | Y142: 602202 | Z142: 602203 | AA142: 602204 | AB142: 602205 | AC142: 602206
A143: 6023 | B143: 602301;602302;602303;102 | C143: 7 | D143: 5 | E143: 1 | F143: 0 | G143: 1 | K143: 25 | L143: 1 | M143: 1 | O143: =IF(P143="","",VLOOKUP(P143,条件类型查询!A:B,2,FALSE)) -> 前置事件 | P143: 10 | Q143: =A142 -> 6022 | S143: 4181 | T143: 4187 | U143: 3. 风中疑云.探听消息 | V143: 风瑶3 | W143: =COUNTIF(EventLinkConfig!O:O,EventConfig!A143) -> 3 | X143: 602301 | Y143: 602302 | Z143: 602303
A144: 6024 | B144: 602401;602402;602403;602404;102 | C144: 7 | D144: 5 | E144: 1 | F144: 0 | G144: 1 | K144: 20 | L144: 1 | M144: 1 | O144: =IF(P144="","",VLOOKUP(P144,条件类型查询!A:B,2,FALSE)) -> 前置事件 | P144: 10 | Q144: 6023 | S144: 4182 | T144: 4188 | U144: 4. 隐秘信物.追踪残片 | V144: 风瑶4 | W144: =COUNTIF(EventLinkConfig!O:O,EventConfig!A144) -> 4 | X144: 602401 | Y144: 602402 | Z144: 602403 | AA144: 602404
A145: 6025 | B145: 602501;602502;602503;102 | C145: 7 | D145: 5 | E145: 1 | F145: 0 | G145: 1 | K145: 15 | L145: 1 | M145: 1 | O145: =IF(P145="","",VLOOKUP(P145,条件类型查询!A:B,2,FALSE)) -> 前置事件 | P145: 10 | Q145: 6024 | S145: 4183 | T145: 4189 | U145: 5. 风中密信.截获情报 | V145: 风瑶5 | W145: =COUNTIF(EventLinkConfig!O:O,EventConfig!A145) -> 3 | X145: 602501 | Y145: 602502 | Z145: 602503
A146: 6026 | B146: 602601;602602;602603;602604;602605;602606;602607;102 | C146: 7 | D146: 5 | E146: 1 | F146: 0 | G146: 1 | K146: 10 | L146: 1 | M146: 1 | O146: =IF(P146="","",VLOOKUP(P146,条件类型查询!A:B,2,FALSE)) -> 前置事件 | P146: 10 | Q146: 6025 | S146: 4184 | T146: 4190 | U146: 6. 兄妹密谈.初步真相 | V146: 风瑶6 | W146: =COUNTIF(EventLinkConfig!O:O,EventConfig!A146) -> 7 | X146: 602601 | Y146: 602602 | Z146: 602603 | AA146: 602604 | AB146: 602605 | AC146: 602606 | AD146: 602607
A148: 6031 | B148: =IF(A148="","",_xlfn.TEXTJOIN(";",1,X148:AQ148,102)) -> 603101;603102;603103;603104;603105;603106;603107;603108;102 | C148: 7 | D148: 5 | E148: 1 | F148: 0 | G148: 1 | K148: 35 | L148: 1 | M148: 1 | O148: =IF(P148="","",VLOOKUP(P148,条件类型查询!A:B,2,FALSE)) -> 境界判断 | P148: 3 | Q148: 101 | S148: 4201 | T148: 4207 | U148: 1. 山溪小屋.初遇婉溪 | V148: 婉溪1 | W148: =COUNTIF(EventLinkConfig!O:O,EventConfig!A148) -> 8 | X148: 603101 | Y148: 603102 | Z148: 603103 | AA148: 603104 | AB148: 603105 | AC148: 603106 | AD148: 603107 | AE148: 603108
A149: 6032 | B149: 603201;603202;603203;603204;102 | C149: 7 | D149: 5 | E149: 1 | F149: 0 | G149: 1 | K149: 30 | L149: 1 | M149: 1 | O149: =IF(P149="","",VLOOKUP(P149,条件类型查询!A:B,2,FALSE)) -> 前置事件 | P149: 10 | Q149: =A148 -> 6031 | S149: 4202 | T149: 4208 | U149: 2. 溪边劳作.浇灌灵田 | V149: 婉溪2 | W149: =COUNTIF(EventLinkConfig!O:O,EventConfig!A149) -> 4 | X149: 603201 | Y149: 603202 | Z149: 603203 | AA149: 603204
A150: 6033 | B150: 603301;603302;603303;603304;603305;102 | C150: 7 | D150: 5 | E150: 1 | F150: 0 | G150: 1 | K150: 25 | L150: 1 | M150: 1 | O150: =IF(P150="","",VLOOKUP(P150,条件类型查询!A:B,2,FALSE)) -> 前置事件 | P150: 10 | Q150: =A149 -> 6032 | S150: 4203 | T150: 4209 | U150: 3. 清茶闲话.品茗论道 | V150: 婉溪3 | W150: =COUNTIF(EventLinkConfig!O:O,EventConfig!A150) -> 5 | X150: 603301 | Y150: 603302 | Z150: 603303 | AA150: 603304 | AB150: 603305
A151: 6034 | B151: 603401;603402;603403;102 | C151: 7 | D151: 5 | E151: 1 | F151: 0 | G151: 1 | K151: 20 | L151: 1 | M151: 1 | O151: =IF(P151="","",VLOOKUP(P151,条件类型查询!A:B,2,FALSE)) -> 前置事件 | P151: 10 | Q151: 6033 | S151: 4204 | T151: 4210 | U151: 4. 玉佩稳灵.收集信物 | V151: 婉溪4 | W151: =COUNTIF(EventLinkConfig!O:O,EventConfig!A151) -> 3 | X151: 603401 | Y151: 603402 | Z151: 603403
A152: 6035 | B152: 603501;603502;603503;102 | C152: 7 | D152: 5 | E152: 1 | F152: 0 | G152: 1 | K152: 15 | L152: 1 | M152: 1 | O152: =IF(P152="","",VLOOKUP(P152,条件类型查询!A:B,2,FALSE)) -> 前置事件 | P152: 10 | Q152: 6034 | S152: 4205 | T152: 4211 | U152: 5. 溪水异动.驱散干扰 | V152: 婉溪5 | W152: =COUNTIF(EventLinkConfig!O:O,EventConfig!A152) -> 3 | X152: 603501 | Y152: 603502 | Z152: 603503
A153: 6036 | B153: 603601;603602;603603;603604;603605;603606;102 | C153: 7 | D153: 5 | E153: 1 | F153: 0 | G153: 1 | K153: 10 | L153: 1 | M153: 1 | O153: =IF(P153="","",VLOOKUP(P153,条件类型查询!A:B,2,FALSE)) -> 前置事件 | P153: 10 | Q153: 6035 | S153: 4206 | T153: 4212 | U153: 6. 兄妹心语.隐秘初现 | V153: 婉溪6 | W153: =COUNTIF(EventLinkConfig!O:O,EventConfig!A153) -> 6 | X153: 603601 | Y153: 603602 | Z153: 603603 | AA153: 603604 | AB153: 603605 | AC153: 603606
A155: 6041 | B155: =IF(A155="","",_xlfn.TEXTJOIN(";",1,X155:AQ155,102)) -> 604101;604102;604103;604104;102 | C155: 7 | D155: 5 | E155: 1 | F155: 0 | G155: 1 | K155: 35 | L155: 1 | M155: 1 | O155: =IF(P155="","",VLOOKUP(P155,条件类型查询!A:B,2,FALSE)) -> 境界判断 | P155: 3 | Q155: 121 | S155: 4215 | T155: 4221 | U155: 1. 山林重逢.隐士闲谈 | V155: 许由1 | W155: =COUNTIF(EventLinkConfig!O:O,EventConfig!A155) -> 4 | X155: 604101 | Y155: 604102 | Z155: 604103 | AA155: 604104
A156: 6042 | B156: 604201;604202;604203;604204;102 | C156: 7 | D156: 5 | E156: 1 | F156: 0 | G156: 1 | K156: 30 | L156: 1 | M156: 1 | O156: =IF(P156="","",VLOOKUP(P156,条件类型查询!A:B,2,FALSE)) -> 前置事件 | P156: 10 | Q156: =A155 -> 6041 | S156: 4216 | T156: 4222 | U156: 2. 山野采草.炼丹初助 | V156: 许由2 | W156: =COUNTIF(EventLinkConfig!O:O,EventConfig!A156) -> 4 | X156: 604201 | Y156: 604202 | Z156: 604203 | AA156: 604204
A157: 6043 | B157: 604301;604302;604303;102 | C157: 7 | D157: 5 | E157: 1 | F157: 0 | G157: 1 | K157: 25 | L157: 1 | M157: 1 | O157: =IF(P157="","",VLOOKUP(P157,条件类型查询!A:B,2,FALSE)) -> 前置事件 | P157: 10 | Q157: =A156 -> 6042 | S157: 4217 | T157: 4223 | U157: 3. 丹炉论道.火候之悟 | V157: 许由3 | W157: =COUNTIF(EventLinkConfig!O:O,EventConfig!A157) -> 3 | X157: =IF($W157>=X$3,$A157*100+X$3,"") -> 604301 | Y157: 604302 | Z157: 604303 | AN157: =IF($W157>=AN$3,$A157*100+AN$3,"") -> 
A158: 6044 | B158: 604401;604402;604403;604404;102 | C158: 7 | D158: 5 | E158: 1 | F158: 0 | G158: 1 | K158: 20 | L158: 1 | M158: 1 | O158: =IF(P158="","",VLOOKUP(P158,条件类型查询!A:B,2,FALSE)) -> 前置事件 | P158: 10 | Q158: 6043 | S158: 4218 | T158: 4224 | U158: 4. 玉佩镇丹.稳气寻材 | V158: 许由4 | W158: =COUNTIF(EventLinkConfig!O:O,EventConfig!A158) -> 4 | X158: 604401 | Y158: 604402 | Z158: 604403 | AA158: 604404
A159: 6045 | B159: 604501;604502;604503;604504;102 | C159: 7 | D159: 5 | E159: 1 | F159: 0 | G159: 1 | K159: 15 | L159: 1 | M159: 1 | O159: =IF(P159="","",VLOOKUP(P159,条件类型查询!A:B,2,FALSE)) -> 前置事件 | P159: 10 | Q159: 6044 | S159: 4219 | T159: 4225 | U159: 5. 茶丹相融.品味山林 | V159: 许由5 | W159: =COUNTIF(EventLinkConfig!O:O,EventConfig!A159) -> 4 | X159: 604501 | Y159: 604502 | Z159: 604503 | AA159: 604504
A160: 6046 | B160: 604601;604602;102 | C160: 7 | D160: 5 | E160: 1 | F160: 0 | G160: 1 | K160: 10 | L160: 1 | M160: 1 | O160: =IF(P160="","",VLOOKUP(P160,条件类型查询!A:B,2,FALSE)) -> 前置事件 | P160: 10 | Q160: 6045 | S160: 4220 | T160: 4226 | U160: 6. 隐士心语.道在山林 | V160: 许由6 | W160: =COUNTIF(EventLinkConfig!O:O,EventConfig!A160) -> 2 | X160: 604601 | Y160: 604602
A162: 6051 | B162: =IF(A162="","",_xlfn.TEXTJOIN(";",1,X162:AQ162,102)) -> 605101;605102;605103;605104;102 | C162: 7 | D162: 5 | E162: 1 | F162: 0 | G162: 1 | K162: 35 | L162: 1 | M162: 1 | O162: =IF(P162="","",VLOOKUP(P162,条件类型查询!A:B,2,FALSE)) -> 境界判断 | P162: 3 | Q162: 141 | S162: 4231 | T162: 4237 | U162: 1. 随风偶遇.风中疑问 | V162: 疯道人1 | W162: =COUNTIF(EventLinkConfig!O:O,EventConfig!A162) -> 4 | X162: =IF($W162>=X$3,$A162*100+X$3,"") -> 605101 | Y162: 605102 | Z162: 605103 | AA162: 605104 | AN162: =IF($W162>=AN$3,$A162*100+AN$3,"") -> 
A163: 6052 | B163: 605201;605202;605203;605204;102 | C163: 7 | D163: 5 | E163: 1 | F163: 0 | G163: 1 | K163: 30 | L163: 1 | M163: 1 | O163: =IF(P163="","",VLOOKUP(P163,条件类型查询!A:B,2,FALSE)) -> 前置事件 | P163: 10 | Q163: =A162 -> 6051 | S163: 4232 | T163: 4238 | U163: 2. 途中解乏 | V163: 疯道人2 | W163: =COUNTIF(EventLinkConfig!O:O,EventConfig!A163) -> 4 | X163: 605201 | Y163: 605202 | Z163: 605203 | AA163: 605204
A164: 6053 | B164: 605301;605302;605303;605304;102 | C164: 7 | D164: 5 | E164: 1 | F164: 0 | G164: 1 | K164: 25 | L164: 1 | M164: 1 | O164: =IF(P164="","",VLOOKUP(P164,条件类型查询!A:B,2,FALSE)) -> 前置事件 | P164: 10 | Q164: =A163 -> 6052 | S164: 4233 | T164: 4239 | U164: 3. 游乐论道.评判之辨 | V164: 疯道人3 | W164: =COUNTIF(EventLinkConfig!O:O,EventConfig!A164) -> 4 | X164: 605301 | Y164: 605302 | Z164: 605303 | AA164: 605304
A165: 6054 | B165: 605401;605402;605403;605404;102 | C165: 7 | D165: 5 | E165: 1 | F165: 0 | G165: 1 | K165: 20 | L165: 1 | M165: 1 | O165: =IF(P165="","",VLOOKUP(P165,条件类型查询!A:B,2,FALSE)) -> 前置事件 | P165: 10 | Q165: 6053 | S165: 4234 | T165: 4240 | U165: 4. 灵石稳身.自在寻味 | V165: 疯道人4 | W165: =COUNTIF(EventLinkConfig!O:O,EventConfig!A165) -> 4 | X165: 605401 | Y165: 605402 | Z165: 605403 | AA165: 605404
A166: 6055 | B166: 605501;605502;605503;605504;605505;102 | C166: 7 | D166: 5 | E166: 1 | F166: 0 | G166: 1 | K166: 15 | L166: 1 | M166: 1 | O166: =IF(P166="","",VLOOKUP(P166,条件类型查询!A:B,2,FALSE)) -> 前置事件 | P166: 10 | Q166: 6054 | S166: 4235 | T166: 4241 | U166: 5. 沉迷赌博.有借无还 | V166: 疯道人5 | W166: =COUNTIF(EventLinkConfig!O:O,EventConfig!A166) -> 5 | X166: 605501 | Y166: 605502 | Z166: 605503 | AA166: 605504 | AB166: 605505

Sheet EventLinkConfig
A1: ID | B1: conciseEventMessage | D1: EventConditionMessage | G1: PreShow | H1: PreShowPar | J1: NPCID | L1: LanID | N1: DialogueType | O1: EventID | Q1: ConditionId | U1: optionType | V1: optionPara1 | W1: optionPara2 | AD1: PrizeIDs | AE1: PrizeNums | AF1: ResultType | AG1: ResultOptions
A2: int | B2: int | D2: int | G2: int | H2: int | J2: int | L2: int[] | N2: int | O2: int | Q2: int[] | U2: int | V2: int[] | W2: int[] | AD2: int[] | AE2: int[] | AF2: int | AG2: int[]
C3: 5001 | AI3: 5000
A4: ID | B4: 任务列表中的简洁描述 | C4: 任务列表中的简洁描述 | D4: 无任务目标时的补充文本 | E4: 无任务目标时的补充文本 | G4: 前置表现 1飞行 | H4: 前置表现参数 | J4: 对话NPCID | K4: NPC | L4: 对话 | M4: 对话1 | N4: 对话框类型 | O4: 属于哪个事件 | P4: 步骤 | Q4: 条件判断类型 | R4: 任务目标1 | S4: 任务目标2 | T4: 条件判断内容 | U4: 步骤类型 1=提供选项 2=进入战斗 5=自动退出 3=获得奖励 4=扣除道具 | V4: 事件常量1 1=步骤IDs 2=战斗ID | W4: 事件常量2 1=事件文本 | X4: 选择1 | Y4: 选择1 步骤：填选项文本1 战斗：填战斗ID | Z4: 选择1 步骤1：跳转到哪一步 不填默认跳转到下一步 | AA4: 选择2 | AB4: 选择2 步骤：填选项文本2 | AC4: 选择1 步骤2：跳转到哪一步 不填默认跳转到下一步 | AD4: 事件结局奖励 | AE4: 事件结局奖励数量 | AF4: 事件结束类型 1：跳转步骤 2：根据战斗结果跳转 3.触发新事件 | AG4: 事件结局后提供的选项 1.EventLinkId 2.胜利id;失败id 3.EventConfigId | AH4: 1.步骤ID（不填默认为下一个步骤ID） 2.胜利ID（不填默认为下一个步骤ID） 3.事件ID（不填默认为下一个事件ID） | AI4: 语言表最大值
A5: 100 | B5: =IF(C5="","",IF(C5=C4,B4,MAX(AI4,AI3)+1)) ->  | D5: =IF(E5="","",IF(E5=E4,D4,MAX(AI4,AI3,B5)+1)) ->  | L5: =IF(M5="","",MAX(AI4,AI3,B5,D5)+1) -> 5001 | M5: 你被怪物击败，神识也随之消散了。 | P5: =IF(O5="","",IF(O5=O4,P4+1,1)) ->  | Q5: =_xlfn.TEXTJOIN(";",1,R5:S5) ->  | T5: =IF(R5="","","-"&VLOOKUP(R5,EventConditionConfig!A:C,3,FALSE)&IF(S5="","",CHAR(10)&"-"&VLOOKUP(S5,EventConditionConfig!A:C,3,FALSE))) ->  | X5: =IF(OR(ISNUMBER(Y5),Y5=""),"",MAX(AI4,AI3,B5,D5,L5)+1) ->  | AA5: =IF(OR(ISNUMBER(AB5),AB5=""),"",X5+1) ->  | AI5: =IF(A5="","",MAX(B5,D5,L5,X5,AA5,AI4,AI3)) -> 5001
A6: 101 | B6: =IF(C6="","",IF(C6=C5,B5,MAX(AI5,AI4)+1)) ->  | D6: =IF(E6="","",IF(E6=E5,D5,MAX(AI5,AI4,B6)+1)) ->  | L6: =IF(M6="","",MAX(AI5,AI4,B6,D6)+1) -> 5002 | M6: 你败下阵来，感到头晕目眩，试图努力回忆起刚才发生的事情。 | P6: =IF(O6="","",IF(O6=O5,P5+1,1)) ->  | Q6: =_xlfn.TEXTJOIN(";",1,R6:S6) ->  | T6: =IF(R6="","","-"&VLOOKUP(R6,EventConditionConfig!A:C,3,FALSE)&IF(S6="","",CHAR(10)&"-"&VLOOKUP(S6,EventConditionConfig!A:C,3,FALSE))) ->  | X6: =IF(OR(ISNUMBER(Y6),Y6=""),"",MAX(AI5,AI4,B6,D6,L6)+1) ->  | AA6: =IF(OR(ISNUMBER(AB6),AB6=""),"",X6+1) ->  | AI6: =IF(A6="","",MAX(B6,D6,L6,X6,AA6,AI5,AI4)) -> 5002
A7: 102 | L7: 5003 | M7: 战斗胜利，你的任务进度增加了。 | AI7: 5003
T8: =IF(R8="","","-"&VLOOKUP(R8,EventConditionConfig!A:C,3,FALSE)&IF(S8="","",CHAR(10)&"-"&VLOOKUP(S8,EventConditionConfig!A:C,3,FALSE))) -> 
A9: 1001 | J9: 2 | L9: 5004 | M9: 你遇到一只奄奄一息的野狼，从周围四散的血迹来看，想必它刚才经历了一场恶战。 | O9: 1 | P9: 1 | T9: =IF(R9="","","-"&VLOOKUP(R9,EventConditionConfig!A:C,3,FALSE)&IF(S9="","",CHAR(10)&"-"&VLOOKUP(S9,EventConditionConfig!A:C,3,FALSE))) ->  | U9: 1 | V9: 1002;1003 | W9: 198;199 | X9: 5005 | Y9: 趁它虚弱赶紧除掉它！ | AA9: 5006 | AB9: 你不忍见它受苦，选择帮它减轻痛苦。 | AI9: 5006
A10: 1002 | L10: 5007 | M10: 野狼用它最后一口气，朝你扑了过来！ | O10: 1 | P10: 2 | T10: =IF(R10="","","-"&VLOOKUP(R10,EventConditionConfig!A:C,3,FALSE)&IF(S10="","",CHAR(10)&"-"&VLOOKUP(S10,EventConditionConfig!A:C,3,FALSE))) ->  | U10: 2 | V10: 100001 | AF10: 2 | AG10: 1004;100 | AI10: 5007
A11: 1003 | L11: 5008 | M11: 你抽出匕首准备了结它的生命，却发现怀中还躺着一只刚出生的狼崽。 | O11: 1 | P11: 3 | T11: =IF(R11="","","-"&VLOOKUP(R11,EventConditionConfig!A:C,3,FALSE)&IF(S11="","",CHAR(10)&"-"&VLOOKUP(S11,EventConditionConfig!A:C,3,FALSE))) ->  | U11: 1 | V11: 1005 | W11: 200 | AI11: 5008
A12: 1004 | L12: 5009 | M12: 随着你的最后一击，野狼应声倒下，你罔顾它幽怨的眼神，从它怀中拿走了一些财物。 | O12: 1 | P12: 4 | T12: =IF(R12="","","-"&VLOOKUP(R12,EventConditionConfig!A:C,3,FALSE)&IF(S12="","",CHAR(10)&"-"&VLOOKUP(S12,EventConditionConfig!A:C,3,FALSE))) ->  | U12: 3 | AD12: 1002 | AE12: 100 | AI12: 5009
A13: 1005 | L13: 5010 | M13: 母狼似乎懂你要做什么，眼神归于平静。你终结了她，决定收养这只小狼仔。 | O13: 1 | P13: 5 | T13: =IF(R13="","","-"&VLOOKUP(R13,EventConditionConfig!A:C,3,FALSE)&IF(S13="","",CHAR(10)&"-"&VLOOKUP(S13,EventConditionConfig!A:C,3,FALSE))) ->  | U13: 3 | AD13: 1001 | AE13: 50 | AI13: 5010
T14: =IF(R14="","","-"&VLOOKUP(R14,EventConditionConfig!A:C,3,FALSE)&IF(S14="","",CHAR(10)&"-"&VLOOKUP(S14,EventConditionConfig!A:C,3,FALSE))) -> 
A15: 1010 | L15: 5011 | M15: 从不远处传来刀剑声，听起来双方已经精疲力尽了。 | O15: 2 | P15: 1 | T15: =IF(R15="","","-"&VLOOKUP(R15,EventConditionConfig!A:C,3,FALSE)&IF(S15="","",CHAR(10)&"-"&VLOOKUP(S15,EventConditionConfig!A:C,3,FALSE))) ->  | U15: 1 | V15: 1011;1012 | W15: 201;202 | X15: 5012 | Y15: 去看看 | AA15: 5013 | AB15: (需拥有法宝凝神珠）听起来都是鸡毛蒜皮的小摩擦，你选择祭出凝神珠化解他们的怨气。 | AI15: 5013
A16: 1011 | L16: 5014 | M16: 你走进一看，原来是一伙山贼分赃不均内讧了起来。你看着旁边被砍的七零八落的轿子和这群山贼，选择怎么做呢： | O16: 2 | P16: 2 | T16: =IF(R16="","","-"&VLOOKUP(R16,EventConditionConfig!A:C,3,FALSE)&IF(S16="","",CHAR(10)&"-"&VLOOKUP(S16,EventConditionConfig!A:C,3,FALSE))) ->  | U16: 1 | V16: 1014;1015 | W16: 203;204 | X16: 5015 | Y16: 你顿时杀心四起，决定杀了贼寇，救出轿中之人 | AA16: 5016 | AB16: 盗贼们个个双眼杀的通红，你决定来个渔翁得利。 | AI16: 5016
A17: 1012 | L17: 5017 | M17: 法宝现身，效果立竿见影，刀剑声逐渐消失，这个世界安静了。 | O17: 2 | P17: 3 | T17: =IF(R17="","","-"&VLOOKUP(R17,EventConditionConfig!A:C,3,FALSE)&IF(S17="","",CHAR(10)&"-"&VLOOKUP(S17,EventConditionConfig!A:C,3,FALSE))) ->  | U17: 3 | AD17: 1001 | AE17: 10 | AI17: 5017 | AJ17: 1 | AK17: 1001;1
A18: 1014 | L18: 5018 | M18: 你怒斥贼寇的恶行，贼寇们被你激怒了，准备迎战！ | O18: 2 | P18: 4 | T18: =IF(R18="","","-"&VLOOKUP(R18,EventConditionConfig!A:C,3,FALSE)&IF(S18="","",CHAR(10)&"-"&VLOOKUP(S18,EventConditionConfig!A:C,3,FALSE))) ->  | U18: 2 | V18: 100002 | AF18: 2 | AG18: 1016;100 | AI18: 5018 | AJ18: 2 | AK18: 4;150
A19: 1015 | L19: 5019 | M19: 你趁人不备顺走了轿内主人的包裹，任留轿内人痛苦的挣扎。 | O19: 2 | P19: 5 | T19: =IF(R19="","","-"&VLOOKUP(R19,EventConditionConfig!A:C,3,FALSE)&IF(S19="","",CHAR(10)&"-"&VLOOKUP(S19,EventConditionConfig!A:C,3,FALSE))) ->  | U19: 3 | AD19: 1003 | AE19: 1000 | AI19: 5019
A20: 1016 | L20: 5020 | M20: 杀退贼寇，你上演了一出英雄救美的桥段。姑娘为了答谢你的救命之恩，将藏在贴身处的珍贵首饰赠与你作为定情信物。 | O20: 2 | P20: 6 | T20: =IF(R20="","","-"&VLOOKUP(R20,EventConditionConfig!A:C,3,FALSE)&IF(S20="","",CHAR(10)&"-"&VLOOKUP(S20,EventConditionConfig!A:C,3,FALSE))) ->  | AD20: 1001 | AE20: 200 | AI20: 5020
T21: =IF(R21="","","-"&VLOOKUP(R21,EventConditionConfig!A:C,3,FALSE)&IF(S21="","",CHAR(10)&"-"&VLOOKUP(S21,EventConditionConfig!A:C,3,FALSE))) -> 
A22: 1020 | L22: 5021 | M22: 从不远处传来刀剑声，听起来双方已经精疲力尽了。 | T22: =IF(R22="","","-"&VLOOKUP(R22,EventConditionConfig!A:C,3,FALSE)&IF(S22="","",CHAR(10)&"-"&VLOOKUP(S22,EventConditionConfig!A:C,3,FALSE))) ->  | U22: 1 | V22: 1021;1022 | W22: 201;202 | X22: 5022 | Y22: 去看看 | AA22: 5023 | AB22: 使用法宝息事宁人 | AI22: 5023
A23: 1021 | L23: 5024 | M23: 你走进一看，原来是一伙山贼抢了一名坐在官轿内的女子，因分赃不均内讧了起来。山贼二话不说就朝你冲了过来！ | T23: =IF(R23="","","-"&VLOOKUP(R23,EventConditionConfig!A:C,3,FALSE)&IF(S23="","",CHAR(10)&"-"&VLOOKUP(S23,EventConditionConfig!A:C,3,FALSE))) ->  | U23: 2 | V23: 100003 | AD23: 1002 | AE23: 100 | AF23: 2 | AG23: 1026;100 | AI23: 5024
A24: 1022 | L24: 5025 | M24: 法宝现身，效果立竿见影，刀剑声逐渐消失，这个世界安静了。 | T24: =IF(R24="","","-"&VLOOKUP(R24,EventConditionConfig!A:C,3,FALSE)&IF(S24="","",CHAR(10)&"-"&VLOOKUP(S24,EventConditionConfig!A:C,3,FALSE))) ->  | U24: 4 | AD24: 1002 | AE24: 10 | AI24: 5025 | AJ24: 1 | AK24: 1001;1
A25: 1024 | L25: 5026 | M25: 你大声怒斥贼寇的恶行，贼首发现你了，准备迎战！ | T25: =IF(R25="","","-"&VLOOKUP(R25,EventConditionConfig!A:C,3,FALSE)&IF(S25="","",CHAR(10)&"-"&VLOOKUP(S25,EventConditionConfig!A:C,3,FALSE))) ->  | U25: 2 | V25: 100004 | AD25: 1004 | AE25: 100 | AF25: 2 | AG25: 1016;100 | AI25: 5026 | AJ25: 2 | AK25: 4;150
A26: 1025 | L26: 5027 | M26: 你趁人不备顺走了轿内主人的包裹，任留轿内人痛苦的挣扎。 | T26: =IF(R26="","","-"&VLOOKUP(R26,EventConditionConfig!A:C,3,FALSE)&IF(S26="","",CHAR(10)&"-"&VLOOKUP(S26,EventConditionConfig!A:C,3,FALSE))) ->  | U26: 3 | AD26: 1002 | AE26: 1000 | AI26: 5027
A27: 1026 | L27: 5028 | M27: 你将山贼们打的落花流水，成功吸引了山贼头子的注意。 | T27: =IF(R27="","","-"&VLOOKUP(R27,EventConditionConfig!A:C,3,FALSE)&IF(S27="","",CHAR(10)&"-"&VLOOKUP(S27,EventConditionConfig!A:C,3,FALSE))) ->  | U27: 1 | V27: 1024;1025 | W27: 205;206 | X27: 5029 | Y27: 选择正面迎战山贼头领（困难） | AA27: 5030 | AB27: 你决定避开山贼头领的视线，来个渔翁得利。 | AI27: 5030
T28: =IF(R28="","","-"&VLOOKUP(R28,EventConditionConfig!A:C,3,FALSE)&IF(S28="","",CHAR(10)&"-"&VLOOKUP(S28,EventConditionConfig!A:C,3,FALSE))) -> 
A29: 1030 | L29: 5031 | M29: 发现一个血迹斑斑的背包，好像刚刚发生了战斗，我翻翻背包... | O29: 4 | P29: 1 | T29: =IF(R29="","","-"&VLOOKUP(R29,EventConditionConfig!A:C,3,FALSE)&IF(S29="","",CHAR(10)&"-"&VLOOKUP(S29,EventConditionConfig!A:C,3,FALSE))) ->  | U29: 3 | AD29: 1002 | AE29: 10 | AI29: 5031
T30: =IF(R30="","","-"&VLOOKUP(R30,EventConditionConfig!A:C,3,FALSE)&IF(S30="","",CHAR(10)&"-"&VLOOKUP(S30,EventConditionConfig!A:C,3,FALSE))) -> 
A31: 1040 | L31: 5032 | M31: 啥也没有....除了钱 | O31: 5 | P31: 1 | T31: =IF(R31="","","-"&VLOOKUP(R31,EventConditionConfig!A:C,3,FALSE)&IF(S31="","",CHAR(10)&"-"&VLOOKUP(S31,EventConditionConfig!A:C,3,FALSE))) ->  | U31: 3 | AD31: 1002 | AE31: 10 | AI31: 5032
T32: =IF(R32="","","-"&VLOOKUP(R32,EventConditionConfig!A:C,3,FALSE)&IF(S32="","",CHAR(10)&"-"&VLOOKUP(S32,EventConditionConfig!A:C,3,FALSE))) -> 
A33: 1050 | L33: 5033 | M33: 两夫妻在吵架，似乎为了一件大事.. | O33: 6 | P33: 1 | T33: =IF(R33="","","-"&VLOOKUP(R33,EventConditionConfig!A:C,3,FALSE)&IF(S33="","",CHAR(10)&"-"&VLOOKUP(S33,EventConditionConfig!A:C,3,FALSE))) ->  | U33: 3 | AD33: 1002;1001 | AE33: 10;20 | AI33: 5033
T34: =IF(R34="","","-"&VLOOKUP(R34,EventConditionConfig!A:C,3,FALSE)&IF(S34="","",CHAR(10)&"-"&VLOOKUP(S34,EventConditionConfig!A:C,3,FALSE))) -> 
A35: 1060 | L35: 5034 | M35: 没有任何发现，但感觉空气很好....下次有空再来看看 | O35: 7 | P35: 1 | T35: =IF(R35="","","-"&VLOOKUP(R35,EventConditionConfig!A:C,3,FALSE)&IF(S35="","",CHAR(10)&"-"&VLOOKUP(S35,EventConditionConfig!A:C,3,FALSE))) ->  | AI35: 5034
T36: =IF(R36="","","-"&VLOOKUP(R36,EventConditionConfig!A:C,3,FALSE)&IF(S36="","",CHAR(10)&"-"&VLOOKUP(S36,EventConditionConfig!A:C,3,FALSE))) -> 
A37: =O37*100+P37 -> 1101 | L37: 5035 | M37: 你遇到一只拦路的妖兽，它看起来饥肠辘辘 | O37: 11 | P37: 1 | T37: =IF(R37="","","-"&VLOOKUP(R37,EventConditionConfig!A:C,3,FALSE)&IF(S37="","",CHAR(10)&"-"&VLOOKUP(S37,EventConditionConfig!A:C,3,FALSE))) ->  | AF37: 1 | AG37: =A38 -> 1102 | AI37: 5035
A38: =O38*100+P38 -> 1102 | L38: 5036 | M38: 你扔出一块鹿肉，趁它抢食之际，你祭出腰间的法宝 | O38: 11 | P38: 2 | T38: =IF(R38="","","-"&VLOOKUP(R38,EventConditionConfig!A:C,3,FALSE)&IF(S38="","",CHAR(10)&"-"&VLOOKUP(S38,EventConditionConfig!A:C,3,FALSE))) ->  | AF38: 1 | AG38: =A39 -> 1103 | AI38: 5036
A39: =O39*100+P39 -> 1103 | L39: 5037 | M39: 你成功诱捕了怪物，并从它身上吸取了一些修为 | O39: 11 | P39: 3 | Q39: =_xlfn.TEXTJOIN(";",1,R39:S39) ->  | T39: =IF(R39="","","-"&VLOOKUP(R39,EventConditionConfig!A:C,3,FALSE)&IF(S39="","",CHAR(10)&"-"&VLOOKUP(S39,EventConditionConfig!A:C,3,FALSE))) ->  | AI39: 5037
T40: =IF(R40="","","-"&VLOOKUP(R40,EventConditionConfig!A:C,3,FALSE)&IF(S40="","",CHAR(10)&"-"&VLOOKUP(S40,EventConditionConfig!A:C,3,FALSE))) -> 
A41: =O41*100+P41 -> 1201 | L41: 5038 | M41: 你偶遇一处仙气四溢无人生活的洞穴 | O41: 12 | P41: 1 | T41: =IF(R41="","","-"&VLOOKUP(R41,EventConditionConfig!A:C,3,FALSE)&IF(S41="","",CHAR(10)&"-"&VLOOKUP(S41,EventConditionConfig!A:C,3,FALSE))) ->  | AF41: 1 | AG41: =A42 -> 1202 | AI41: 5038
A42: =O42*100+P42 -> 1202 | L42: 5039 | M42: 不知哪位高人在洞穴内壁留下绝世秘籍 | O42: 12 | P42: 2 | T42: =IF(R42="","","-"&VLOOKUP(R42,EventConditionConfig!A:C,3,FALSE)&IF(S42="","",CHAR(10)&"-"&VLOOKUP(S42,EventConditionConfig!A:C,3,FALSE))) ->  | AF42: 1 | AG42: =A43 -> 1203 | AI42: 5039
A43: =O43*100+P43 -> 1203 | L43: 5040 | M43: 你仔细研读后，功法得到精进 | O43: 12 | P43: 3 | T43: =IF(R43="","","-"&VLOOKUP(R43,EventConditionConfig!A:C,3,FALSE)&IF(S43="","",CHAR(10)&"-"&VLOOKUP(S43,EventConditionConfig!A:C,3,FALSE))) ->  | AI43: 5040
T44: =IF(R44="","","-"&VLOOKUP(R44,EventConditionConfig!A:C,3,FALSE)&IF(S44="","",CHAR(10)&"-"&VLOOKUP(S44,EventConditionConfig!A:C,3,FALSE))) -> 
A45: =O45*100+P45 -> 1301 | L45: 5041 | M45: 你偶然发现一只枯萎的葫芦，但泛着蓝光 | O45: 13 | P45: 1 | T45: =IF(R45="","","-"&VLOOKUP(R45,EventConditionConfig!A:C,3,FALSE)&IF(S45="","",CHAR(10)&"-"&VLOOKUP(S45,EventConditionConfig!A:C,3,FALSE))) ->  | AF45: 1 | AG45: =A46 -> 1302 | AI45: 5041
A46: =O46*100+P46 -> 1302 | L46: 5042 | M46: 好奇的你凑近一看，不知谁将这件法宝遗落于此 | O46: 13 | P46: 2 | T46: =IF(R46="","","-"&VLOOKUP(R46,EventConditionConfig!A:C,3,FALSE)&IF(S46="","",CHAR(10)&"-"&VLOOKUP(S46,EventConditionConfig!A:C,3,FALSE))) ->  | AF46: 1 | AG46: =A47 -> 1303 | AI46: 5042
A47: 1303 | L47: 5043 | M47: 但法宝已经枯竭，你后悔没有早点发现它 | O47: 13 | P47: 3 | T47: =IF(R47="","","-"&VLOOKUP(R47,EventConditionConfig!A:C,3,FALSE)&IF(S47="","",CHAR(10)&"-"&VLOOKUP(S47,EventConditionConfig!A:C,3,FALSE))) ->  | AF47: 1 | AG47: =A48 -> 1304 | AI47: 5043
A48: 1304 | L48: 5044 | M48: 最后你从法宝中回收了一些玄晶 | O48: 13 | P48: 4 | T48: =IF(R48="","","-"&VLOOKUP(R48,EventConditionConfig!A:C,3,FALSE)&IF(S48="","",CHAR(10)&"-"&VLOOKUP(S48,EventConditionConfig!A:C,3,FALSE))) ->  | AI48: 5044
T49: =IF(R49="","","-"&VLOOKUP(R49,EventConditionConfig!A:C,3,FALSE)&IF(S49="","",CHAR(10)&"-"&VLOOKUP(S49,EventConditionConfig!A:C,3,FALSE))) -> 
A50: =O50*100+P50 -> 1401 | L50: 5045 | M50: 你路过一座矿山，一个闪光点引起了你的注意 | O50: 14 | P50: 1 | Q50: =_xlfn.TEXTJOIN(";",1,R50:S50) ->  | T50: =IF(R50="","","-"&VLOOKUP(R50,EventConditionConfig!A:C,3,FALSE)&IF(S50="","",CHAR(10)&"-"&VLOOKUP(S50,EventConditionConfig!A:C,3,FALSE))) ->  | AF50: 1 | AG50: =A51 -> 1402 | AI50: 5045
A51: =O51*100+P51 -> 1402 | L51: 5046 | M51: 原来这是一颗珍贵的绿玛瑙 | O51: 14 | P51: 2 | T51: =IF(R51="","","-"&VLOOKUP(R51,EventConditionConfig!A:C,3,FALSE)&IF(S51="","",CHAR(10)&"-"&VLOOKUP(S51,EventConditionConfig!A:C,3,FALSE))) ->  | AF51: 1 | AG51: =A52 -> 1403 | AI51: 5046
A52: =O52*100+P52 -> 1403 | L52: 5047 | M52: 你祭出法宝，将它转化成一些灵石 | O52: 14 | P52: 3 | T52: =IF(R52="","","-"&VLOOKUP(R52,EventConditionConfig!A:C,3,FALSE)&IF(S52="","",CHAR(10)&"-"&VLOOKUP(S52,EventConditionConfig!A:C,3,FALSE))) ->  | AI52: 5047
A54: =O54*100+P54 -> 1501 | L54: 5048 | M54: 漫漫旅途，你通过神识释放增进不少阅历 | O54: 15 | P54: 1 | Q54: =_xlfn.TEXTJOIN(";",1,R54:S54) ->  | T54: =IF(R54="","","-"&VLOOKUP(R54,EventConditionConfig!A:C,3,FALSE)&IF(S54="","",CHAR(10)&"-"&VLOOKUP(S54,EventConditionConfig!A:C,3,FALSE))) ->  | AF54: 1 | AG54: =A55 -> 1502 | AI54: 5048
A55: =O55*100+P55 -> 1502 | L55: 5049 | M55: 但随之而来的是神识用尽的空虚感 | O55: 15 | P55: 2 | T55: =IF(R55="","","-"&VLOOKUP(R55,EventConditionConfig!A:C,3,FALSE)&IF(S55="","",CHAR(10)&"-"&VLOOKUP(S55,EventConditionConfig!A:C,3,FALSE))) ->  | AF55: 1 | AG55: =A56 -> 1503 | AI55: 5049
A56: =O56*100+P56 -> 1503 | L56: 5050 | M56: 但这种感受何尝又不是一种新的阅历呢 | O56: 15 | P56: 3 | T56: =IF(R56="","","-"&VLOOKUP(R56,EventConditionConfig!A:C,3,FALSE)&IF(S56="","",CHAR(10)&"-"&VLOOKUP(S56,EventConditionConfig!A:C,3,FALSE))) ->  | AF56: 1 | AG56: =A57 -> 1504 | AI56: 5050
A57: =O57*100+P57 -> 1504 | L57: 5051 | M57: 你将这些新的感悟存进了一颗神识丹 | O57: 15 | P57: 4 | Q57: =_xlfn.TEXTJOIN(";",1,R57:S57) ->  | T57: =IF(R57="","","-"&VLOOKUP(R57,EventConditionConfig!A:C,3,FALSE)&IF(S57="","",CHAR(10)&"-"&VLOOKUP(S57,EventConditionConfig!A:C,3,FALSE))) ->  | AI57: 5051
A59: =O59*100+P59 -> 1601 | L59: 5052 | M59: 两只体型硕大的妖兽正在为了一颗灵丹而缠斗 | O59: 16 | P59: 1 | Q59: =_xlfn.TEXTJOIN(";",1,R59:S59) ->  | T59: =IF(R59="","","-"&VLOOKUP(R59,EventConditionConfig!A:C,3,FALSE)&IF(S59="","",CHAR(10)&"-"&VLOOKUP(S59,EventConditionConfig!A:C,3,FALSE))) ->  | AF59: 1 | AG59: =A60 -> 1602 | AI59: 5052
A60: =O60*100+P60 -> 1602 | L60: 5053 | M60: 突然一道闪电自天而降，正中两只妖兽 | O60: 16 | P60: 2 | T60: =IF(R60="","","-"&VLOOKUP(R60,EventConditionConfig!A:C,3,FALSE)&IF(S60="","",CHAR(10)&"-"&VLOOKUP(S60,EventConditionConfig!A:C,3,FALSE))) ->  | AF60: 1 | AG60: =A61 -> 1603 | AI60: 5053
A61: =O61*100+P61 -> 1603 | L61: 5054 | M61: 何其悲哉，念完往生咒，你顺手拿走了这颗珍贵的妖丹 | O61: 16 | P61: 3 | T61: =IF(R61="","","-"&VLOOKUP(R61,EventConditionConfig!A:C,3,FALSE)&IF(S61="","",CHAR(10)&"-"&VLOOKUP(S61,EventConditionConfig!A:C,3,FALSE))) ->  | AI61: 5054
A63: 9003 | L63: 5055 | M63: 你在闭关修炼时，感受到一股凌厉的剑意波动。深入探查，发现一名白衣剑修“清霜”盘坐于谷中，周围剑气环绕，正与一柄散发不祥气息的灵剑对峙。她似在参悟剑诀，却灵气不足，剑灵桀骜。 | T63: =IF(R63="","","-"&VLOOKUP(R63,EventConditionConfig!A:C,3,FALSE)&IF(S63="","",CHAR(10)&"-"&VLOOKUP(S63,EventConditionConfig!A:C,3,FALSE))) ->  | U63: 1 | V63: 9004;9006 | W63: 2041;2042 | AI63: 5055
A64: 9004 | L64: 5056 | M64: 你上前以剑意对抗剑灵 | T64: =IF(R64="","","-"&VLOOKUP(R64,EventConditionConfig!A:C,3,FALSE)&IF(S64="","",CHAR(10)&"-"&VLOOKUP(S64,EventConditionConfig!A:C,3,FALSE))) ->  | U64: 2 | V64: 100001 | AF64: 2 | AG64: 9005;100 | AI64: 5056
A65: 9005 | L65: 5057 | M65: 成功压制剑灵，清霜赠你“霜华剑符”并结下道友之谊 | T65: =IF(R65="","","-"&VLOOKUP(R65,EventConditionConfig!A:C,3,FALSE)&IF(S65="","",CHAR(10)&"-"&VLOOKUP(S65,EventConditionConfig!A:C,3,FALSE))) ->  | AI65: 5057
A66: 9006 | L66: 5058 | M66: 你察觉谷中灵气匮乏，清霜剑意凝滞。神识探查得知，附近秘境可采集“玄冰花” | T66: =IF(R66="","","-"&VLOOKUP(R66,EventConditionConfig!A:C,3,FALSE)&IF(S66="","",CHAR(10)&"-"&VLOOKUP(S66,EventConditionConfig!A:C,3,FALSE))) ->  | AI66: 5058
A67: 9007 | L67: 5059 | M67: 献上玄冰花，清霜炼化灵气突破瓶颈，赠你“玄霜剑意” | T67: =IF(R67="","","-"&VLOOKUP(R67,EventConditionConfig!A:C,3,FALSE)&IF(S67="","",CHAR(10)&"-"&VLOOKUP(S67,EventConditionConfig!A:C,3,FALSE))) ->  | U67: 4 | AF67: 1 | AG67: 9007 | AI67: 5059
A68: 9008 | T68: =IF(R68="","","-"&VLOOKUP(R68,EventConditionConfig!A:C,3,FALSE)&IF(S68="","",CHAR(10)&"-"&VLOOKUP(S68,EventConditionConfig!A:C,3,FALSE))) ->  | U68: 3 | AD68: 1001 | AE68: 999 | AI68: 5059
T69: =IF(R69="","","-"&VLOOKUP(R69,EventConditionConfig!A:C,3,FALSE)&IF(S69="","",CHAR(10)&"-"&VLOOKUP(S69,EventConditionConfig!A:C,3,FALSE))) -> 
A70: 9025 | B70: =IF(C70="","",IF(C70=C69,B69,MAX(AI69,AI68)+1)) ->  | D70: =IF(E70="","",IF(E70=E69,D69,MAX(AI69,AI68,B70)+1)) -> 5060 | E70: 和惠子交谈 | L70: =IF(M70="","",MAX(AI69,AI68,B70,D70)+1) -> 5061 | M70: 惠子种的葫芦没用，他非常生气，需要打败魔休 | P70: =IF(O70="","",IF(O70=O69,P69+1,1)) ->  | T70: =IF(R70="","","-"&VLOOKUP(R70,EventConditionConfig!A:C,3,FALSE)&IF(S70="","",CHAR(10)&"-"&VLOOKUP(S70,EventConditionConfig!A:C,3,FALSE))) ->  | U70: 1 | V70: 9026 | W70: 2075 | X70: =IF(OR(ISNUMBER(Y70),Y70=""),"",MAX(AI69,AI68,B70,D70,L70)+1) ->  | AA70: =IF(OR(ISNUMBER(AB70),AB70=""),"",X70+1) ->  | AI70: =IF(A70="","",MAX(B70,D70,L70,X70,AA70,AI69,AI68)) -> 5061
A71: 9026 | L71: 5062 | M71: 选择后接新的事件 | T71: =IF(R71="","","-"&VLOOKUP(R71,EventConditionConfig!A:C,3,FALSE)&IF(S71="","",CHAR(10)&"-"&VLOOKUP(S71,EventConditionConfig!A:C,3,FALSE))) ->  | X71: 5063 | Y71: 接受任务 | AF71: 3 | AG71: 9014 | AI71: 5063
T72: =IF(R72="","","-"&VLOOKUP(R72,EventConditionConfig!A:C,3,FALSE)&IF(S72="","",CHAR(10)&"-"&VLOOKUP(S72,EventConditionConfig!A:C,3,FALSE))) -> 
A73: 9014 | D73: 5064 | E73: 击杀魔休 | Q73: 3 | R73: 3 | T73: =IF(R73="","","-"&VLOOKUP(R73,EventConditionConfig!A:C,3,FALSE)&IF(S73="","",CHAR(10)&"-"&VLOOKUP(S73,EventConditionConfig!A:C,3,FALSE))) -> -击杀魔休 | AI73: 5064
Q74: =_xlfn.TEXTJOIN(";",1,R74:S74) ->  | T74: =IF(R74="","","-"&VLOOKUP(R74,EventConditionConfig!A:C,3,FALSE)&IF(S74="","",CHAR(10)&"-"&VLOOKUP(S74,EventConditionConfig!A:C,3,FALSE))) -> 
A75: 9031 | B75: 5065 | C75: 出现Boss魔修 | D75: 5066 | E75: 打败魔修 | T75: =IF(R75="","","-"&VLOOKUP(R75,EventConditionConfig!A:C,3,FALSE)&IF(S75="","",CHAR(10)&"-"&VLOOKUP(S75,EventConditionConfig!A:C,3,FALSE))) ->  | U75: 2 | V75: 100001 | AI75: 5066
T76: =IF(R76="","","-"&VLOOKUP(R76,EventConditionConfig!A:C,3,FALSE)&IF(S76="","",CHAR(10)&"-"&VLOOKUP(S76,EventConditionConfig!A:C,3,FALSE))) -> 
A77: =O77*100+P77 -> 1000101 | B77: 5067 | C77: 使用风铃唤醒还未泯灭的神识 | L77: 5068 | M77: 北冥有鱼，其名为鲲…… | N77: 2 | O77: 10001 | P77: 1 | T77: =IF(R77="","","-"&VLOOKUP(R77,EventConditionConfig!A:C,3,FALSE)&IF(S77="","",CHAR(10)&"-"&VLOOKUP(S77,EventConditionConfig!A:C,3,FALSE))) ->  | AF77: =IF(A77="","",IF(ISNUMBER(Y77),2,IF(A78="",IF(OR(AH77>0,VLOOKUP(O77,EventConfig!A:C,3,FALSE)=4),3,""),1))) -> 1 | AG77: =IF(AF77="","",CHOOSE(AF77,IF(AH77="",A77+1,AH77),CONCATENATE(IF(AH77="",A77+1,AH77),";101"),IF(AH77="",O77+1,AH77))) -> 1000102 | AI77: 5068
A78: =O78*100+P78 -> 1000102 | B78: 5067 | C78: 使用风铃唤醒还未泯灭的神识 | L78: 5069 | M78: 不过北海遥远，何时能寻得鲲鹏的踪迹。 | N78: 2 | O78: 10001 | P78: 2 | T78: =IF(R78="","","-"&VLOOKUP(R78,EventConditionConfig!A:C,3,FALSE)&IF(S78="","",CHAR(10)&"-"&VLOOKUP(S78,EventConditionConfig!A:C,3,FALSE))) ->  | AF78: =IF(A78="","",IF(ISNUMBER(Y78),2,IF(A79="",IF(OR(AH78>0,VLOOKUP(O78,EventConfig!A:C,3,FALSE)=4),3,""),1))) -> 1 | AG78: =IF(AF78="","",CHOOSE(AF78,IF(AH78="",A78+1,AH78),CONCATENATE(IF(AH78="",A78+1,AH78),";101"),IF(AH78="",O78+1,AH78))) -> 1000103 | AI78: 5069
A79: =O79*100+P79 -> 1000103 | B79: 5067 | C79: 使用风铃唤醒还未泯灭的神识 | L79: 5070 | M79: 好在我的神识尚在，可探天地，再加上刚刚的风铃，或许能寻得前路线索。 | N79: 2 | O79: 10001 | P79: 3 | T79: =IF(R79="","","-"&VLOOKUP(R79,EventConditionConfig!A:C,3,FALSE)&IF(S79="","",CHAR(10)&"-"&VLOOKUP(S79,EventConditionConfig!A:C,3,FALSE))) ->  | AF79: =IF(A79="","",IF(ISNUMBER(Y79),2,IF(A80="",IF(OR(AH79>0,VLOOKUP(O79,EventConfig!A:C,3,FALSE)=4),3,""),1))) -> 1 | AG79: 1000104 | AI79: 5070
A80: =O80*100+P80 -> 1000104 | B80: 5067 | C80: 使用风铃唤醒还未泯灭的神识 | O80: 10001 | P80: 4 | Q80: 5 | R80: 5 | T80: =IF(R80="","","-"&VLOOKUP(R80,EventConditionConfig!A:C,3,FALSE)&IF(S80="","",CHAR(10)&"-"&VLOOKUP(S80,EventConditionConfig!A:C,3,FALSE))) -> -使用神识 | AF80: =IF(A80="","",IF(ISNUMBER(Y80),2,IF(A81="",IF(OR(AH80>0,VLOOKUP(O80,EventConfig!A:C,3,FALSE)=4),3,""),1))) -> 3 | AG80: 10002 | AI80: 5070
T81: =IF(R81="","","-"&VLOOKUP(R81,EventConditionConfig!A:C,3,FALSE)&IF(S81="","",CHAR(10)&"-"&VLOOKUP(S81,EventConditionConfig!A:C,3,FALSE))) ->  | AF81: =IF(A81="","",IF(ISNUMBER(Y81),2,IF(A82="",IF(OR(AH81>0,VLOOKUP(O81,EventConfig!A:C,3,FALSE)=4),3,""),1))) -> 
A82: =O82*100+P82 -> 1000201 | B82: 5071 | C82: 前往妖兽盘踞的地方 | D82: 5072 | E82: 御剑飞行 | L82: 5073 | M82: 神识发现有一条古径，隐于云山之间，不过似乎有妖兽盘踞。 | N82: 3 | O82: 10002 | P82: 1 | T82: =IF(R82="","","-"&VLOOKUP(R82,EventConditionConfig!A:C,3,FALSE)&IF(S82="","",CHAR(10)&"-"&VLOOKUP(S82,EventConditionConfig!A:C,3,FALSE))) ->  | AF82: =IF(A82="","",IF(ISNUMBER(Y82),2,IF(A83="",IF(OR(AH82>0,VLOOKUP(O82,EventConfig!A:C,3,FALSE)=4),3,""),1))) -> 1 | AG82: 1000202 | AI82: 5073
A83: =O83*100+P83 -> 1000202 | B83: 5071 | C83: 前往妖兽盘踞的地方 | D83: 5072 | E83: 御剑飞行 | L83: 5074 | M83: 没其他办法了，过去看看吧。 | N83: 3 | O83: 10002 | P83: 2 | T83: =IF(R83="","","-"&VLOOKUP(R83,EventConditionConfig!A:C,3,FALSE)&IF(S83="","",CHAR(10)&"-"&VLOOKUP(S83,EventConditionConfig!A:C,3,FALSE))) ->  | AF83: =IF(A83="","",IF(ISNUMBER(Y83),2,IF(A84="",IF(OR(AH83>0,VLOOKUP(O83,EventConfig!A:C,3,FALSE)=4),3,""),1))) -> 1 | AG83: 1000203 | AI83: 5074
A84: =O84*100+P84 -> 1000203 | B84: 5071 | C84: 前往妖兽盘踞的地方 | D84: 5072 | E84: 御剑飞行 | G84: 1 | H84: 1 | O84: 10002 | P84: 3 | T84: =IF(R84="","","-"&VLOOKUP(R84,EventConditionConfig!A:C,3,FALSE)&IF(S84="","",CHAR(10)&"-"&VLOOKUP(S84,EventConditionConfig!A:C,3,FALSE))) ->  | AF84: =IF(A84="","",IF(ISNUMBER(Y84),2,IF(A85="",IF(OR(AH84>0,VLOOKUP(O84,EventConfig!A:C,3,FALSE)=4),3,""),1))) -> 3 | AG84: 10003 | AI84: 5074
T85: =IF(R85="","","-"&VLOOKUP(R85,EventConditionConfig!A:C,3,FALSE)&IF(S85="","",CHAR(10)&"-"&VLOOKUP(S85,EventConditionConfig!A:C,3,FALSE))) ->  | AF85: =IF(A85="","",IF(ISNUMBER(Y85),2,IF(A86="",IF(OR(AH85>0,VLOOKUP(O85,EventConfig!A:C,3,FALSE)=4),3,""),1))) -> 
A86: 1000301 | B86: 5075 | C86: 蜩鸟和小麻雀对你的到来很好奇 | K86: =IF(J86="","",VLOOKUP(J86,EventNPC!A:E,5,FALSE)) ->  | L86: 5076 | M86: 应该就是这里了，似乎有古老的阵法挡住了去路 | O86: 10003 | P86: 1 | T86: =IF(R86="","","-"&VLOOKUP(R86,EventConditionConfig!A:C,3,FALSE)&IF(S86="","",CHAR(10)&"-"&VLOOKUP(S86,EventConditionConfig!A:C,3,FALSE))) ->  | AF86: =IF(A86="","",IF(ISNUMBER(Y86),2,IF(A87="",IF(OR(AH86>0,VLOOKUP(O86,EventConfig!A:C,3,FALSE)=4),3,""),1))) -> 1 | AG86: 1000302 | AI86: 5076
A87: =O87*100+P87 -> 1000302 | B87: 5075 | C87: 蜩鸟和小麻雀对你的到来很好奇 | K87: =IF(J87="","",VLOOKUP(J87,EventNPC!A:E,5,FALSE)) ->  | L87: 5077 | M87: （结界门前，三只小鸟飞来，落在一旁古松上） | O87: 10003 | P87: 2 | T87: =IF(R87="","","-"&VLOOKUP(R87,EventConditionConfig!A:C,3,FALSE)&IF(S87="","",CHAR(10)&"-"&VLOOKUP(S87,EventConditionConfig!A:C,3,FALSE))) ->  | AF87: =IF(A87="","",IF(ISNUMBER(Y87),2,IF(A88="",IF(OR(AH87>0,VLOOKUP(O87,EventConfig!A:C,3,FALSE)=4),3,""),1))) -> 1 | AG87: 1000303 | AI87: 5077
A88: =O88*100+P88 -> 1000303 | B88: 5075 | C88: 蜩鸟和小麻雀对你的到来很好奇 | J88: 101 | K88: =IF(J88="","",VLOOKUP(J88,EventNPC!A:E,5,FALSE)) -> 蜩鸟 | L88: 5078 | M88: （拍翅）：“咦？又是妄图穿行北海之人？” | O88: 10003 | P88: 3 | T88: =IF(R88="","","-"&VLOOKUP(R88,EventConditionConfig!A:C,3,FALSE)&IF(S88="","",CHAR(10)&"-"&VLOOKUP(S88,EventConditionConfig!A:C,3,FALSE))) ->  | U88: 1 | V88: =A89 -> 1000304 | W88: =_xlfn.TEXTJOIN(";",1,X88,AA88) -> 5079 | X88: 5079 | Y88: 我在寻找鲲鹏，你们知道它在哪里吗？ | AF88: =IF(A88="","",IF(ISNUMBER(Y88),2,IF(A89="",IF(OR(AH88>0,VLOOKUP(O88,EventConfig!A:C,3,FALSE)=4),3,""),1))) -> 1 | AG88: 1000304 | AI88: 5079
A89: =O89*100+P89 -> 1000304 | B89: 5075 | C89: 蜩鸟和小麻雀对你的到来很好奇 | J89: 102 | K89: =IF(J89="","",VLOOKUP(J89,EventNPC!A:E,5,FALSE)) -> 小麻雀 | L89: 5080 | M89: （扑棱翅膀）是想要从北海飞往南海的超级大鸟吧？ | O89: 10003 | P89: 4 | T89: =IF(R89="","","-"&VLOOKUP(R89,EventConditionConfig!A:C,3,FALSE)&IF(S89="","",CHAR(10)&"-"&VLOOKUP(S89,EventConditionConfig!A:C,3,FALSE))) ->  | AF89: =IF(A89="","",IF(ISNUMBER(Y89),2,IF(A90="",IF(OR(AH89>0,VLOOKUP(O89,EventConfig!A:C,3,FALSE)=4),3,""),1))) -> 1 | AG89: 1000305 | AI89: 5080
A90: =O90*100+P90 -> 1000305 | B90: 5075 | C90: 蜩鸟和小麻雀对你的到来很好奇 | J90: 102 | K90: =IF(J90="","",VLOOKUP(J90,EventNPC!A:E,5,FALSE)) -> 小麻雀 | L90: 5081 | M90: 我就想不明白，她为何要飞如此之远，太奇怪啦！ | O90: 10003 | P90: 5 | T90: =IF(R90="","","-"&VLOOKUP(R90,EventConditionConfig!A:C,3,FALSE)&IF(S90="","",CHAR(10)&"-"&VLOOKUP(S90,EventConditionConfig!A:C,3,FALSE))) ->  | U90: 1 | V90: =A91 -> 1000306 | W90: 5082 | X90: 5082 | Y90: 鲲鹏是在追求心中的目标吧。 | AF90: =IF(A90="","",IF(ISNUMBER(Y90),2,IF(A91="",IF(OR(AH90>0,VLOOKUP(O90,EventConfig!A:C,3,FALSE)=4),3,""),1))) -> 1 | AG90: 1000306 | AI90: 5082
A91: =O91*100+P91 -> 1000306 | B91: 5075 | C91: 蜩鸟和小麻雀对你的到来很好奇 | J91: 102 | K91: =IF(J91="","",VLOOKUP(J91,EventNPC!A:E,5,FALSE)) -> 小麻雀 | L91: 5083 | M91: （偏头想了想）目标？我天天在这里上蹿下跳，在附近树林飞来飞去，就已经很幸福啦。 | O91: 10003 | P91: 6 | T91: =IF(R91="","","-"&VLOOKUP(R91,EventConditionConfig!A:C,3,FALSE)&IF(S91="","",CHAR(10)&"-"&VLOOKUP(S91,EventConditionConfig!A:C,3,FALSE))) ->  | AF91: =IF(A91="","",IF(ISNUMBER(Y91),2,IF(A92="",IF(OR(AH91>0,VLOOKUP(O91,EventConfig!A:C,3,FALSE)=4),3,""),1))) -> 1 | AG91: 1000307 | AI91: 5083
A92: =O92*100+P92 -> 1000307 | B92: 5075 | C92: 蜩鸟和小麻雀对你的到来很好奇 | J92: 102 | K92: =IF(J92="","",VLOOKUP(J92,EventNPC!A:E,5,FALSE)) -> 小麻雀 | L92: 5084 | M92: 就那大傻鸟，非要飞那么远，又笨又蠢...真没意思。 | O92: 10003 | P92: 7 | T92: =IF(R92="","","-"&VLOOKUP(R92,EventConditionConfig!A:C,3,FALSE)&IF(S92="","",CHAR(10)&"-"&VLOOKUP(S92,EventConditionConfig!A:C,3,FALSE))) ->  | U92: 1 | V92: =IF(U92=1,_xlfn.TEXTJOIN(";",1,IF(Z92="",A92+1,Z92),IF(AND(AA92<>"",AC92=""),A92+1,AC92)),IF(U92=2,Y92,"")) -> 1000308;1000308 | W92: 5085;5086 | X92: 5085 | Y92: 你说得也有一定道理… | AA92: 5086 | AB92: 你懂什么..这大鹏鸟可比你更有志向多了。 | AF92: =IF(A92="","",IF(ISNUMBER(Y92),2,IF(A93="",IF(OR(AH92>0,VLOOKUP(O92,EventConfig!A:C,3,FALSE)=4),3,""),1))) -> 1 | AG92: 1000308 | AI92: 5086
A93: =O93*100+P93 -> 1000308 | B93: 5075 | C93: 蜩鸟和小麻雀对你的到来很好奇 | J93: 101 | K93: =IF(J93="","",VLOOKUP(J93,EventNPC!A:E,5,FALSE)) -> 蜩鸟 | L93: 5087 | M93: （翻飞一圈）志向有什么用？到头来还不是风停了就落地。 | O93: 10003 | P93: 8 | T93: =IF(R93="","","-"&VLOOKUP(R93,EventConditionConfig!A:C,3,FALSE)&IF(S93="","",CHAR(10)&"-"&VLOOKUP(S93,EventConditionConfig!A:C,3,FALSE))) ->  | U93: 1 | V93: =A94 -> 1000309 | W93: 5088 | X93: 5088 | Y93: ...... | AF93: =IF(A93="","",IF(ISNUMBER(Y93),2,IF(A94="",IF(OR(AH93>0,VLOOKUP(O93,EventConfig!A:C,3,FALSE)=4),3,""),1))) -> 1 | AG93: 1000309 | AI93: 5088
A94: =O94*100+P94 -> 1000309 | B94: 5075 | C94: 蜩鸟和小麻雀对你的到来很好奇 | K94: =IF(J94="","",VLOOKUP(J94,EventNPC!A:E,5,FALSE)) ->  | L94: 5089 | M94: （此时，结界微动，一缕风穿林而过，古径阵法竟有一丝松动） | O94: 10003 | P94: 9 | T94: =IF(R94="","","-"&VLOOKUP(R94,EventConditionConfig!A:C,3,FALSE)&IF(S94="","",CHAR(10)&"-"&VLOOKUP(S94,EventConditionConfig!A:C,3,FALSE))) ->  | AF94: =IF(A94="","",IF(ISNUMBER(Y94),2,IF(A95="",IF(OR(AH94>0,VLOOKUP(O94,EventConfig!A:C,3,FALSE)=4),3,""),1))) -> 3 | AG94: 10004 | AI94: 5089
T95: =IF(R95="","","-"&VLOOKUP(R95,EventConditionConfig!A:C,3,FALSE)&IF(S95="","",CHAR(10)&"-"&VLOOKUP(S95,EventConditionConfig!A:C,3,FALSE))) ->  | AF95: =IF(A95="","",IF(ISNUMBER(Y95),2,IF(A96="",IF(OR(AH95>0,VLOOKUP(O95,EventConfig!A:C,3,FALSE)=4),3,""),1))) -> 
A96: =O96*100+P96 -> 1000401 | B96: 5090 | C96: 原来它们就是镇守阵法的结界兽 | D96: 5091 | E96: 击败结界兽 | J96: 101 | K96: =IF(J96="","",VLOOKUP(J96,EventNPC!A:E,5,FALSE)) -> 蜩鸟 | L96: 5092 | M96: 这结界似乎有所反应… | O96: 10004 | P96: 1 | T96: =IF(R96="","","-"&VLOOKUP(R96,EventConditionConfig!A:C,3,FALSE)&IF(S96="","",CHAR(10)&"-"&VLOOKUP(S96,EventConditionConfig!A:C,3,FALSE))) ->  | U96: 1 | V96: =A97 -> 1000402 | W96: =_xlfn.TEXTJOIN(";",1,X96,AA96) -> 5093 | X96: 5093 | Y96: 与你们聊天很有意思，不过今天我是非过去不可，没人能阻止我重返仙途！ | AF96: =IF(A96="","",IF(ISNUMBER(Y96),2,IF(A97="",IF(OR(AH96>0,VLOOKUP(O96,EventConfig!A:C,3,FALSE)=4),3,""),1))) -> 1 | AG96: 1000402 | AI96: 5093
A97: =O97*100+P97 -> 1000402 | B97: 5090 | C97: 原来它们就是镇守阵法的结界兽 | D97: 5091 | E97: 击败结界兽 | J97: 102 | K97: =IF(J97="","",VLOOKUP(J97,EventNPC!A:E,5,FALSE)) -> 小麻雀 | L97: 5094 | M97: "小鸟.."现身吧！ | O97: 10004 | P97: 2 | T97: =IF(R97="","","-"&VLOOKUP(R97,EventConditionConfig!A:C,3,FALSE)&IF(S97="","",CHAR(10)&"-"&VLOOKUP(S97,EventConditionConfig!A:C,3,FALSE))) ->  | W97: =_xlfn.TEXTJOIN(";",1,X97,AA97) ->  | AF97: =IF(A97="","",IF(ISNUMBER(Y97),2,IF(A98="",IF(OR(AH97>0,VLOOKUP(O97,EventConfig!A:C,3,FALSE)=4),3,""),1))) -> 1 | AG97: 1000403 | AI97: 5094
A98: =O98*100+P98 -> 1000403 | B98: 5090 | C98: 原来它们就是镇守阵法的结界兽 | D98: 5091 | E98: 击败结界兽 | J98: 101 | K98: =IF(J98="","",VLOOKUP(J98,EventNPC!A:E,5,FALSE)) -> 蜩鸟 | L98: 5095 | M98: （轻轻飞下来..）又来...来吧来吧.. | O98: 10004 | P98: 3 | T98: =IF(R98="","","-"&VLOOKUP(R98,EventConditionConfig!A:C,3,FALSE)&IF(S98="","",CHAR(10)&"-"&VLOOKUP(S98,EventConditionConfig!A:C,3,FALSE))) ->  | U98: =IF(Y98="","",IF(ISTEXT(Y98),1,2)) -> 2 | V98: =IF(U98=1,_xlfn.TEXTJOIN(";",1,IF(Z98="",A98+1,Z98),IF(AND(AA98<>"",AC98=""),A98+1,AC98)),IF(U98=2,Y98,"")) -> 1002 | W98: =_xlfn.TEXTJOIN(";",1,X98,AA98) ->  | Y98: 1002 | AF98: =IF(A98="","",IF(ISNUMBER(Y98),2,IF(A99="",IF(OR(AH98>0,VLOOKUP(O98,EventConfig!A:C,3,FALSE)=4),3,""),1))) -> 2 | AG98: 1000404;101 | AI98: 5095
A99: =O99*100+P99 -> 1000404 | B99: 5090 | C99: 原来它们就是镇守阵法的结界兽 | J99: 102 | K99: =IF(J99="","",VLOOKUP(J99,EventNPC!A:E,5,FALSE)) -> 小麻雀 | L99: 5096 | M99: 这么想过去，就去吧... | O99: 10004 | P99: 4 | T99: =IF(R99="","","-"&VLOOKUP(R99,EventConditionConfig!A:C,3,FALSE)&IF(S99="","",CHAR(10)&"-"&VLOOKUP(S99,EventConditionConfig!A:C,3,FALSE))) ->  | AF99: =IF(A99="","",IF(ISNUMBER(Y99),2,IF(A100="",IF(OR(AH99>0,VLOOKUP(O99,EventConfig!A:C,3,FALSE)=4),3,""),1))) -> 3 | AG99: 10005 | AI99: 5096
T100: =IF(R100="","","-"&VLOOKUP(R100,EventConditionConfig!A:C,3,FALSE)&IF(S100="","",CHAR(10)&"-"&VLOOKUP(S100,EventConditionConfig!A:C,3,FALSE))) ->  | AF100: =IF(A100="","",IF(ISNUMBER(Y100),2,IF(A101="",IF(OR(AH100>0,VLOOKUP(O100,EventConfig!A:C,3,FALSE)=4),3,""),1))) -> 
A101: =O101*100+P101 -> 1000501 | B101: 5097 | C101: 初见疯道人 | K101: =IF(J101="","",VLOOKUP(J101,EventNPC!A:E,5,FALSE)) ->  | L101: 5098 | M101: 你穿过古径结界，来到一片被风托起的浮空灵岛群。 | O101: 10005 | P101: 1 | T101: =IF(R101="","","-"&VLOOKUP(R101,EventConditionConfig!A:C,3,FALSE)&IF(S101="","",CHAR(10)&"-"&VLOOKUP(S101,EventConditionConfig!A:C,3,FALSE))) ->  | W101: =_xlfn.TEXTJOIN(";",1,X101,AA101) ->  | AF101: =IF(A101="","",IF(ISNUMBER(Y101),2,IF(A102="",IF(OR(AH101>0,VLOOKUP(O101,EventConfig!A:C,3,FALSE)=4),3,""),1))) -> 1 | AG101: 1000502 | AI101: 5098
A102: =O102*100+P102 -> 1000502 | B102: 5097 | C102: 初见疯道人 | K102: =IF(J102="","",VLOOKUP(J102,EventNPC!A:E,5,FALSE)) ->  | L102: 5099 | M102: 风势强劲，岛与岛之间缝隙深不见底，无桥无梯。 | O102: 10005 | P102: 2 | T102: =IF(R102="","","-"&VLOOKUP(R102,EventConditionConfig!A:C,3,FALSE)&IF(S102="","",CHAR(10)&"-"&VLOOKUP(S102,EventConditionConfig!A:C,3,FALSE))) ->  | AF102: =IF(A102="","",IF(ISNUMBER(Y102),2,IF(A103="",IF(OR(AH102>0,VLOOKUP(O102,EventConfig!A:C,3,FALSE)=4),3,""),1))) -> 1 | AG102: 1000503 | AI102: 5099
A103: =O103*100+P103 -> 1000503 | B103: 5097 | C103: 初见疯道人 | K103: =IF(J103="","",VLOOKUP(J103,EventNPC!A:E,5,FALSE)) ->  | L103: 5100 | M103: 此处盘踞一位神秘道人，常独自站在岛边望风，仿佛等待什么。 | O103: 10005 | P103: 3 | T103: =IF(R103="","","-"&VLOOKUP(R103,EventConditionConfig!A:C,3,FALSE)&IF(S103="","",CHAR(10)&"-"&VLOOKUP(S103,EventConditionConfig!A:C,3,FALSE))) ->  | AF103: =IF(A103="","",IF(ISNUMBER(Y103),2,IF(A104="",IF(OR(AH103>0,VLOOKUP(O103,EventConfig!A:C,3,FALSE)=4),3,""),1))) -> 1 | AG103: 1000504 | AI103: 5100
A104: =O104*100+P104 -> 1000504 | B104: 5097 | C104: 初见疯道人 | K104: =IF(J104="","",VLOOKUP(J104,EventNPC!A:E,5,FALSE)) ->  | L104: 5101 | M104: （你尝试御剑，却在风中打转，被吹回原地） | O104: 10005 | P104: 4 | T104: =IF(R104="","","-"&VLOOKUP(R104,EventConditionConfig!A:C,3,FALSE)&IF(S104="","",CHAR(10)&"-"&VLOOKUP(S104,EventConditionConfig!A:C,3,FALSE))) ->  | U104: 1 | V104: =A105 -> 1000505 | W104: 5102 | X104: 5102 | Y104: 前辈，这里的风太大，我无法飞行，请教如何才能通过？ | AF104: =IF(A104="","",IF(ISNUMBER(Y104),2,IF(A105="",IF(OR(AH104>0,VLOOKUP(O104,EventConfig!A:C,3,FALSE)=4),3,""),1))) -> 1 | AG104: 1000505 | AI104: 5102
A105: 1000505 | B105: 5097 | C105: 初见疯道人 | J105: 103 | K105: =IF(J105="","",VLOOKUP(J105,EventNPC!A:E,5,FALSE)) -> 疯道人 | L105: 5103 | M105: ...... | O105: 10005 | P105: 5 | T105: =IF(R105="","","-"&VLOOKUP(R105,EventConditionConfig!A:C,3,FALSE)&IF(S105="","",CHAR(10)&"-"&VLOOKUP(S105,EventConditionConfig!A:C,3,FALSE))) ->  | U105: 1 | V105: =A106 -> 1000506 | W105: 5104 | X105: 5104 | Y105: 前辈，我准备前往北海深处，寻鲲鹏。 | AF105: =IF(A105="","",IF(ISNUMBER(Y105),2,IF(A106="",IF(OR(AH105>0,VLOOKUP(O105,EventConfig!A:C,3,FALSE)=4),3,""),1))) -> 1 | AG105: 1000506 | AI105: 5104
A106: 1000506 | B106: 5097 | C106: 初见疯道人 | J106: 103 | K106: =IF(J106="","",VLOOKUP(J106,EventNPC!A:E,5,FALSE)) -> 疯道人 | L106: 5105 | M106: 鲲鹏？……世间竟还有人记得它。 | O106: 10005 | P106: 6 | T106: =IF(R106="","","-"&VLOOKUP(R106,EventConditionConfig!A:C,3,FALSE)&IF(S106="","",CHAR(10)&"-"&VLOOKUP(S106,EventConditionConfig!A:C,3,FALSE))) ->  | AF106: =IF(A106="","",IF(ISNUMBER(Y106),2,IF(A107="",IF(OR(AH106>0,VLOOKUP(O106,EventConfig!A:C,3,FALSE)=4),3,""),1))) -> 1 | AG106: 1000507 | AI106: 5105
A107: =O107*100+P107 -> 1000507 | B107: 5097 | C107: 初见疯道人 | J107: 103 | K107: =IF(J107="","",VLOOKUP(J107,EventNPC!A:E,5,FALSE)) -> 疯道人 | L107: 5106 | M107: （说着从手中掏出一个碎片，往空中一震，瞬间风停）过来吧。 | O107: 10005 | P107: 7 | T107: =IF(R107="","","-"&VLOOKUP(R107,EventConditionConfig!A:C,3,FALSE)&IF(S107="","",CHAR(10)&"-"&VLOOKUP(S107,EventConditionConfig!A:C,3,FALSE))) ->  | AF107: =IF(A107="","",IF(ISNUMBER(Y107),2,IF(A108="",IF(OR(AH107>0,VLOOKUP(O107,EventConfig!A:C,3,FALSE)=4),3,""),1))) -> 1 | AG107: 1000508 | AI107: 5106
A108: =O108*100+P108 -> 1000508 | B108: 5097 | C108: 初见疯道人 | J108: 103 | K108: =IF(J108="","",VLOOKUP(J108,EventNPC!A:E,5,FALSE)) -> 疯道人 | L108: 5107 | M108: 说吧，为何寻那鲲鹏？ | O108: 10005 | P108: 8 | T108: =IF(R108="","","-"&VLOOKUP(R108,EventConditionConfig!A:C,3,FALSE)&IF(S108="","",CHAR(10)&"-"&VLOOKUP(S108,EventConditionConfig!A:C,3,FALSE))) ->  | U108: 1 | V108: =IF(U108=1,_xlfn.TEXTJOIN(";",1,IF(Z108="",A108+1,Z108),IF(AND(AA108<>"",AC108=""),A108+1,AC108)),IF(U108=2,Y108,"")) -> 1000509;1000509 | W108: 5108;5109 | X108: 5108 | Y108: 冲虚真人让我去的 | AA108: 5109 | AB108: 我只是好奇.. | AF108: =IF(A108="","",IF(ISNUMBER(Y108),2,IF(A109="",IF(OR(AH108>0,VLOOKUP(O108,EventConfig!A:C,3,FALSE)=4),3,""),1))) -> 1 | AG108: 1000509 | AI108: 5109
A109: 1000509 | B109: 5097 | C109: 初见疯道人 | J109: 103 | K109: =IF(J109="","",VLOOKUP(J109,EventNPC!A:E,5,FALSE)) -> 疯道人 | L109: 5110 | M109: 你可知鹏飞九万里，需凭借龙卷风，才可达成？ | O109: 10005 | P109: 9 | T109: =IF(R109="","","-"&VLOOKUP(R109,EventConditionConfig!A:C,3,FALSE)&IF(S109="","",CHAR(10)&"-"&VLOOKUP(S109,EventConditionConfig!A:C,3,FALSE))) ->  | U109: 1 | V109: =A110 -> 1000510 | W109: 5111 | X109: 5111 | Y109: 请前辈赐教...... | AF109: =IF(A109="","",IF(ISNUMBER(Y109),2,IF(A110="",IF(OR(AH109>0,VLOOKUP(O109,EventConfig!A:C,3,FALSE)=4),3,""),1))) -> 1 | AG109: 1000510 | AI109: 5111
A110: 1000510 | B110: 5097 | C110: 初见疯道人 | J110: 103 | K110: =IF(J110="","",VLOOKUP(J110,EventNPC!A:E,5,FALSE)) -> 疯道人 | L110: 5112 | M110: 看你修为尚浅，跟你说多了也无用。 | O110: 10005 | P110: 10 | T110: =IF(R110="","","-"&VLOOKUP(R110,EventConditionConfig!A:C,3,FALSE)&IF(S110="","",CHAR(10)&"-"&VLOOKUP(S110,EventConditionConfig!A:C,3,FALSE))) ->  | AF110: =IF(A110="","",IF(ISNUMBER(Y110),2,IF(A111="",IF(OR(AH110>0,VLOOKUP(O110,EventConfig!A:C,3,FALSE)=4),3,""),1))) -> 1 | AG110: 1000511 | AI110: 5112
A111: =O111*100+P111 -> 1000511 | B111: 5097 | C111: 初见疯道人 | J111: 103 | K111: =IF(J111="","",VLOOKUP(J111,EventNPC!A:E,5,FALSE)) -> 疯道人 | L111: 5113 | M111: 再往前是我师弟的洞府了，他可不好说话。 | O111: 10005 | P111: 11 | T111: =IF(R111="","","-"&VLOOKUP(R111,EventConditionConfig!A:C,3,FALSE)&IF(S111="","",CHAR(10)&"-"&VLOOKUP(S111,EventConditionConfig!A:C,3,FALSE))) ->  | AF111: =IF(A111="","",IF(ISNUMBER(Y111),2,IF(A112="",IF(OR(AH111>0,VLOOKUP(O111,EventConfig!A:C,3,FALSE)=4),3,""),1))) -> 1 | AG111: 1000512 | AI111: 5113
A112: =O112*100+P112 -> 1000512 | B112: 5097 | C112: 初见疯道人 | J112: 103 | K112: =IF(J112="","",VLOOKUP(J112,EventNPC!A:E,5,FALSE)) -> 疯道人 | L112: 5114 | M112: 就在我这附近好好修炼吧，至少提升至筑基修为。 | O112: 10005 | P112: 12 | T112: =IF(R112="","","-"&VLOOKUP(R112,EventConditionConfig!A:C,3,FALSE)&IF(S112="","",CHAR(10)&"-"&VLOOKUP(S112,EventConditionConfig!A:C,3,FALSE))) ->  | U112: 1 | V112: =A113 -> 1000513 | W112: 5115 | X112: 5115 | Y112: 前辈为何如此助我？ | AF112: =IF(A112="","",IF(ISNUMBER(Y112),2,IF(A113="",IF(OR(AH112>0,VLOOKUP(O112,EventConfig!A:C,3,FALSE)=4),3,""),1))) -> 1 | AG112: 1000513 | AI112: 5115
A113: 1000513 | B113: 5097 | C113: 初见疯道人 | J113: 103 | K113: =IF(J113="","",VLOOKUP(J113,EventNPC!A:E,5,FALSE)) -> 疯道人 | L113: 5116 | M113: （疯道人望你一眼，没有回答，但丢过来一本功法）修到[筑基-中期]再来找我。 | O113: 10005 | P113: 13 | T113: =IF(R113="","","-"&VLOOKUP(R113,EventConditionConfig!A:C,3,FALSE)&IF(S113="","",CHAR(10)&"-"&VLOOKUP(S113,EventConditionConfig!A:C,3,FALSE))) ->  | AF113: =IF(A113="","",IF(ISNUMBER(Y113),2,IF(A114="",IF(OR(AH113>0,VLOOKUP(O113,EventConfig!A:C,3,FALSE)=4),3,""),1))) -> 1 | AG113: 1000514 | AI113: 5116
A114: =O114*100+P114 -> 1000514 | B114: 5097 | C114: 初见疯道人 | K114: =IF(J114="","",VLOOKUP(J114,EventNPC!A:E,5,FALSE)) ->  | O114: 10005 | P114: 14 | Q114: 2 | R114: 2 | T114: =IF(R114="","","-"&VLOOKUP(R114,EventConditionConfig!A:C,3,FALSE)&IF(S114="","",CHAR(10)&"-"&VLOOKUP(S114,EventConditionConfig!A:C,3,FALSE))) -> -达到境界：练气-中期 | AF114: =IF(A114="","",IF(ISNUMBER(Y114),2,IF(A115="",IF(OR(AH114>0,VLOOKUP(O114,EventConfig!A:C,3,FALSE)=4),3,""),1))) -> 3 | AG114: 10006 | AI114: 5116
T115: =IF(R115="","","-"&VLOOKUP(R115,EventConditionConfig!A:C,3,FALSE)&IF(S115="","",CHAR(10)&"-"&VLOOKUP(S115,EventConditionConfig!A:C,3,FALSE))) ->  | AF115: =IF(A115="","",IF(ISNUMBER(Y115),2,IF(A116="",IF(OR(AH115>0,VLOOKUP(O115,EventConfig!A:C,3,FALSE)=4),3,""),1))) -> 
A116: =O116*100+P116 -> 1000601 | B116: 5117 | C116: 疯道人赠与一半风灵珠 | J116: 103 | K116: =IF(J116="","",VLOOKUP(J116,EventNPC!A:E,5,FALSE)) -> 疯道人 | L116: 5118 | M116: 你已突破筑基前期达到中期，灵力通畅，是时候去会一会我的师弟了。 | O116: 10006 | P116: 1 | T116: =IF(R116="","","-"&VLOOKUP(R116,EventConditionConfig!A:C,3,FALSE)&IF(S116="","",CHAR(10)&"-"&VLOOKUP(S116,EventConditionConfig!A:C,3,FALSE))) ->  | U116: 1 | V116: 1000603;1000602 | W116: =_xlfn.TEXTJOIN(";",1,X116,AA116) -> 5119;5120 | X116: 5119 | Y116: 是的。鲲鹏之行，志在必达。 | AA116: 5120 | AB116: 看看风的尽头到底有什么。 | AF116: =IF(A116="","",IF(ISNUMBER(Y116),2,IF(A117="",IF(OR(AH116>0,VLOOKUP(O116,EventConfig!A:C,3,FALSE)=4),3,""),1))) -> 1 | AG116: 1000602 | AI116: 5120
A117: =O117*100+P117 -> 1000602 | B117: 5117 | C117: 疯道人赠与一半风灵珠 | J117: 103 | K117: =IF(J117="","",VLOOKUP(J117,EventNPC!A:E,5,FALSE)) -> 疯道人 | L117: 5121 | M117: （轻轻一笑）你说风的尽头……我也曾想看。 （他望向远处翻涌的云海） | O117: 10006 | P117: 2 | T117: =IF(R117="","","-"&VLOOKUP(R117,EventConditionConfig!A:C,3,FALSE)&IF(S117="","",CHAR(10)&"-"&VLOOKUP(S117,EventConditionConfig!A:C,3,FALSE))) ->  | U117: 1 | V117: =A118 -> 1000603 | W117: 2140 | X117: 5122 | Y117: 是的。鲲鹏之行，志在必达。 | AF117: =IF(A117="","",IF(ISNUMBER(Y117),2,IF(A118="",IF(OR(AH117>0,VLOOKUP(O117,EventConfig!A:C,3,FALSE)=4),3,""),1))) -> 1 | AG117: 1000603 | AI117: 5122
A118: =O118*100+P118 -> 1000603 | B118: 5117 | C118: 疯道人赠与一半风灵珠 | J118: 103 | K118: =IF(J118="","",VLOOKUP(J118,EventNPC!A:E,5,FALSE)) -> 疯道人 | L118: 5123 | M118: 我和师弟，共守这处风眼多年。我想出去，他却偏要留。 | O118: 10006 | P118: 3 | T118: =IF(R118="","","-"&VLOOKUP(R118,EventConditionConfig!A:C,3,FALSE)&IF(S118="","",CHAR(10)&"-"&VLOOKUP(S118,EventConditionConfig!A:C,3,FALSE))) ->  | AF118: =IF(A118="","",IF(ISNUMBER(Y118),2,IF(A119="",IF(OR(AH118>0,VLOOKUP(O118,EventConfig!A:C,3,FALSE)=4),3,""),1))) -> 1 | AG118: 1000604 | AI118: 5123
A119: =O119*100+P119 -> 1000604 | B119: 5117 | C119: 疯道人赠与一半风灵珠 | J119: 103 | K119: =IF(J119="","",VLOOKUP(J119,EventNPC!A:E,5,FALSE)) -> 疯道人 | L119: 5124 | M119: 风灵珠碎成两半，一半在我这里，另一半……在他洞府中。 | O119: 10006 | P119: 4 | T119: =IF(R119="","","-"&VLOOKUP(R119,EventConditionConfig!A:C,3,FALSE)&IF(S119="","",CHAR(10)&"-"&VLOOKUP(S119,EventConditionConfig!A:C,3,FALSE))) ->  | AF119: =IF(A119="","",IF(ISNUMBER(Y119),2,IF(A120="",IF(OR(AH119>0,VLOOKUP(O119,EventConfig!A:C,3,FALSE)=4),3,""),1))) -> 1 | AG119: 1000605 | AI119: 5124
A120: =O120*100+P120 -> 1000605 | B120: 5117 | C120: 疯道人赠与一半风灵珠 | J120: 103 | K120: =IF(J120="","",VLOOKUP(J120,EventNPC!A:E,5,FALSE)) -> 疯道人 | L120: 5125 | M120: 你若想见鲲鹏，必须要集齐整个风灵珠。 | O120: 10006 | P120: 5 | T120: =IF(R120="","","-"&VLOOKUP(R120,EventConditionConfig!A:C,3,FALSE)&IF(S120="","",CHAR(10)&"-"&VLOOKUP(S120,EventConditionConfig!A:C,3,FALSE))) ->  | AF120: =IF(A120="","",IF(ISNUMBER(Y120),2,IF(A121="",IF(OR(AH120>0,VLOOKUP(O120,EventConfig!A:C,3,FALSE)=4),3,""),1))) -> 1 | AG120: 1000606 | AI120: 5125
A121: =O121*100+P121 -> 1000606 | B121: 5117 | C121: 疯道人赠与一半风灵珠 | J121: 103 | K121: =IF(J121="","",VLOOKUP(J121,EventNPC!A:E,5,FALSE)) -> 疯道人 | L121: 5126 | M121: 我这一半给你，可助你在大风中，来去自如。 | O121: 10006 | P121: 6 | T121: =IF(R121="","","-"&VLOOKUP(R121,EventConditionConfig!A:C,3,FALSE)&IF(S121="","",CHAR(10)&"-"&VLOOKUP(S121,EventConditionConfig!A:C,3,FALSE))) ->  | AF121: =IF(A121="","",IF(ISNUMBER(Y121),2,IF(A122="",IF(OR(AH121>0,VLOOKUP(O121,EventConfig!A:C,3,FALSE)=4),3,""),1))) -> 3 | AG121: 10007 | AI121: 5126
T122: =IF(R122="","","-"&VLOOKUP(R122,EventConditionConfig!A:C,3,FALSE)&IF(S122="","",CHAR(10)&"-"&VLOOKUP(S122,EventConditionConfig!A:C,3,FALSE))) ->  | AF122: =IF(A122="","",IF(ISNUMBER(Y122),2,IF(A123="",IF(OR(AH122>0,VLOOKUP(O122,EventConfig!A:C,3,FALSE)=4),3,""),1))) -> 
A123: =O123*100+P123 -> 1000701 | B123: 5127 | C123: 没想到痴道人一来就要与你交手 | K123: =IF(J123="","",VLOOKUP(J123,EventNPC!A:E,5,FALSE)) ->  | L123: 5128 | M123: 你获得了疯道人的半颗风灵珠，在狂风中自由飞行，好不自在。 | O123: 10007 | P123: 1 | T123: =IF(R123="","","-"&VLOOKUP(R123,EventConditionConfig!A:C,3,FALSE)&IF(S123="","",CHAR(10)&"-"&VLOOKUP(S123,EventConditionConfig!A:C,3,FALSE))) ->  | W123: =_xlfn.TEXTJOIN(";",1,X123,AA123) ->  | AF123: =IF(A123="","",IF(ISNUMBER(Y123),2,IF(A124="",IF(OR(AH123>0,VLOOKUP(O123,EventConfig!A:C,3,FALSE)=4),3,""),1))) -> 1 | AG123: 1000702 | AI123: 5128
A124: =O124*100+P124 -> 1000702 | B124: 5127 | C124: 没想到痴道人一来就要与你交手 | K124: =IF(J124="","",VLOOKUP(J124,EventNPC!A:E,5,FALSE)) ->  | L124: 5129 | M124: 这......就是逍遥游吗？ | O124: 10007 | P124: 2 | T124: =IF(R124="","","-"&VLOOKUP(R124,EventConditionConfig!A:C,3,FALSE)&IF(S124="","",CHAR(10)&"-"&VLOOKUP(S124,EventConditionConfig!A:C,3,FALSE))) ->  | W124: =_xlfn.TEXTJOIN(";",1,X124,AA124) ->  | AF124: =IF(A124="","",IF(ISNUMBER(Y124),2,IF(A125="",IF(OR(AH124>0,VLOOKUP(O124,EventConfig!A:C,3,FALSE)=4),3,""),1))) -> 1 | AG124: 1000703 | AI124: 5129
A125: =O125*100+P125 -> 1000703 | B125: 5127 | C125: 没想到痴道人一来就要与你交手 | J125: 104 | K125: =IF(J125="","",VLOOKUP(J125,EventNPC!A:E,5,FALSE)) -> 痴道人 | L125: 5130 | M125: 你终于来了...... | O125: 10007 | P125: 3 | T125: =IF(R125="","","-"&VLOOKUP(R125,EventConditionConfig!A:C,3,FALSE)&IF(S125="","",CHAR(10)&"-"&VLOOKUP(S125,EventConditionConfig!A:C,3,FALSE))) ->  | U125: 1 | V125: =A126 -> 1000704 | W125: =_xlfn.TEXTJOIN(";",1,X125,AA125) -> 5131 | X125: 5131 | Y125: 你知道我要来？ | AF125: =IF(A125="","",IF(ISNUMBER(Y125),2,IF(A126="",IF(OR(AH125>0,VLOOKUP(O125,EventConfig!A:C,3,FALSE)=4),3,""),1))) -> 1 | AG125: 1000704 | AI125: 5131
A126: =O126*100+P126 -> 1000704 | B126: 5127 | C126: 没想到痴道人一来就要与你交手 | J126: 104 | K126: =IF(J126="","",VLOOKUP(J126,EventNPC!A:E,5,FALSE)) -> 痴道人 | L126: 5132 | M126: 多说无益，我早已感应到你身上的半颗风灵珠。必是那疯老头让来的。出手吧！ | O126: 10007 | P126: 4 | T126: =IF(R126="","","-"&VLOOKUP(R126,EventConditionConfig!A:C,3,FALSE)&IF(S126="","",CHAR(10)&"-"&VLOOKUP(S126,EventConditionConfig!A:C,3,FALSE))) ->  | U126: =IF(Y126="","",IF(ISTEXT(Y126),1,2)) -> 2 | V126: =IF(U126=1,_xlfn.TEXTJOIN(";",1,IF(Z126="",A126+1,Z126),IF(AND(AA126<>"",AC126=""),A126+1,AC126)),IF(U126=2,Y126,"")) -> 1003 | W126: =_xlfn.TEXTJOIN(";",1,X126,AA126) ->  | X126: =IF(OR(ISNUMBER(Y126),Y126=""),"",MAX(AI125,AI124,B126,D126,L126)+1) ->  | Y126: 1003 | AA126: =IF(OR(ISNUMBER(AB126),AB126=""),"",X126+1) ->  | AF126: =IF(A126="","",IF(ISNUMBER(Y126),2,IF(A127="",IF(OR(AH126>0,VLOOKUP(O126,EventConfig!A:C,3,FALSE)=4),3,""),1))) -> 2 | AG126: =IF(AF126="","",CHOOSE(AF126,IF(AH126="",A126+1,AH126),CONCATENATE(IF(AH126="",A126+1,AH126),";101"),IF(AH126="",O126+1,AH126))) -> 1000705;101 | AI126: 5132
A127: 1000705 | B127: 5127 | C127: 没想到痴道人一来就要与你交手 | J127: 104 | K127: =IF(J127="","",VLOOKUP(J127,EventNPC!A:E,5,FALSE)) -> 痴道人 | L127: 5133 | M127: （被击倒在一边）够了！ | O127: 10007 | P127: 5 | T127: =IF(R127="","","-"&VLOOKUP(R127,EventConditionConfig!A:C,3,FALSE)&IF(S127="","",CHAR(10)&"-"&VLOOKUP(S127,EventConditionConfig!A:C,3,FALSE))) ->  | AF127: =IF(A127="","",IF(ISNUMBER(Y127),2,IF(A128="",IF(OR(AH127>0,VLOOKUP(O127,EventConfig!A:C,3,FALSE)=4),3,""),1))) -> 3 | AG127: 10008 | AI127: 5133
T128: =IF(R128="","","-"&VLOOKUP(R128,EventConditionConfig!A:C,3,FALSE)&IF(S128="","",CHAR(10)&"-"&VLOOKUP(S128,EventConditionConfig!A:C,3,FALSE))) ->  | AF128: =IF(A128="","",IF(ISNUMBER(Y128),2,IF(A129="",IF(OR(AH128>0,VLOOKUP(O128,EventConfig!A:C,3,FALSE)=4),3,""),1))) -> 
A129: =O129*100+P129 -> 1000801 | B129: 5134 | C129: 疯痴相聚 | J129: 104 | K129: =IF(J129="","",VLOOKUP(J129,EventNPC!A:E,5,FALSE)) -> 痴道人 | L129: 5135 | M129: ...... | O129: 10008 | P129: 1 | T129: =IF(R129="","","-"&VLOOKUP(R129,EventConditionConfig!A:C,3,FALSE)&IF(S129="","",CHAR(10)&"-"&VLOOKUP(S129,EventConditionConfig!A:C,3,FALSE))) ->  | U129: 1 | V129: =A130 -> 1000802 | W129: =_xlfn.TEXTJOIN(";",1,X129,AA129) -> 5136 | X129: 5136 | Y129: （你靠近痴道人）你真的想一直留在这里？你师兄说你不肯走。 | AF129: =IF(A129="","",IF(ISNUMBER(Y129),2,IF(A130="",IF(OR(AH129>0,VLOOKUP(O129,EventConfig!A:C,3,FALSE)=4),3,""),1))) -> 1 | AG129: 1000802 | AI129: 5136
A130: 1000802 | B130: 5134 | C130: 疯痴相聚 | J130: 104 | K130: =IF(J130="","",VLOOKUP(J130,EventNPC!A:E,5,FALSE)) -> 痴道人 | L130: 5137 | M130: 你修炼的时候，有没有过那种感觉——身边的人都在往前走，只有你还在原地。 | O130: 10008 | P130: 2 | T130: =IF(R130="","","-"&VLOOKUP(R130,EventConditionConfig!A:C,3,FALSE)&IF(S130="","",CHAR(10)&"-"&VLOOKUP(S130,EventConditionConfig!A:C,3,FALSE))) ->  | AF130: =IF(A130="","",IF(ISNUMBER(Y130),2,IF(A131="",IF(OR(AH130>0,VLOOKUP(O130,EventConfig!A:C,3,FALSE)=4),3,""),1))) -> 1 | AG130: 1000803 | AI130: 5137
A131: =O131*100+P131 -> 1000803 | B131: 5134 | C131: 疯痴相聚 | J131: 104 | K131: =IF(J131="","",VLOOKUP(J131,EventNPC!A:E,5,FALSE)) -> 痴道人 | L131: 5138 | M131: 我师兄，他悟性极高，一年就能走我三年的路。我不服气，想努力赶上他。 | O131: 10008 | P131: 3 | T131: =IF(R131="","","-"&VLOOKUP(R131,EventConditionConfig!A:C,3,FALSE)&IF(S131="","",CHAR(10)&"-"&VLOOKUP(S131,EventConditionConfig!A:C,3,FALSE))) ->  | U131: 1 | V131: =A132 -> 1000804 | W131: 5139 | X131: 5139 | Y131: 然后呢？ | AF131: =IF(A131="","",IF(ISNUMBER(Y131),2,IF(A132="",IF(OR(AH131>0,VLOOKUP(O131,EventConfig!A:C,3,FALSE)=4),3,""),1))) -> 1 | AG131: 1000804 | AI131: 5139
A132: =O132*100+P132 -> 1000804 | B132: 5134 | C132: 疯痴相聚 | J132: 104 | K132: =IF(J132="","",VLOOKUP(J132,EventNPC!A:E,5,FALSE)) -> 痴道人 | L132: 5140 | M132: 我一直苦心修炼，可人也困在这儿了……越修炼，越困难，修不动了。 | O132: 10008 | P132: 4 | T132: =IF(R132="","","-"&VLOOKUP(R132,EventConditionConfig!A:C,3,FALSE)&IF(S132="","",CHAR(10)&"-"&VLOOKUP(S132,EventConditionConfig!A:C,3,FALSE))) ->  | AF132: =IF(A132="","",IF(ISNUMBER(Y132),2,IF(A133="",IF(OR(AH132>0,VLOOKUP(O132,EventConfig!A:C,3,FALSE)=4),3,""),1))) -> 1 | AG132: 1000805 | AI132: 5140
A133: =O133*100+P133 -> 1000805 | B133: 5134 | C133: 疯痴相聚 | K133: =IF(J133="","",VLOOKUP(J133,EventNPC!A:E,5,FALSE)) ->  | L133: 5141 | M133: [此时，疯道人踏风而至，就在几步之外] | O133: 10008 | P133: 5 | T133: =IF(R133="","","-"&VLOOKUP(R133,EventConditionConfig!A:C,3,FALSE)&IF(S133="","",CHAR(10)&"-"&VLOOKUP(S133,EventConditionConfig!A:C,3,FALSE))) ->  | AF133: =IF(A133="","",IF(ISNUMBER(Y133),2,IF(A134="",IF(OR(AH133>0,VLOOKUP(O133,EventConfig!A:C,3,FALSE)=4),3,""),1))) -> 1 | AG133: 1000806 | AI133: 5141
A134: =O134*100+P134 -> 1000806 | B134: =IF(C134="","",IF(C134=C133,B133,MAX(AI133,AI132)+1)) -> 5134 | C134: 疯痴相聚 | D134: =IF(E134="","",IF(E134=E133,D133,MAX(AI133,AI132,B134)+1)) ->  | J134: 103 | K134: =IF(J134="","",VLOOKUP(J134,EventNPC!A:E,5,FALSE)) -> 疯道人 | L134: =IF(M134="","",MAX(AI133,AI132,B134,D134)+1) -> 5142 | M134: 师弟，你修着修着，就不记得一开始，是为了什么而修行。 | O134: 10008 | P134: =IF(O134="","",IF(O134=O133,P133+1,1)) -> 6 | T134: =IF(R134="","","-"&VLOOKUP(R134,EventConditionConfig!A:C,3,FALSE)&IF(S134="","",CHAR(10)&"-"&VLOOKUP(S134,EventConditionConfig!A:C,3,FALSE))) ->  | X134: =IF(OR(ISNUMBER(Y134),Y134=""),"",MAX(AI133,AI132,B134,D134,L134)+1) ->  | AA134: =IF(OR(ISNUMBER(AB134),AB134=""),"",X134+1) ->  | AF134: =IF(A134="","",IF(ISNUMBER(Y134),2,IF(A135="",IF(OR(AH134>0,VLOOKUP(O134,EventConfig!A:C,3,FALSE)=4),3,""),1))) -> 1 | AG134: 1000807 | AI134: =IF(A134="","",MAX(B134,D134,L134,X134,AA134,AI133,AI132)) -> 5142
A135: =O135*100+P135 -> 1000807 | B135: 5134 | C135: 疯痴相聚 | J135: 104 | K135: =IF(J135="","",VLOOKUP(J135,EventNPC!A:E,5,FALSE)) -> 痴道人 | L135: 5143 | M135: （抬头）......我，我真的不记得了。 | O135: 10008 | P135: 7 | T135: =IF(R135="","","-"&VLOOKUP(R135,EventConditionConfig!A:C,3,FALSE)&IF(S135="","",CHAR(10)&"-"&VLOOKUP(S135,EventConditionConfig!A:C,3,FALSE))) ->  | AF135: =IF(A135="","",IF(ISNUMBER(Y135),2,IF(A136="",IF(OR(AH135>0,VLOOKUP(O135,EventConfig!A:C,3,FALSE)=4),3,""),1))) -> 1 | AG135: 1000808 | AI135: 5143
A136: =O136*100+P136 -> 1000808 | B136: 5134 | C136: 疯痴相聚 | J136: 103 | K136: =IF(J136="","",VLOOKUP(J136,EventNPC!A:E,5,FALSE)) -> 疯道人 | L136: 5144 | M136: 那就放下风灵珠，和我出去走走。 | O136: 10008 | P136: 8 | T136: =IF(R136="","","-"&VLOOKUP(R136,EventConditionConfig!A:C,3,FALSE)&IF(S136="","",CHAR(10)&"-"&VLOOKUP(S136,EventConditionConfig!A:C,3,FALSE))) ->  | AF136: =IF(A136="","",IF(ISNUMBER(Y136),2,IF(A137="",IF(OR(AH136>0,VLOOKUP(O136,EventConfig!A:C,3,FALSE)=4),3,""),1))) -> 1 | AG136: 1000809 | AI136: 5144
A137: =O137*100+P137 -> 1000809 | B137: 5134 | C137: 疯痴相聚 | J137: 103 | K137: =IF(J137="","",VLOOKUP(J137,EventNPC!A:E,5,FALSE)) -> 疯道人 | L137: 5145 | M137: [痴道人楞了一下，片刻后轻轻点头] | O137: 10008 | P137: 9 | Q137: =_xlfn.TEXTJOIN(";",1,R137:S137) ->  | T137: =IF(R137="","","-"&VLOOKUP(R137,EventConditionConfig!A:C,3,FALSE)&IF(S137="","",CHAR(10)&"-"&VLOOKUP(S137,EventConditionConfig!A:C,3,FALSE))) ->  | AF137: =IF(A137="","",IF(ISNUMBER(Y137),2,IF(A138="",IF(OR(AH137>0,VLOOKUP(O137,EventConfig!A:C,3,FALSE)=4),3,""),1))) -> 1 | AG137: 1000810 | AI137: 5145
A138: =O138*100+P138 -> 1000810 | B138: 5134 | C138: 疯痴相聚 | K138: =IF(J138="","",VLOOKUP(J138,EventNPC!A:E,5,FALSE)) ->  | L138: 5146 | M138: [突然..洞府周围灵气汇聚，快速涌入痴道人的身体.] | O138: 10008 | P138: 10 | T138: =IF(R138="","","-"&VLOOKUP(R138,EventConditionConfig!A:C,3,FALSE)&IF(S138="","",CHAR(10)&"-"&VLOOKUP(S138,EventConditionConfig!A:C,3,FALSE))) ->  | U138: 1 | V138: =A139 -> 1000811 | W138: 5147 | X138: 5147 | Y138: 前辈，为何灵气会动！ | AF138: =IF(A138="","",IF(ISNUMBER(Y138),2,IF(A139="",IF(OR(AH138>0,VLOOKUP(O138,EventConfig!A:C,3,FALSE)=4),3,""),1))) -> 1 | AG138: 1000811 | AI138: 5147
A139: =O139*100+P139 -> 1000811 | B139: 5134 | C139: 疯痴相聚 | J139: 103 | K139: =IF(J139="","",VLOOKUP(J139,EventNPC!A:E,5,FALSE)) -> 疯道人 | L139: 5148 | M139: 恭喜师弟，突破心魔。 | O139: 10008 | P139: 11 | T139: =IF(R139="","","-"&VLOOKUP(R139,EventConditionConfig!A:C,3,FALSE)&IF(S139="","",CHAR(10)&"-"&VLOOKUP(S139,EventConditionConfig!A:C,3,FALSE))) ->  | AF139: =IF(A139="","",IF(ISNUMBER(Y139),2,IF(A140="",IF(OR(AH139>0,VLOOKUP(O139,EventConfig!A:C,3,FALSE)=4),3,""),1))) -> 1 | AG139: 1000812 | AI139: 5148
A140: =O140*100+P140 -> 1000812 | B140: 5134 | C140: 疯痴相聚 | J140: 104 | K140: =IF(J140="","",VLOOKUP(J140,EventNPC!A:E,5,FALSE)) -> 痴道人 | L140: 5149 | M140: 多谢师兄！ | O140: 10008 | P140: 12 | T140: =IF(R140="","","-"&VLOOKUP(R140,EventConditionConfig!A:C,3,FALSE)&IF(S140="","",CHAR(10)&"-"&VLOOKUP(S140,EventConditionConfig!A:C,3,FALSE))) ->  | U140: 1 | V140: =IF(U140=1,_xlfn.TEXTJOIN(";",1,IF(Z140="",A140+1,Z140),IF(AND(AA140<>"",AC140=""),A140+1,AC140)),IF(U140=2,Y140,"")) -> 1000813;1000813 | W140: 5150;5151 | X140: 5150 | Y140: 原来如此… | AA140: 5151 | AB140: 请前辈赐我风灵珠。 | AF140: =IF(A140="","",IF(ISNUMBER(Y140),2,IF(A141="",IF(OR(AH140>0,VLOOKUP(O140,EventConfig!A:C,3,FALSE)=4),3,""),1))) -> 1 | AG140: 1000813 | AI140: 5151
A141: =O141*100+P141 -> 1000813 | B141: 5134 | C141: 疯痴相聚 | J141: 104 | K141: =IF(J141="","",VLOOKUP(J141,EventNPC!A:E,5,FALSE)) -> 痴道人 | L141: 5152 | M141: 小友莫急… (说罢，痴道人将风灵珠的碎片合成了一颗完整的风灵珠) | O141: 10008 | P141: 13 | T141: =IF(R141="","","-"&VLOOKUP(R141,EventConditionConfig!A:C,3,FALSE)&IF(S141="","",CHAR(10)&"-"&VLOOKUP(S141,EventConditionConfig!A:C,3,FALSE))) ->  | AF141: =IF(A141="","",IF(ISNUMBER(Y141),2,IF(A142="",IF(OR(AH141>0,VLOOKUP(O141,EventConfig!A:C,3,FALSE)=4),3,""),1))) -> 1 | AG141: 1000814 | AI141: 5152
A142: =O142*100+P142 -> 1000814 | B142: 5134 | C142: 疯痴相聚 | J142: 104 | K142: =IF(J142="","",VLOOKUP(J142,EventNPC!A:E,5,FALSE)) -> 痴道人 | L142: 5153 | M142: 拿好了，这风啊……来一回，不容易。 | O142: 10008 | P142: 14 | T142: =IF(R142="","","-"&VLOOKUP(R142,EventConditionConfig!A:C,3,FALSE)&IF(S142="","",CHAR(10)&"-"&VLOOKUP(S142,EventConditionConfig!A:C,3,FALSE))) ->  | AF142: =IF(A142="","",IF(ISNUMBER(Y142),2,IF(A143="",IF(OR(AH142>0,VLOOKUP(O142,EventConfig!A:C,3,FALSE)=4),3,""),1))) -> 3 | AG142: =IF(AF142="","",CHOOSE(AF142,IF(AH142="",A142+1,AH142),CONCATENATE(IF(AH142="",A142+1,AH142),";101"),IF(AH142="",O142+1,AH142))) -> 10009 | AI142: 5153
T143: =IF(R143="","","-"&VLOOKUP(R143,EventConditionConfig!A:C,3,FALSE)&IF(S143="","",CHAR(10)&"-"&VLOOKUP(S143,EventConditionConfig!A:C,3,FALSE))) ->  | AF143: =IF(A143="","",IF(ISNUMBER(Y143),2,IF(A144="",IF(OR(AH143>0,VLOOKUP(O143,EventConfig!A:C,3,FALSE)=4),3,""),1))) -> 
A144: =O144*100+P144 -> 1000901 | B144: 5154 | C144: 达到筑基后期 | J144: 100 | K144: =IF(J144="","",VLOOKUP(J144,EventNPC!A:E,5,FALSE)) -> 玩家 | L144: 5155 | M144: 完整的风灵珠果然不同凡响，我可以更大的狂风中穿行了。 | O144: =IF(O143="",O142+1,O143) -> 10009 | P144: 1 | T144: =IF(R144="","","-"&VLOOKUP(R144,EventConditionConfig!A:C,3,FALSE)&IF(S144="","",CHAR(10)&"-"&VLOOKUP(S144,EventConditionConfig!A:C,3,FALSE))) ->  | W144: =_xlfn.TEXTJOIN(";",1,X144,AA144) ->  | AF144: =IF(A144="","",IF(ISNUMBER(Y144),2,IF(A145="",IF(OR(AH144>0,VLOOKUP(O144,EventConfig!A:C,3,FALSE)=4),3,""),1))) -> 1 | AG144: 1000902 | AI144: 5155
A145: =O145*100+P145 -> 1000902 | B145: 5154 | C145: 达到筑基后期 | J145: 100 | K145: =IF(J145="","",VLOOKUP(J145,EventNPC!A:E,5,FALSE)) -> 玩家 | L145: 5156 | M145: 前方似乎有不少高阶妖兽，我先在此地提升一些修为吧。 | O145: =IF(O144="",O143+1,O144) -> 10009 | P145: 2 | T145: =IF(R145="","","-"&VLOOKUP(R145,EventConditionConfig!A:C,3,FALSE)&IF(S145="","",CHAR(10)&"-"&VLOOKUP(S145,EventConditionConfig!A:C,3,FALSE))) ->  | W145: =_xlfn.TEXTJOIN(";",1,X145,AA145) ->  | AF145: =IF(A145="","",IF(ISNUMBER(Y145),2,IF(A146="",IF(OR(AH145>0,VLOOKUP(O145,EventConfig!A:C,3,FALSE)=4),3,""),1))) -> 1 | AG145: 1000903 | AI145: 5156
A146: =O146*100+P146 -> 1000903 | B146: 5154 | C146: 达到筑基后期 | J146: 100 | K146: =IF(J146="","",VLOOKUP(J146,EventNPC!A:E,5,FALSE)) -> 玩家 | L146: 5157 | M146: 继续寻找冲虚提到的“七道心境”吧，不知鲲鹏是否会给我答案。 | O146: 10009 | P146: 3 | Q146: 8 | R146: 8 | T146: =IF(R146="","","-"&VLOOKUP(R146,EventConditionConfig!A:C,3,FALSE)&IF(S146="","",CHAR(10)&"-"&VLOOKUP(S146,EventConditionConfig!A:C,3,FALSE))) -> -达到境界：练气-后期 | W146: =_xlfn.TEXTJOIN(";",1,X146,AA146) ->  | AF146: =IF(A146="","",IF(ISNUMBER(Y146),2,IF(A147="",IF(OR(AH146>0,VLOOKUP(O146,EventConfig!A:C,3,FALSE)=4),3,""),1))) -> 3 | AG146: 10010 | AI146: 5157
T147: =IF(R147="","","-"&VLOOKUP(R147,EventConditionConfig!A:C,3,FALSE)&IF(S147="","",CHAR(10)&"-"&VLOOKUP(S147,EventConditionConfig!A:C,3,FALSE))) ->  | AF147: =IF(A147="","",IF(ISNUMBER(Y147),2,IF(A148="",IF(OR(AH147>0,VLOOKUP(O147,EventConfig!A:C,3,FALSE)=4),3,""),1))) -> 
A148: =O148*100+P148 -> 1001001 | B148: 5158 | C148: 妖兽横行 | K148: =IF(J148="","",VLOOKUP(J148,EventNPC!A:E,5,FALSE)) ->  | L148: 5159 | M148: 你深入北海，海浪翻涌，云雾缭绕。 | O148: =IF(O147="",O146+1,O147) -> 10010 | P148: 1 | T148: =IF(R148="","","-"&VLOOKUP(R148,EventConditionConfig!A:C,3,FALSE)&IF(S148="","",CHAR(10)&"-"&VLOOKUP(S148,EventConditionConfig!A:C,3,FALSE))) ->  | W148: =_xlfn.TEXTJOIN(";",1,X148,AA148) ->  | AF148: =IF(A148="","",IF(ISNUMBER(Y148),2,IF(A149="",IF(OR(AH148>0,VLOOKUP(O148,EventConfig!A:C,3,FALSE)=4),3,""),1))) -> 1 | AG148: 1001002 | AI148: 5159
A149: =O149*100+P149 -> 1001002 | B149: 5158 | C149: 妖兽横行 | K149: =IF(J149="","",VLOOKUP(J149,EventNPC!A:E,5,FALSE)) ->  | L149: 5160 | M149: 深处阴冷气息笼罩，妖兽从浪中涌出，狂暴阻路，仿佛在守护北海的秘密。 | O149: =IF(O148="",O147+1,O148) -> 10010 | P149: 2 | Q149: =_xlfn.TEXTJOIN(";",1,R149:S149) ->  | T149: =IF(R149="","","-"&VLOOKUP(R149,EventConditionConfig!A:C,3,FALSE)&IF(S149="","",CHAR(10)&"-"&VLOOKUP(S149,EventConditionConfig!A:C,3,FALSE))) ->  | AF149: =IF(A149="","",IF(ISNUMBER(Y149),2,IF(A150="",IF(OR(AH149>0,VLOOKUP(O149,EventConfig!A:C,3,FALSE)=4),3,""),1))) -> 1 | AG149: 1001003 | AI149: 5160
A150: =O150*100+P150 -> 1001003 | B150: 5158 | C150: 妖兽横行 | K150: =IF(J150="","",VLOOKUP(J150,EventNPC!A:E,5,FALSE)) ->  | L150: 5161 | M150: 风灵珠碎片微微发光，助你御风而战。 | O150: =IF(O149="",O148+1,O149) -> 10010 | P150: 3 | Q150: =_xlfn.TEXTJOIN(";",1,R150:S150) ->  | T150: =IF(R150="","","-"&VLOOKUP(R150,EventConditionConfig!A:C,3,FALSE)&IF(S150="","",CHAR(10)&"-"&VLOOKUP(S150,EventConditionConfig!A:C,3,FALSE))) ->  | AF150: =IF(A150="","",IF(ISNUMBER(Y150),2,IF(A151="",IF(OR(AH150>0,VLOOKUP(O150,EventConfig!A:C,3,FALSE)=4),3,""),1))) -> 1 | AG150: 1001004 | AI150: 5161
A151: 1001004 | B151: 5158 | C151: 妖兽横行 | K151: =IF(J151="","",VLOOKUP(J151,EventNPC!A:E,5,FALSE)) ->  | L151: 5162 | M151: 这些妖兽挡道……看来得先清扫一番，才能继续前行。 | O151: =IF(O148="",O147+1,O148) -> 10010 | P151: 4 | Q151: =_xlfn.TEXTJOIN(";",1,R151:S151) ->  | T151: =IF(R151="","","-"&VLOOKUP(R151,EventConditionConfig!A:C,3,FALSE)&IF(S151="","",CHAR(10)&"-"&VLOOKUP(S151,EventConditionConfig!A:C,3,FALSE))) ->  | AF151: =IF(A151="","",IF(ISNUMBER(Y151),2,IF(A152="",IF(OR(AH151>0,VLOOKUP(O151,EventConfig!A:C,3,FALSE)=4),3,""),1))) -> 1 | AG151: 1001005 | AI151: 5162
A152: 1001005 | B152: 5163 | C152: 妖兽肆虐 | J152: 120 | K152: =IF(J152="","",VLOOKUP(J152,EventNPC!A:E,5,FALSE)) -> 妖兽 | L152: 5164 | M152: （咆哮，从深浪跃出）“外来者，北海无路！” | O152: =IF(O148="",O147+1,O148) -> 10010 | P152: 5 | Q152: =_xlfn.TEXTJOIN(";",1,R152:S152) -> 9 | R152: 9 | T152: =IF(R152="","","-"&VLOOKUP(R152,EventConditionConfig!A:C,3,FALSE)&IF(S152="","",CHAR(10)&"-"&VLOOKUP(S152,EventConditionConfig!A:C,3,FALSE))) -> -击杀北海小妖 | AF152: =IF(A152="","",IF(ISNUMBER(Y152),2,IF(A153="",IF(OR(AH152>0,VLOOKUP(O152,EventConfig!A:C,3,FALSE)=4),3,""),1))) -> 1 | AG152: 1001006 | AI152: 5164
A153: =O153*100+P153 -> 1001006 | B153: 5163 | C153: 妖兽肆虐 | K153: =IF(J153="","",VLOOKUP(J153,EventNPC!A:E,5,FALSE)) ->  | O153: =IF(O149="",O148+1,O149) -> 10010 | P153: 6 | Q153: =_xlfn.TEXTJOIN(";",1,R153:S153) -> 36 | R153: 36 | T153: =IF(R153="","","-"&VLOOKUP(R153,EventConditionConfig!A:C,3,FALSE)&IF(S153="","",CHAR(10)&"-"&VLOOKUP(S153,EventConditionConfig!A:C,3,FALSE))) -> -击杀北海妖兽精英 | U153: 2 | V153: 1003 | Y153: 1003 | AF153: =IF(A153="","",IF(ISNUMBER(Y153),2,IF(A154="",IF(OR(AH153>0,VLOOKUP(O153,EventConfig!A:C,3,FALSE)=4),3,""),1))) -> 2 | AG153: 1001007;101 | AI153: 5164
T154: =IF(R154="","","-"&VLOOKUP(R154,EventConditionConfig!A:C,3,FALSE)&IF(S154="","",CHAR(10)&"-"&VLOOKUP(S154,EventConditionConfig!A:C,3,FALSE))) ->  | AF154: =IF(A154="","",IF(ISNUMBER(Y154),2,IF(A155="",IF(OR(AH154>0,VLOOKUP(O154,EventConfig!A:C,3,FALSE)=4),3,""),1))) -> 
A155: =O155*100+P155 -> 1001101 | B155: 5165 | C155: 与鲲鹏对话 | K155: =IF(J155="","",VLOOKUP(J155,EventNPC!A:E,5,FALSE)) ->  | L155: 5166 | M155: 你来到北海尽头。水面如镜，深不见底。一道巨影在水底游弋，这就是北海之鱼——鲲，至少有几千里那么大。 | O155: =IF(O154="",O148+1,O154) -> 10011 | P155: 1 | T155: =IF(R155="","","-"&VLOOKUP(R155,EventConditionConfig!A:C,3,FALSE)&IF(S155="","",CHAR(10)&"-"&VLOOKUP(S155,EventConditionConfig!A:C,3,FALSE))) ->  | W155: =_xlfn.TEXTJOIN(";",1,X155,AA155) ->  | AF155: =IF(A155="","",IF(ISNUMBER(Y155),2,IF(A156="",IF(OR(AH155>0,VLOOKUP(O155,EventConfig!A:C,3,FALSE)=4),3,""),1))) -> 1 | AG155: 1001102 | AI155: 5166
A156: =O156*100+P156 -> 1001102 | B156: 5165 | C156: 与鲲鹏对话 | J156: 119 | K156: =IF(J156="","",VLOOKUP(J156,EventNPC!A:E,5,FALSE)) -> 鲲鹏 | L156: 5167 | M156: (低沉声，从水底传出，如闷雷回荡）……小子，你寻我何事？身上竟有风灵珠的气息，不简单。 | O156: 10011 | P156: 2 | Q156: =_xlfn.TEXTJOIN(";",1,R156:S156) ->  | T156: =IF(R156="","","-"&VLOOKUP(R156,EventConditionConfig!A:C,3,FALSE)&IF(S156="","",CHAR(10)&"-"&VLOOKUP(S156,EventConditionConfig!A:C,3,FALSE))) ->  | AF156: =IF(A156="","",IF(ISNUMBER(Y156),2,IF(A157="",IF(OR(AH156>0,VLOOKUP(O156,EventConfig!A:C,3,FALSE)=4),3,""),1))) -> 1 | AG156: 1001103 | AI156: 5167
A157: =O157*100+P157 -> 1001103 | B157: 5165 | C157: 与鲲鹏对话 | J157: 100 | K157: =IF(J157="","",VLOOKUP(J157,EventNPC!A:E,5,FALSE)) -> 玩家 | L157: 5168 | M157: 前辈，我受冲虚真人指引，游历天下，正在寻找七道心境。 | O157: 10011 | P157: 3 | Q157: =_xlfn.TEXTJOIN(";",1,R157:S157) ->  | T157: =IF(R157="","","-"&VLOOKUP(R157,EventConditionConfig!A:C,3,FALSE)&IF(S157="","",CHAR(10)&"-"&VLOOKUP(S157,EventConditionConfig!A:C,3,FALSE))) ->  | AF157: =IF(A157="","",IF(ISNUMBER(Y157),2,IF(A158="",IF(OR(AH157>0,VLOOKUP(O157,EventConfig!A:C,3,FALSE)=4),3,""),1))) -> 1 | AG157: 1001104 | AI157: 5168
A158: =O158*100+P158 -> 1001104 | B158: 5165 | C158: 与鲲鹏对话 | J158: 100 | K158: =IF(J158="","",VLOOKUP(J158,EventNPC!A:E,5,FALSE)) -> 玩家 | L158: 5169 | M158: 有缘路过此地，听闻前辈欲飞南海天池，可为何停滞于此？ | O158: 10011 | P158: 4 | Q158: =_xlfn.TEXTJOIN(";",1,R158:S158) ->  | T158: =IF(R158="","","-"&VLOOKUP(R158,EventConditionConfig!A:C,3,FALSE)&IF(S158="","",CHAR(10)&"-"&VLOOKUP(S158,EventConditionConfig!A:C,3,FALSE))) ->  | AF158: =IF(A158="","",IF(ISNUMBER(Y158),2,IF(A159="",IF(OR(AH158>0,VLOOKUP(O158,EventConfig!A:C,3,FALSE)=4),3,""),1))) -> 1 | AG158: 1001105 | AI158: 5169
A159: 1001105 | B159: 5165 | C159: 与鲲鹏对话 | J159: 119 | K159: =IF(J159="","",VLOOKUP(J159,EventNPC!A:E,5,FALSE)) -> 鲲鹏 | L159: 5170 | M159: （叹息，水面微颤）北海虽广，却无龙卷大风，我无法化鹏南飞，已困千年。 | O159: 10011 | P159: 5 | T159: =IF(R159="","","-"&VLOOKUP(R159,EventConditionConfig!A:C,3,FALSE)&IF(S159="","",CHAR(10)&"-"&VLOOKUP(S159,EventConditionConfig!A:C,3,FALSE))) ->  | W159: 5171 | X159: 5171 | Y159: 我愿助一臂之力 | AF159: =IF(A159="","",IF(ISNUMBER(Y159),2,IF(A160="",IF(OR(AH159>0,VLOOKUP(O159,EventConfig!A:C,3,FALSE)=4),3,""),1))) -> 1 | AG159: 1001106 | AI159: 5171
A160: 1001106 | B160: 5165 | C160: 与鲲鹏对话 | J160: 119 | K160: =IF(J160="","",VLOOKUP(J160,EventNPC!A:E,5,FALSE)) -> 鲲鹏 | L160: 5172 | M160: （低笑）你修为尚浅，虽然聚齐了风灵珠，但却无法召唤龙卷大风。 | O160: 10011 | P160: 6 | T160: =IF(R160="","","-"&VLOOKUP(R160,EventConditionConfig!A:C,3,FALSE)&IF(S160="","",CHAR(10)&"-"&VLOOKUP(S160,EventConditionConfig!A:C,3,FALSE))) ->  | AF160: =IF(A160="","",IF(ISNUMBER(Y160),2,IF(A161="",IF(OR(AH160>0,VLOOKUP(O160,EventConfig!A:C,3,FALSE)=4),3,""),1))) -> 1 | AG160: 1001107 | AI160: 5172
A161: =O161*100+P161 -> 1001107 | B161: 5165 | C161: 与鲲鹏对话 | J161: 119 | K161: =IF(J161="","",VLOOKUP(J161,EventNPC!A:E,5,FALSE)) -> 鲲鹏 | L161: 5173 | M161: 走吧，去尧都看看，继续你的游历，或许机缘自来。 | O161: 10011 | P161: 7 | Q161: =_xlfn.TEXTJOIN(";",1,R161:S161) ->  | T161: =IF(R161="","","-"&VLOOKUP(R161,EventConditionConfig!A:C,3,FALSE)&IF(S161="","",CHAR(10)&"-"&VLOOKUP(S161,EventConditionConfig!A:C,3,FALSE))) ->  | AF161: =IF(A161="","",IF(ISNUMBER(Y161),2,IF(A162="",IF(OR(AH161>0,VLOOKUP(O161,EventConfig!A:C,3,FALSE)=4),3,""),1))) -> 1 | AG161: 1001108 | AI161: 5173
A162: 1001108 | B162: 5165 | C162: 与鲲鹏对话 | J162: 100 | K162: =IF(J162="","",VLOOKUP(J162,EventNPC!A:E,5,FALSE)) -> 玩家 | L162: 5174 | M162: 多谢前辈指点。我一定会回来，再助前辈一飞冲天。 | O162: 10011 | P162: 8 | T162: =IF(R162="","","-"&VLOOKUP(R162,EventConditionConfig!A:C,3,FALSE)&IF(S162="","",CHAR(10)&"-"&VLOOKUP(S162,EventConditionConfig!A:C,3,FALSE))) ->  | AF162: =IF(A162="","",IF(ISNUMBER(Y162),2,IF(A163="",IF(OR(AH162>0,VLOOKUP(O162,EventConfig!A:C,3,FALSE)=4),3,""),1))) -> 1 | AG162: 1001109 | AI162: 5174
A163: =O163*100+P163 -> 1001109 | B163: 5165 | C163: 与鲲鹏对话 | J163: 100 | K163: =IF(J163="","",VLOOKUP(J163,EventNPC!A:E,5,FALSE)) -> 玩家 | L163: 5175 | M163: 鲲鹏困于无风……看来我的旅程才刚开始。 | O163: 10011 | P163: 9 | Q163: =_xlfn.TEXTJOIN(";",1,R163:S163) ->  | T163: =IF(R163="","","-"&VLOOKUP(R163,EventConditionConfig!A:C,3,FALSE)&IF(S163="","",CHAR(10)&"-"&VLOOKUP(S163,EventConditionConfig!A:C,3,FALSE))) ->  | AF163: =IF(A163="","",IF(ISNUMBER(Y163),2,IF(A164="",IF(OR(AH163>0,VLOOKUP(O163,EventConfig!A:C,3,FALSE)=4),3,""),1))) -> 1 | AG163: 1001110 | AI163: 5175
A164: =O164*100+P164 -> 1001110 | B164: 5165 | C164: 与鲲鹏对话 | J164: 100 | K164: =IF(J164="","",VLOOKUP(J164,EventNPC!A:E,5,FALSE)) -> 玩家 | L164: 5176 | M164: 冲虚真人所言的“七道心境”，或许就在前方。 | O164: 10011 | P164: 10 | Q164: =_xlfn.TEXTJOIN(";",1,R164:S164) ->  | T164: =IF(R164="","","-"&VLOOKUP(R164,EventConditionConfig!A:C,3,FALSE)&IF(S164="","",CHAR(10)&"-"&VLOOKUP(S164,EventConditionConfig!A:C,3,FALSE))) ->  | AF164: =IF(A164="","",IF(ISNUMBER(Y164),2,IF(A165="",IF(OR(AH164>0,VLOOKUP(O164,EventConfig!A:C,3,FALSE)=4),3,""),1))) -> 1 | AG164: 1001111 | AI164: 5176
A165: =O165*100+P165 -> 1001111 | B165: 5165 | C165: 与鲲鹏对话 | J165: 100 | K165: =IF(J165="","",VLOOKUP(J165,EventNPC!A:E,5,FALSE)) -> 玩家 | L165: 5177 | M165: 去尧之都走一遭吧。 | O165: 10011 | P165: 11 | Q165: =_xlfn.TEXTJOIN(";",1,R165:S165) ->  | T165: =IF(R165="","","-"&VLOOKUP(R165,EventConditionConfig!A:C,3,FALSE)&IF(S165="","",CHAR(10)&"-"&VLOOKUP(S165,EventConditionConfig!A:C,3,FALSE))) ->  | AF165: =IF(A165="","",IF(ISNUMBER(Y165),2,IF(A166="",IF(OR(AH165>0,VLOOKUP(O165,EventConfig!A:C,3,FALSE)=4),3,""),1))) -> 1 | AG165: 1001112 | AI165: 5177
A166: =O166*100+P166 -> 1001112 | B166: 5165 | C166: 与鲲鹏对话 | K166: =IF(J166="","",VLOOKUP(J166,EventNPC!A:E,5,FALSE)) ->  | O166: 10011 | P166: 12 | Q166: =_xlfn.TEXTJOIN(";",1,R166:S166) -> 14 | R166: 14 | T166: =IF(R166="","","-"&VLOOKUP(R166,EventConditionConfig!A:C,3,FALSE)&IF(S166="","",CHAR(10)&"-"&VLOOKUP(S166,EventConditionConfig!A:C,3,FALSE))) -> -达到境界：筑基-前期 | AF166: =IF(A166="","",IF(ISNUMBER(Y166),2,IF(A167="",IF(OR(AH166>0,VLOOKUP(O166,EventConfig!A:C,3,FALSE)=4),3,""),1))) -> 3 | AG166: 10012 | AI166: 5177
O167: =IF(M167="","",IF(O155="",O154+1,O155)) ->  | T167: =IF(R167="","","-"&VLOOKUP(R167,EventConditionConfig!A:C,3,FALSE)&IF(S167="","",CHAR(10)&"-"&VLOOKUP(S167,EventConditionConfig!A:C,3,FALSE))) ->  | AF167: =IF(A167="","",IF(ISNUMBER(Y167),2,IF(A168="",IF(OR(AH167>0,VLOOKUP(O167,EventConfig!A:C,3,FALSE)=4),3,""),1))) -> 
A168: =O168*100+P168 -> 1001201 | B168: 5178 | C168: 前往尧都地界 | K168: =IF(J168="","",VLOOKUP(J168,EventNPC!A:E,5,FALSE)) ->  | L168: 5179 | M168: 你离开北海，御剑而行。逍遥铃微微颤动，似乎在指引下一个方向——尧之都，那片祥和的仙域。 | O168: =IF(M168="","",IF(O167="",O155+1,O167)) -> 10012 | P168: 1 | T168: =IF(R168="","","-"&VLOOKUP(R168,EventConditionConfig!A:C,3,FALSE)&IF(S168="","",CHAR(10)&"-"&VLOOKUP(S168,EventConditionConfig!A:C,3,FALSE))) ->  | U168: =IF(Y168="","",IF(ISTEXT(Y168),1,2)) ->  | V168: =IF(U168=1,_xlfn.TEXTJOIN(";",1,IF(Z168="",A168+1,Z168),IF(AND(AA168<>"",AC168=""),A168+1,AC168)),IF(U168=2,Y168,"")) ->  | W168: =_xlfn.TEXTJOIN(";",1,X168,AA168) ->  | AF168: =IF(A168="","",IF(ISNUMBER(Y168),2,IF(A169="",IF(OR(AH168>0,VLOOKUP(O168,EventConfig!A:C,3,FALSE)=4),3,""),1))) -> 1 | AG168: 1001202 | AI168: 5179
A169: =O169*100+P169 -> 1001202 | B169: 5178 | C169: 前往尧都地界 | K169: =IF(J169="","",VLOOKUP(J169,EventNPC!A:E,5,FALSE)) ->  | L169: 5180 | M169: 鲲鹏前辈提及尧都，或许那里有助你悟道的关键。 | O169: =IF(M169="","",IF(O168="",O156+1,O168)) -> 10012 | P169: 2 | Q169: =_xlfn.TEXTJOIN(";",1,R169:S169) ->  | T169: =IF(R169="","","-"&VLOOKUP(R169,EventConditionConfig!A:C,3,FALSE)&IF(S169="","",CHAR(10)&"-"&VLOOKUP(S169,EventConditionConfig!A:C,3,FALSE))) ->  | U169: =IF(Y169="","",IF(ISTEXT(Y169),1,2)) ->  | V169: =IF(U169=1,_xlfn.TEXTJOIN(";",1,IF(Z169="",A169+1,Z169),IF(AND(AA169<>"",AC169=""),A169+1,AC169)),IF(U169=2,Y169,"")) ->  | W169: =_xlfn.TEXTJOIN(";",1,X169,AA169) ->  | AF169: =IF(A169="","",IF(ISNUMBER(Y169),2,IF(A170="",IF(OR(AH169>0,VLOOKUP(O169,EventConfig!A:C,3,FALSE)=4),3,""),1))) -> 1 | AG169: 1001203 | AI169: 5180
A170: =O170*100+P170 -> 1001203 | B170: 5178 | C170: 前往尧都地界 | K170: =IF(J170="","",VLOOKUP(J170,EventNPC!A:E,5,FALSE)) ->  | L170: 5181 | M170: 尧都……据说这里仙凡混居，国泰民安。帝尧治理有方，或许能找到更多线索。 | O170: =IF(M170="","",IF(O169="",O157+1,O169)) -> 10012 | P170: 3 | Q170: =_xlfn.TEXTJOIN(";",1,R170:S170) ->  | T170: =IF(R170="","","-"&VLOOKUP(R170,EventConditionConfig!A:C,3,FALSE)&IF(S170="","",CHAR(10)&"-"&VLOOKUP(S170,EventConditionConfig!A:C,3,FALSE))) ->  | U170: =IF(Y170="","",IF(ISTEXT(Y170),1,2)) ->  | V170: =IF(U170=1,_xlfn.TEXTJOIN(";",1,IF(Z170="",A170+1,Z170),IF(AND(AA170<>"",AC170=""),A170+1,AC170)),IF(U170=2,Y170,"")) ->  | W170: =_xlfn.TEXTJOIN(";",1,X170,AA170) ->  | AF170: =IF(A170="","",IF(ISNUMBER(Y170),2,IF(A171="",IF(OR(AH170>0,VLOOKUP(O170,EventConfig!A:C,3,FALSE)=4),3,""),1))) -> 3 | AG170: 10013 | AI170: 5181
O171: =IF(M171="","",IF(O168="",O167+1,O168)) ->  | AF171: =IF(A171="","",IF(ISNUMBER(Y171),2,IF(A172="",IF(OR(AH171>0,VLOOKUP(O171,EventConfig!A:C,3,FALSE)=4),3,""),1))) -> 
A172: =O172*100+P172 -> 1001301 | B172: 5182 | C172: 尧让天下 | D172: 5183 | E172: 倾听尧帝的烦恼 | K172: =IF(J172="","",VLOOKUP(J172,EventNPC!A:E,5,FALSE)) ->  | L172: 5184 | M172: 你踏入帝尧治下的仙域——一片祥和之地，灵气充沛，民众安居，仿佛世外桃源。 | O172: =IF(M172="","",IF(O171="",O168+1,O171)) -> 10013 | P172: 1 | T172: =IF(R172="","","-"&VLOOKUP(R172,EventConditionConfig!A:C,3,FALSE)&IF(S172="","",CHAR(10)&"-"&VLOOKUP(S172,EventConditionConfig!A:C,3,FALSE))) ->  | W172: =_xlfn.TEXTJOIN(";",1,X172,AA172) ->  | AF172: =IF(A172="","",IF(ISNUMBER(Y172),2,IF(A173="",IF(OR(AH172>0,VLOOKUP(O172,EventConfig!A:C,3,FALSE)=4),3,""),1))) -> 1 | AG172: 1001302 | AI172: 5184
A173: =O173*100+P173 -> 1001302 | B173: 5182 | C173: 尧让天下 | D173: 5183 | E173: 倾听尧帝的烦恼 | K173: =IF(J173="","",VLOOKUP(J173,EventNPC!A:E,5,FALSE)) ->  | L173: 5185 | M173: 然而，这位千年帝君，却眉宇间有难掩的忧色。 | O173: =IF(O172="",O171+1,O172) -> 10013 | P173: 2 | T173: =IF(R173="","","-"&VLOOKUP(R173,EventConditionConfig!A:C,3,FALSE)&IF(S173="","",CHAR(10)&"-"&VLOOKUP(S173,EventConditionConfig!A:C,3,FALSE))) ->  | AF173: =IF(A173="","",IF(ISNUMBER(Y173),2,IF(A174="",IF(OR(AH173>0,VLOOKUP(O173,EventConfig!A:C,3,FALSE)=4),3,""),1))) -> 1 | AG173: 1001303 | AI173: 5185
A174: =O174*100+P174 -> 1001303 | B174: 5182 | C174: 尧让天下 | D174: 5183 | E174: 倾听尧帝的烦恼 | K174: =IF(J174="","",VLOOKUP(J174,EventNPC!A:E,5,FALSE)) ->  | L174: 5186 | M174: （你根据逍遥铃的指引，找到了尧） | O174: 10013 | P174: 3 | T174: =IF(R174="","","-"&VLOOKUP(R174,EventConditionConfig!A:C,3,FALSE)&IF(S174="","",CHAR(10)&"-"&VLOOKUP(S174,EventConditionConfig!A:C,3,FALSE))) ->  | U174: 1 | V174: =A175 -> 1001304 | W174: 5187 | X174: 5187 | Y174: 拜见帝尧，晚辈受冲虚真人的指引，游历到此处。 | AF174: =IF(A174="","",IF(ISNUMBER(Y174),2,IF(A175="",IF(OR(AH174>0,VLOOKUP(O174,EventConfig!A:C,3,FALSE)=4),3,""),1))) -> 1 | AG174: 1001304 | AI174: 5187
A175: =O175*100+P175 -> 1001304 | B175: 5182 | C175: 尧让天下 | D175: 5183 | E175: 倾听尧帝的烦恼 | J175: 105 | K175: =IF(J175="","",VLOOKUP(J175,EventNPC!A:E,5,FALSE)) -> 尧帝 | L175: 5188 | M175: （缓缓回头，脸上带着淡淡忧虑）冲虚真人吗？我也许久没见了.. | O175: 10013 | P175: 4 | T175: =IF(R175="","","-"&VLOOKUP(R175,EventConditionConfig!A:C,3,FALSE)&IF(S175="","",CHAR(10)&"-"&VLOOKUP(S175,EventConditionConfig!A:C,3,FALSE))) ->  | AF175: =IF(A175="","",IF(ISNUMBER(Y175),2,IF(A176="",IF(OR(AH175>0,VLOOKUP(O175,EventConfig!A:C,3,FALSE)=4),3,""),1))) -> 1 | AG175: 1001305 | AI175: 5188
A176: =O176*100+P176 -> 1001305 | B176: 5182 | C176: 尧让天下 | D176: 5183 | E176: 倾听尧帝的烦恼 | J176: 105 | K176: =IF(J176="","",VLOOKUP(J176,EventNPC!A:E,5,FALSE)) -> 尧帝 | L176: 5189 | M176: (尧帝邀你来到一高处) 小友，你看此处景致如何？ | O176: 10013 | P176: 5 | T176: =IF(R176="","","-"&VLOOKUP(R176,EventConditionConfig!A:C,3,FALSE)&IF(S176="","",CHAR(10)&"-"&VLOOKUP(S176,EventConditionConfig!A:C,3,FALSE))) ->  | U176: 1 | V176: 1001306;1001306 | W176: 5190;5191 | X176: 5190 | Y176: 万象更新，灵气环绕，是修行的福地。 | AA176: 5191 | AB176: 国泰民安，仙人治理，世间罕见。 | AF176: =IF(A176="","",IF(ISNUMBER(Y176),2,IF(A177="",IF(OR(AH176>0,VLOOKUP(O176,EventConfig!A:C,3,FALSE)=4),3,""),1))) -> 1 | AG176: 1001306 | AI176: 5191
A177: =O177*100+P177 -> 1001306 | B177: 5182 | C177: 尧让天下 | D177: 5183 | E177: 倾听尧帝的烦恼 | J177: 105 | K177: =IF(J177="","",VLOOKUP(J177,EventNPC!A:E,5,FALSE)) -> 尧帝 | L177: 5192 | M177: （叹息）是啊，人人自在，唯我不自在。这些年来，我境界难以寸进，已有百年。 | O177: 10013 | P177: 6 | T177: =IF(R177="","","-"&VLOOKUP(R177,EventConditionConfig!A:C,3,FALSE)&IF(S177="","",CHAR(10)&"-"&VLOOKUP(S177,EventConditionConfig!A:C,3,FALSE))) ->  | U177: 1 | V177: =A178 -> 1001307 | W177: 5193 | X177: 5193 | Y177: 帝尧何出此言？ | AF177: =IF(A177="","",IF(ISNUMBER(Y177),2,IF(A178="",IF(OR(AH177>0,VLOOKUP(O177,EventConfig!A:C,3,FALSE)=4),3,""),1))) -> 1 | AG177: 1001307 | AI177: 5193
A178: =O178*100+P178 -> 1001307 | B178: 5182 | C178: 尧让天下 | D178: 5183 | E178: 倾听尧帝的烦恼 | J178: 105 | K178: =IF(J178="","",VLOOKUP(J178,EventNPC!A:E,5,FALSE)) -> 尧帝 | L178: 5194 | M178: 你等散修，自由自在，来去如风，可曾体会过身负重任的滋味？ | O178: 10013 | P178: 7 | T178: =IF(R178="","","-"&VLOOKUP(R178,EventConditionConfig!A:C,3,FALSE)&IF(S178="","",CHAR(10)&"-"&VLOOKUP(S178,EventConditionConfig!A:C,3,FALSE))) ->  | U178: 1 | V178: =A179 -> 1001308 | W178: 5195 | X178: 5195 | Y178: 也有重担，却未必如帝尧这样复杂。 | AF178: =IF(A178="","",IF(ISNUMBER(Y178),2,IF(A179="",IF(OR(AH178>0,VLOOKUP(O178,EventConfig!A:C,3,FALSE)=4),3,""),1))) -> 1 | AG178: 1001308 | AI178: 5195
A179: =O179*100+P179 -> 1001308 | B179: 5182 | C179: 尧让天下 | D179: 5183 | E179: 倾听尧帝的烦恼 | J179: 105 | K179: =IF(J179="","",VLOOKUP(J179,EventNPC!A:E,5,FALSE)) -> 尧帝 | L179: 5196 | M179: （微微一笑，摇头）天下如画卷，画卷再美，日夜背负，也终是负担。 | O179: 10013 | P179: 8 | T179: =IF(R179="","","-"&VLOOKUP(R179,EventConditionConfig!A:C,3,FALSE)&IF(S179="","",CHAR(10)&"-"&VLOOKUP(S179,EventConditionConfig!A:C,3,FALSE))) ->  | U179: 1 | V179: =A180 -> 1001309 | W179: 5197 | X179: 5197 | Y179: ...... | AF179: =IF(A179="","",IF(ISNUMBER(Y179),2,IF(A180="",IF(OR(AH179>0,VLOOKUP(O179,EventConfig!A:C,3,FALSE)=4),3,""),1))) -> 1 | AG179: 1001309 | AI179: 5197
A180: =O180*100+P180 -> 1001309 | B180: 5182 | C180: 尧让天下 | D180: 5183 | E180: 倾听尧帝的烦恼 | J180: 105 | K180: =IF(J180="","",VLOOKUP(J180,EventNPC!A:E,5,FALSE)) -> 尧帝 | L180: 5198 | M180: （凝望远方云海）深山之中有位贤士，名为许由，素有盛名，我曾多次请他出山，但未成如愿。 | O180: 10013 | P180: 9 | T180: =IF(R180="","","-"&VLOOKUP(R180,EventConditionConfig!A:C,3,FALSE)&IF(S180="","",CHAR(10)&"-"&VLOOKUP(S180,EventConditionConfig!A:C,3,FALSE))) ->  | AF180: =IF(A180="","",IF(ISNUMBER(Y180),2,IF(A181="",IF(OR(AH180>0,VLOOKUP(O180,EventConfig!A:C,3,FALSE)=4),3,""),1))) -> 1 | AG180: 1001310 | AI180: 5198
A181: =O181*100+P181 -> 1001310 | B181: 5182 | C181: 尧让天下 | D181: 5183 | E181: 倾听尧帝的烦恼 | J181: 105 | K181: =IF(J181="","",VLOOKUP(J181,EventNPC!A:E,5,FALSE)) -> 尧帝 | L181: 5199 | M181: 我甚至提出让天下于他，他也不为所动。 | O181: 10013 | P181: 10 | T181: =IF(R181="","","-"&VLOOKUP(R181,EventConditionConfig!A:C,3,FALSE)&IF(S181="","",CHAR(10)&"-"&VLOOKUP(S181,EventConditionConfig!A:C,3,FALSE))) ->  | U181: 1 | V181: =A182 -> 1001311 | W181: 5200 | X181: 5200 | Y181: 世间竟然有此奇人？ | AF181: =IF(A181="","",IF(ISNUMBER(Y181),2,IF(A182="",IF(OR(AH181>0,VLOOKUP(O181,EventConfig!A:C,3,FALSE)=4),3,""),1))) -> 1 | AG181: 1001311 | AI181: 5200
A182: =O182*100+P182 -> 1001311 | B182: 5182 | C182: 尧让天下 | D182: 5183 | E182: 倾听尧帝的烦恼 | J182: 105 | K182: =IF(J182="","",VLOOKUP(J182,EventNPC!A:E,5,FALSE)) -> 尧帝 | L182: 5201 | M182: （凝望远方云海）若小友有空，帮我再请许由出山，我定当感谢。 | O182: 10013 | P182: 11 | T182: =IF(R182="","","-"&VLOOKUP(R182,EventConditionConfig!A:C,3,FALSE)&IF(S182="","",CHAR(10)&"-"&VLOOKUP(S182,EventConditionConfig!A:C,3,FALSE))) ->  | U182: 1 | V182: =A183 -> 1001312 | W182: 5202 | X182: 5202 | Y182: 好的，既然来了，我就走一趟。 | AF182: =IF(A182="","",IF(ISNUMBER(Y182),2,IF(A183="",IF(OR(AH182>0,VLOOKUP(O182,EventConfig!A:C,3,FALSE)=4),3,""),1))) -> 1 | AG182: 1001312 | AI182: 5202
A183: =O183*100+P183 -> 1001312 | B183: 5182 | C183: 尧让天下 | D183: 5183 | E183: 倾听尧帝的烦恼 | K183: =IF(J183="","",VLOOKUP(J183,EventNPC!A:E,5,FALSE)) ->  | O183: 10013 | P183: 12 | T183: =IF(R183="","","-"&VLOOKUP(R183,EventConditionConfig!A:C,3,FALSE)&IF(S183="","",CHAR(10)&"-"&VLOOKUP(S183,EventConditionConfig!A:C,3,FALSE))) ->  | AF183: =IF(A183="","",IF(ISNUMBER(Y183),2,IF(A184="",IF(OR(AH183>0,VLOOKUP(O183,EventConfig!A:C,3,FALSE)=4),3,""),1))) -> 3 | AG183: 10014 | AI183: 5202
T184: =IF(R184="","","-"&VLOOKUP(R184,EventConditionConfig!A:C,3,FALSE)&IF(S184="","",CHAR(10)&"-"&VLOOKUP(S184,EventConditionConfig!A:C,3,FALSE))) ->  | AF184: =IF(A184="","",IF(ISNUMBER(Y184),2,IF(A185="",IF(OR(AH184>0,VLOOKUP(O184,EventConfig!A:C,3,FALSE)=4),3,""),1))) -> 
A185: =O185*100+P185 -> 1001401 | B185: 5203 | C185: 访贤许由 | D185: 5204 | E185: 听一听这位尧帝口中的贤士有何说法 | K185: =IF(J185="","",VLOOKUP(J185,EventNPC!A:E,5,FALSE)) ->  | L185: 5205 | M185: 你循帝尧所言，御剑前往幽山秘境。此处灵气绵长，古木参天，溪水潺潺。 | O185: 10014 | P185: 1 | T185: =IF(R185="","","-"&VLOOKUP(R185,EventConditionConfig!A:C,3,FALSE)&IF(S185="","",CHAR(10)&"-"&VLOOKUP(S185,EventConditionConfig!A:C,3,FALSE))) ->  | W185: =_xlfn.TEXTJOIN(";",1,X185,AA185) ->  | AF185: =IF(A185="","",IF(ISNUMBER(Y185),2,IF(A186="",IF(OR(AH185>0,VLOOKUP(O185,EventConfig!A:C,3,FALSE)=4),3,""),1))) -> 1 | AG185: 1001402 | AI185: 5205
A186: =O186*100+P186 -> 1001402 | B186: 5203 | C186: 访贤许由 | D186: 5204 | E186: 听一听这位尧帝口中的贤士有何说法 | K186: =IF(J186="","",VLOOKUP(J186,EventNPC!A:E,5,FALSE)) ->  | L186: 5206 | M186: 据说，许由栖身于此，绝迹尘世，已有数百年。 | O186: 10014 | P186: 2 | T186: =IF(R186="","","-"&VLOOKUP(R186,EventConditionConfig!A:C,3,FALSE)&IF(S186="","",CHAR(10)&"-"&VLOOKUP(S186,EventConditionConfig!A:C,3,FALSE))) ->  | AF186: =IF(A186="","",IF(ISNUMBER(Y186),2,IF(A187="",IF(OR(AH186>0,VLOOKUP(O186,EventConfig!A:C,3,FALSE)=4),3,""),1))) -> 1 | AG186: 1001403 | AI186: 5206
A187: =O187*100+P187 -> 1001403 | B187: 5203 | C187: 访贤许由 | D187: 5204 | E187: 听一听这位尧帝口中的贤士有何说法 | K187: =IF(J187="","",VLOOKUP(J187,EventNPC!A:E,5,FALSE)) ->  | L187: 5207 | M187: 山风徐徐，水声如琴，你踏过青石小径，看见一位白衣道人正倚石观水。 | O187: 10014 | P187: 3 | T187: =IF(R187="","","-"&VLOOKUP(R187,EventConditionConfig!A:C,3,FALSE)&IF(S187="","",CHAR(10)&"-"&VLOOKUP(S187,EventConditionConfig!A:C,3,FALSE))) ->  | U187: 1 | V187: =A188 -> 1001404 | W187: 5208 | X187: 5208 | Y187: 前辈可是许由？ | AF187: =IF(A187="","",IF(ISNUMBER(Y187),2,IF(A188="",IF(OR(AH187>0,VLOOKUP(O187,EventConfig!A:C,3,FALSE)=4),3,""),1))) -> 1 | AG187: 1001404 | AI187: 5208
A188: =O188*100+P188 -> 1001404 | B188: 5203 | C188: 访贤许由 | D188: 5204 | E188: 听一听这位尧帝口中的贤士有何说法 | J188: 106 | K188: =IF(J188="","",VLOOKUP(J188,EventNPC!A:E,5,FALSE)) -> 许由 | L188: 5209 | M188: 正是，小友何事？ | O188: 10014 | P188: 4 | T188: =IF(R188="","","-"&VLOOKUP(R188,EventConditionConfig!A:C,3,FALSE)&IF(S188="","",CHAR(10)&"-"&VLOOKUP(S188,EventConditionConfig!A:C,3,FALSE))) ->  | AF188: =IF(A188="","",IF(ISNUMBER(Y188),2,IF(A189="",IF(OR(AH188>0,VLOOKUP(O188,EventConfig!A:C,3,FALSE)=4),3,""),1))) -> 1 | AG188: 1001405 | AI188: 5209
A189: =O189*100+P189 -> 1001405 | B189: 5203 | C189: 访贤许由 | D189: 5204 | E189: 听一听这位尧帝口中的贤士有何说法 | J189: 100 | K189: =IF(J189="","",VLOOKUP(J189,EventNPC!A:E,5,FALSE)) -> 玩家 | L189: 5210 | M189: 帝尧欲专心修行，求道问玄，又怕耽误世事，特托我前来相请，欲让天下于你。 | O189: 10014 | P189: 5 | T189: =IF(R189="","","-"&VLOOKUP(R189,EventConditionConfig!A:C,3,FALSE)&IF(S189="","",CHAR(10)&"-"&VLOOKUP(S189,EventConditionConfig!A:C,3,FALSE))) ->  | AF189: =IF(A189="","",IF(ISNUMBER(Y189),2,IF(A190="",IF(OR(AH189>0,VLOOKUP(O189,EventConfig!A:C,3,FALSE)=4),3,""),1))) -> 1 | AG189: 1001406 | AI189: 5210
A190: =O190*100+P190 -> 1001406 | B190: 5203 | C190: 访贤许由 | D190: 5204 | E190: 听一听这位尧帝口中的贤士有何说法 | J190: 106 | K190: =IF(J190="","",VLOOKUP(J190,EventNPC!A:E,5,FALSE)) -> 许由 | L190: 5211 | M190: （静默片刻）昔日帝尧就提过此事，我已辞之。 | O190: 10014 | P190: 6 | T190: =IF(R190="","","-"&VLOOKUP(R190,EventConditionConfig!A:C,3,FALSE)&IF(S190="","",CHAR(10)&"-"&VLOOKUP(S190,EventConditionConfig!A:C,3,FALSE))) ->  | AF190: =IF(A190="","",IF(ISNUMBER(Y190),2,IF(A191="",IF(OR(AH190>0,VLOOKUP(O190,EventConfig!A:C,3,FALSE)=4),3,""),1))) -> 1 | AG190: 1001407 | AI190: 5211
A191: =O191*100+P191 -> 1001407 | B191: 5203 | C191: 访贤许由 | D191: 5204 | E191: 听一听这位尧帝口中的贤士有何说法 | J191: 106 | K191: =IF(J191="","",VLOOKUP(J191,EventNPC!A:E,5,FALSE)) -> 许由 | L191: 5212 | M191: 今日又来，想是道心不定，执念未除。 | O191: 10014 | P191: 7 | T191: =IF(R191="","","-"&VLOOKUP(R191,EventConditionConfig!A:C,3,FALSE)&IF(S191="","",CHAR(10)&"-"&VLOOKUP(S191,EventConditionConfig!A:C,3,FALSE))) ->  | U191: 1 | V191: =A192 -> 1001408 | W191: 5213 | X191: 5213 | Y191: 请前辈出山。 | AF191: =IF(A191="","",IF(ISNUMBER(Y191),2,IF(A192="",IF(OR(AH191>0,VLOOKUP(O191,EventConfig!A:C,3,FALSE)=4),3,""),1))) -> 1 | AG191: 1001408 | AI191: 5213
A192: 1001408 | B192: 5203 | C192: 访贤许由 | D192: 5204 | E192: 听一听这位尧帝口中的贤士有何说法 | J192: 106 | K192: =IF(J192="","",VLOOKUP(J192,EventNPC!A:E,5,FALSE)) -> 许由 | L192: 5214 | M192: 哼，让我去？ | O192: 10014 | P192: 8 | T192: =IF(R192="","","-"&VLOOKUP(R192,EventConditionConfig!A:C,3,FALSE)&IF(S192="","",CHAR(10)&"-"&VLOOKUP(S192,EventConditionConfig!A:C,3,FALSE))) ->  | AF192: =IF(A192="","",IF(ISNUMBER(Y192),2,IF(A193="",IF(OR(AH192>0,VLOOKUP(O192,EventConfig!A:C,3,FALSE)=4),3,""),1))) -> 1 | AG192: 1001409 | AI192: 5214
A193: =O193*100+P193 -> 1001409 | B193: 5203 | C193: 访贤许由 | D193: 5204 | E193: 听一听这位尧帝口中的贤士有何说法 | J193: 106 | K193: =IF(J193="","",VLOOKUP(J193,EventNPC!A:E,5,FALSE)) -> 许由 | L193: 5215 | M193: 那我问你，日月升天，照耀四方。若这时有人手举火把照路，岂不徒劳？ | O193: 10014 | P193: 9 | T193: =IF(R193="","","-"&VLOOKUP(R193,EventConditionConfig!A:C,3,FALSE)&IF(S193="","",CHAR(10)&"-"&VLOOKUP(S193,EventConditionConfig!A:C,3,FALSE))) ->  | AF193: =IF(A193="","",IF(ISNUMBER(Y193),2,IF(A194="",IF(OR(AH193>0,VLOOKUP(O193,EventConfig!A:C,3,FALSE)=4),3,""),1))) -> 1 | AG193: 1001410 | AI193: 5215
A194: =O194*100+P194 -> 1001410 | B194: 5203 | C194: 访贤许由 | D194: 5204 | E194: 听一听这位尧帝口中的贤士有何说法 | J194: 106 | K194: =IF(J194="","",VLOOKUP(J194,EventNPC!A:E,5,FALSE)) -> 许由 | L194: 5216 | M194: 那我再问你，斜风细雨，滋养万物。若这时有人用水桶来灌溉，岂不可笑？ | O194: 10014 | P194: 10 | T194: =IF(R194="","","-"&VLOOKUP(R194,EventConditionConfig!A:C,3,FALSE)&IF(S194="","",CHAR(10)&"-"&VLOOKUP(S194,EventConditionConfig!A:C,3,FALSE))) ->  | AF194: =IF(A194="","",IF(ISNUMBER(Y194),2,IF(A195="",IF(OR(AH194>0,VLOOKUP(O194,EventConfig!A:C,3,FALSE)=4),3,""),1))) -> 1 | AG194: 1001411 | AI194: 5216
A195: =O195*100+P195 -> 1001411 | B195: 5203 | C195: 访贤许由 | D195: 5204 | E195: 听一听这位尧帝口中的贤士有何说法 | J195: 106 | K195: =IF(J195="","",VLOOKUP(J195,EventNPC!A:E,5,FALSE)) -> 许由 | L195: 5217 | M195: 天下在尧的带领下，已经治理得很好了，又何必要我，我是要去混个功成名就吗？ | O195: 10014 | P195: 11 | T195: =IF(R195="","","-"&VLOOKUP(R195,EventConditionConfig!A:C,3,FALSE)&IF(S195="","",CHAR(10)&"-"&VLOOKUP(S195,EventConditionConfig!A:C,3,FALSE))) ->  | AF195: =IF(A195="","",IF(ISNUMBER(Y195),2,IF(A196="",IF(OR(AH195>0,VLOOKUP(O195,EventConfig!A:C,3,FALSE)=4),3,""),1))) -> 1 | AG195: 1001412 | AI195: 5217
A196: =O196*100+P196 -> 1001412 | B196: 5203 | C196: 访贤许由 | D196: 5204 | E196: 听一听这位尧帝口中的贤士有何说法 | J196: 106 | K196: =IF(J196="","",VLOOKUP(J196,EventNPC!A:E,5,FALSE)) -> 许由 | L196: 5218 | M196: 回答我？ | O196: 10014 | P196: 12 | T196: =IF(R196="","","-"&VLOOKUP(R196,EventConditionConfig!A:C,3,FALSE)&IF(S196="","",CHAR(10)&"-"&VLOOKUP(S196,EventConditionConfig!A:C,3,FALSE))) ->  | U196: 1 | V196: =A197 -> 1001413 | W196: 5219 | X196: 5219 | Y196: 就算只得功成名就也不错。 | AF196: =IF(A196="","",IF(ISNUMBER(Y196),2,IF(A197="",IF(OR(AH196>0,VLOOKUP(O196,EventConfig!A:C,3,FALSE)=4),3,""),1))) -> 1 | AG196: 1001413 | AI196: 5219
A197: 1001413 | B197: 5203 | C197: 访贤许由 | D197: 5204 | E197: 听一听这位尧帝口中的贤士有何说法 | J197: 106 | K197: =IF(J197="","",VLOOKUP(J197,EventNPC!A:E,5,FALSE)) -> 许由 | L197: 5220 | M197: 小友，名就像宾客一样，难道我们的一生是为了宾客吗？ | O197: 10014 | P197: 13 | T197: =IF(R197="","","-"&VLOOKUP(R197,EventConditionConfig!A:C,3,FALSE)&IF(S197="","",CHAR(10)&"-"&VLOOKUP(S197,EventConditionConfig!A:C,3,FALSE))) ->  | U197: 1 | V197: =A198 -> 1001414 | W197: 5221 | X197: 5221 | Y197: （愣住）...... | AF197: =IF(A197="","",IF(ISNUMBER(Y197),2,IF(A198="",IF(OR(AH197>0,VLOOKUP(O197,EventConfig!A:C,3,FALSE)=4),3,""),1))) -> 1 | AG197: 1001414 | AI197: 5221
A198: =O198*100+P198 -> 1001414 | B198: =IF(C198="","",IF(C198=C197,B197,MAX(AI197,AI196)+1)) -> 5203 | C198: 访贤许由 | D198: =IF(E198="","",IF(E198=E197,D197,MAX(AI197,AI196,B198)+1)) -> 5204 | E198: 听一听这位尧帝口中的贤士有何说法 | J198: 106 | K198: =IF(J198="","",VLOOKUP(J198,EventNPC!A:E,5,FALSE)) -> 许由 | L198: =IF(M198="","",MAX(AI197,AI196,B198,D198)+1) -> 5222 | M198: 他若真想修道，便该知“道不碍政，心自碍道”。 | O198: 10014 | P198: =IF(O198="","",IF(O198=O197,P197+1,1)) -> 14 | T198: =IF(R198="","","-"&VLOOKUP(R198,EventConditionConfig!A:C,3,FALSE)&IF(S198="","",CHAR(10)&"-"&VLOOKUP(S198,EventConditionConfig!A:C,3,FALSE))) ->  | X198: =IF(OR(ISNUMBER(Y198),Y198=""),"",MAX(AI197,AI196,B198,D198,L198)+1) ->  | AA198: =IF(OR(ISNUMBER(AB198),AB198=""),"",X198+1) ->  | AF198: =IF(A198="","",IF(ISNUMBER(Y198),2,IF(A199="",IF(OR(AH198>0,VLOOKUP(O198,EventConfig!A:C,3,FALSE)=4),3,""),1))) -> 1 | AG198: 1001415 | AI198: =IF(A198="","",MAX(B198,D198,L198,X198,AA198,AI197,AI196)) -> 5222
A199: 1001415 | B199: 5203 | C199: 访贤许由 | D199: 5204 | E199: 听一听这位尧帝口中的贤士有何说法 | J199: 106 | K199: =IF(J199="","",VLOOKUP(J199,EventNPC!A:E,5,FALSE)) -> 许由 | L199: 5223 | M199: 若心不净，纵避千山万水，又有何用。 | O199: 10014 | P199: 15 | T199: =IF(R199="","","-"&VLOOKUP(R199,EventConditionConfig!A:C,3,FALSE)&IF(S199="","",CHAR(10)&"-"&VLOOKUP(S199,EventConditionConfig!A:C,3,FALSE))) ->  | U199: 1 | V199: =A200 -> 1001416 | W199: =_xlfn.TEXTJOIN(";",1,X199,AA199) -> 5224 | X199: 5224 | Y199: （愣住）...... | AF199: =IF(A199="","",IF(ISNUMBER(Y199),2,IF(A200="",IF(OR(AH199>0,VLOOKUP(O199,EventConfig!A:C,3,FALSE)=4),3,""),1))) -> 1 | AG199: 1001416 | AI199: 5224
A200: 1001416 | B200: 5203 | C200: 访贤许由 | D200: 5204 | E200: 听一听这位尧帝口中的贤士有何说法 | K200: =IF(J200="","",VLOOKUP(J200,EventNPC!A:E,5,FALSE)) ->  | O200: 10014 | P200: 16 | Q200: 21 | R200: 21 | T200: =IF(R200="","","-"&VLOOKUP(R200,EventConditionConfig!A:C,3,FALSE)&IF(S200="","",CHAR(10)&"-"&VLOOKUP(S200,EventConditionConfig!A:C,3,FALSE))) -> -达到境界：筑基-中期 | W200: =_xlfn.TEXTJOIN(";",1,X200,AA200) ->  | AF200: =IF(A200="","",IF(ISNUMBER(Y200),2,IF(A201="",IF(OR(AH200>0,VLOOKUP(O200,EventConfig!A:C,3,FALSE)=4),3,""),1))) -> 3 | AG200: 10015 | AI200: 5224
T201: =IF(R201="","","-"&VLOOKUP(R201,EventConditionConfig!A:C,3,FALSE)&IF(S201="","",CHAR(10)&"-"&VLOOKUP(S201,EventConditionConfig!A:C,3,FALSE))) ->  | AF201: =IF(A201="","",IF(ISNUMBER(Y201),2,IF(A202="",IF(OR(AH201>0,VLOOKUP(O201,EventConfig!A:C,3,FALSE)=4),3,""),1))) -> 
A202: =O202*100+P202 -> 1001501 | B202: 5225 | C202: 割草喝茶 | J202: 106 | K202: =IF(J202="","",VLOOKUP(J202,EventNPC!A:E,5,FALSE)) -> 许由 | L202: 5226 | M202: （转身望向屋后的山坡）你来得也巧，我正想在开辟一块新药田。 | O202: 10015 | P202: 1 | T202: =IF(R202="","","-"&VLOOKUP(R202,EventConditionConfig!A:C,3,FALSE)&IF(S202="","",CHAR(10)&"-"&VLOOKUP(S202,EventConditionConfig!A:C,3,FALSE))) ->  | W202: =_xlfn.TEXTJOIN(";",1,X202,AA202) ->  | AF202: =IF(A202="","",IF(ISNUMBER(Y202),2,IF(A203="",IF(OR(AH202>0,VLOOKUP(O202,EventConfig!A:C,3,FALSE)=4),3,""),1))) -> 1 | AG202: 1001502 | AI202: 5226
A203: =O203*100+P203 -> 1001502 | B203: 5225 | C203: 割草喝茶 | J203: 106 | K203: =IF(J203="","",VLOOKUP(J203,EventNPC!A:E,5,FALSE)) -> 许由 | L203: 5227 | M203: 后山有一块不错的地，离家有一点远平时我也懒得去打理，正好你来了帮我开辟出来吧。 | O203: 10015 | P203: 2 | T203: =IF(R203="","","-"&VLOOKUP(R203,EventConditionConfig!A:C,3,FALSE)&IF(S203="","",CHAR(10)&"-"&VLOOKUP(S203,EventConditionConfig!A:C,3,FALSE))) ->  | U203: 1 | V203: =A204 -> 1001503 | W203: 5228 | X203: 5228 | Y203: ……前辈是让我干农活吗 | AF203: =IF(A203="","",IF(ISNUMBER(Y203),2,IF(A204="",IF(OR(AH203>0,VLOOKUP(O203,EventConfig!A:C,3,FALSE)=4),3,""),1))) -> 1 | AG203: 1001503 | AI203: 5228
... 640 more rows

Sheet EventConditionConfig
A1: ID | B1: message | E1: Operation | G1: ConditionType | H1: ConditionPara | I1: finishCount | J1: RelatedEvents | L1: SkiptoIds
A2: int | B2: int | E2: int | G2: int | H2: int[] | I2: int | J2: int[] | L2: int[]
A4: ID | B4: 描述 | E4: 与0 或1 | G4: 条件判断类型 | H4: 条件判断值 | I4: 条件完成次数or数量 | J4: 关联的事件Id | K4: 提示 | L4: 跳转Id
A5: 1 | B5: 9001 | C5: 拥有金币 | D5: =CONCATENATE("- ",C5,"{0}/{1}") -> - 拥有金币{0}/{1} | G5: 1 | H5: 1001 | I5: 10 | L5: 1;2;3;4
A6: 2 | B6: 9002 | C6: =CONCATENATE("达到境界：",M6,"-",N6) -> 达到境界：练气-中期 | D6: =CONCATENATE("- ",C6,"{0}/{1}") -> - 达到境界：练气-中期{0}/{1} | G6: 3 | H6: 11 | I6: 1 | L6: 1;2;3;4 | M6: 练气 | N6: 中期 | O6: 11 | P6: =CONCATENATE(M6,"-",N6) -> 练气-中期
A7: 3 | B7: 9003 | C7: 击杀魔休 | D7: - 击杀魔休{0}/{1} | G7: 5 | H7: 1001 | I7: 5 | J7: 9031 | L7: 1;2;3;4
A8: 4 | B8: 9004 | C8: 获得钻石 | D8: - 获得钻石{0}/{1} | G8: 6 | H8: 1002 | I8: 10 | L8: 1;2;3;4
A9: 5 | B9: 9005 | C9: 使用神识 | D9: - 使用神识{0}/{1} | G9: 8 | I9: 1 | L9: 1;2;3;4
A10: 6 | B10: 9006 | C10: 继续飞行一段时间 | D10: - 继续飞行一段时间{0}/{1} | G10: 9 | I10: 6 | L10: 1;2;3;4
A11: 7 | B11: 9007 | C11: 击败结界兽 | D11: - 击败结界兽{0}/{1} | G11: 5 | H11: 1002 | I11: 1 | L11: 1;2;3;4
A12: 8 | B12: 9008 | C12: =CONCATENATE("达到境界：",M12,"-",N12) -> 达到境界：练气-后期 | D12: - 达到境界：练气-后期{0}/{1} | G12: 3 | H12: 21 | I12: 1 | L12: 1;2;3;4 | M12: 练气 | N12: 后期 | O12: 21 | P12: =CONCATENATE(M12,"-",N12) -> 练气-后期
A13: 9 | B13: 9009 | C13: 击杀北海小妖 | D13: - 击杀北海小妖{0}/{1} | G13: 5 | H13: 1003 | I13: 3 | J13: 30003 | L13: 1;2;3;4
A14: 10 | B14: 9010 | C14: 击败后山小妖 | D14: - 击败后山小妖{0}/{1} | G14: 5 | H14: 1004 | I14: 3 | J14: 30004 | L14: 1;2;3;4
A15: 11 | B15: 9011 | C15: 收集灵草种子 | D15: - 收集灵草种子{0}/{1} | G15: 6 | H15: 20003 | I15: 3 | J15: 30011 | L15: 1;2;3;4
A16: 12 | B16: 9012 | C16: 击败夜袭的妖兽 | D16: - 击败夜袭的妖兽{0}/{1} | G16: 5 | H16: 1005 | I16: 1 | J16: 30005 | L16: 1;2;3;4
A17: 13 | B17: 9013 | C17: 击败峰顶的妖王 | D17: - 击败峰顶的妖王{0}/{1} | G17: 5 | H17: 1006 | I17: 1 | J17: 30006 | L17: 1;2;3;4
A18: 14 | B18: 9014 | C18: =CONCATENATE("达到境界：",M18,"-",N18) -> 达到境界：筑基-前期 | D18: - 达到境界：筑基-前期{0}/{1} | G18: 3 | H18: 31 | I18: 1 | L18: 1;2;3;4 | M18: 筑基 | N18: 前期 | O18: 31 | P18: =CONCATENATE(M18,"-",N18) -> 筑基-前期
A19: 15 | B19: 9015 | C19: 击败仙山的阵眼妖兽 | D19: - 击败仙山的阵眼妖兽{0}/{1} | G19: 5 | H19: 1007 | I19: 1 | J19: 30007 | L19: 1;2;3;4
A20: 17 | B20: 9016 | C20: 击杀灵兽获得天肥 | D20: =CONCATENATE("- ",C20,"{0}/{1}") -> - 击杀灵兽获得天肥{0}/{1} | G20: 5 | H20: 1008 | I20: 1 | J20: 30008 | L20: 1;2;3;4
A21: 18 | B21: 9017 | C21: 获得一件袈裟 | D21: - 获得一件袈裟{0}/{1} | G21: 6 | H21: 1301 | I21: 1 | J21: 30009 | L21: 1;2;3;4
A22: 19 | B22: 9018 | C22: 夺回琉璃盏 | D22: - 夺回琉璃盏{0}/{1} | G22: 6 | H22: 1001 | I22: 1 | J22: 30010 | L22: 1;2;3;4
A23: 20 | B23: 9019 | C23: 给予渡劫丹 | D23: - 给予渡劫丹{0}/{1} | G23: 1 | H23: 1001 | I23: 1 | L23: 1;2;3;4
A24: 21 | B24: 9020 | C24: =CONCATENATE("达到境界：",M24,"-",N24) -> 达到境界：筑基-中期 | D24: - 达到境界：筑基-中期{0}/{1} | G24: 3 | H24: 41 | I24: 1 | L24: 1;2;3;4 | M24: 筑基 | N24: 中期 | O24: 41 | P24: =CONCATENATE(M24,"-",N24) -> 筑基-中期
A25: 22 | B25: 9021 | C25: =CONCATENATE("达到境界：",M25,"-",N25) -> 达到境界：筑基-后期 | D25: =CONCATENATE("- ",C25,"{0}/{1}") -> - 达到境界：筑基-后期{0}/{1} | G25: 3 | H25: 51 | I25: 1 | L25: 1;2;3;4 | M25: 筑基 | N25: 后期 | O25: 51 | P25: =CONCATENATE(M25,"-",N25) -> 筑基-后期
A26: 23 | B26: 9022 | C26: 达到境界：结丹-前期 | D26: =CONCATENATE("- ",C26,"{0}/{1}") -> - 达到境界：结丹-前期{0}/{1} | G26: 3 | H26: 61 | I26: 1 | L26: 1;2;3;4 | M26: 结丹 | N26: 前期 | O26: 61 | P26: 结丹-前期
A27: 24 | B27: 9023 | C27: 达到境界：结丹-中期 | D27: - 达到境界：结丹-中期{0}/{1} | G27: 3 | H27: 71 | I27: 1 | L27: 1;2;3;4 | M27: 结丹 | N27: 中期 | O27: 71 | P27: 结丹-中期
A28: 25 | B28: 9024 | C28: 达到境界：结丹-后期 | D28: - 达到境界：结丹-后期{0}/{1} | G28: 3 | H28: 81 | I28: 1 | L28: 1;2;3;4 | M28: 结丹 | N28: 后期 | O28: 81 | P28: 结丹-后期
A29: 26 | B29: 9025 | C29: 达到境界：元婴-前期 | D29: =CONCATENATE("- ",C29,"{0}/{1}") -> - 达到境界：元婴-前期{0}/{1} | G29: 3 | H29: 91 | I29: 1 | L29: 1;2;3;4 | M29: 元婴 | N29: 前期 | O29: 91 | P29: 元婴-前期
A30: 27 | B30: 9026 | C30: 收集并饮用甘露 | D30: =CONCATENATE("- ",C30,"{0}/{1}") -> - 收集并饮用甘露{0}/{1} | G30: 6 | H30: 20004 | I30: 3 | L30: 1;2;3;4
A31: 28 | B31: 9027 | C31: 击败心魔 | D31: =CONCATENATE("- ",C31,"{0}/{1}") -> - 击败心魔{0}/{1} | G31: 5 | H31: 1013 | I31: 1 | L31: 1;2;3;4
A32: 29 | B32: 9028 | C32: 击败北海妖兽 | D32: =CONCATENATE("- ",C32,"{0}/{1}") -> - 击败北海妖兽{0}/{1} | G32: 5 | H32: 1014 | I32: 5 | L32: 1;2;3;4
A33: 30 | B33: 9029 | C33: =CONCATENATE("达到境界：",M33,"-",N33) -> 达到境界：元婴-中期 | D33: - 达到境界：元婴-中期{0}/{1} | G33: 3 | H33: 101 | I33: 1 | L33: 1;2;3;4 | M33: 元婴 | N33: 中期 | O33: 101 | P33: =CONCATENATE(M33,"-",N33) -> 元婴-中期
A34: 31 | B34: 9030 | C34: =CONCATENATE("达到境界：",M34,"-",N34) -> 达到境界：元婴-后期 | D34: - 达到境界：元婴-后期{0}/{1} | G34: 3 | H34: 111 | I34: 1 | L34: 1;2;3;4 | M34: 元婴 | N34: 后期 | O34: 111 | P34: =CONCATENATE(M34,"-",N34) -> 元婴-后期
A35: 32 | B35: 9031 | C35: 达到境界：化神-前期 | D35: - 达到境界：化神-前期{0}/{1} | G35: 3 | H35: 121 | I35: 1 | L35: 1;2;3;4 | M35: 化神 | N35: 前期 | O35: 121 | P35: 化神-前期
A36: 33 | B36: 9032 | C36: 达到境界：化神-中期 | D36: =CONCATENATE("- ",C36,"{0}/{1}") -> - 达到境界：化神-中期{0}/{1} | G36: 3 | H36: 131 | I36: 1 | L36: 1;2;3;4 | M36: 化神 | N36: 中期 | O36: 131 | P36: 化神-中期
A37: 34 | B37: 9033 | C37: 达到境界：化神-后期 | D37: - 达到境界：化神-后期{0}/{1} | G37: 3 | H37: 141 | I37: 1 | L37: 1;2;3;4 | M37: 化神 | N37: 后期 | O37: 141 | P37: 化神-后期
A38: 35 | B38: 9034 | C38: 达到境界：炼虚-前期 | D38: - 达到境界：炼虚-前期{0}/{1} | G38: 3 | H38: 151 | I38: 1 | L38: 1;2;3;4 | M38: 炼虚 | N38: 前期 | O38: 151 | P38: 炼虚-前期
A39: 36 | B39: 9035 | C39: 击杀北海妖兽精英 | D39: - 击杀北海妖兽精英{0}/{1} | G39: 5 | H39: 1003 | I39: 1 | L39: 1;2;3;4
A40: 37 | B40: 9036 | C40: 帮雀灵儿搜集风铃 | D40: - 帮雀灵儿搜集风铃{0}/{1} | G40: 1 | H40: 20005 | I40: 3 | L40: 1;2;3;4
A41: =A40+1 -> 38 | B41: =B40+1 -> 9037 | C41: 击败风妖 | D41: =CONCATENATE("- ",C41,"{0}/{1}") -> - 击败风妖{0}/{1} | G41: 5 | H41: 3003 | I41: 3 | J41: 30014 | L41: 1;2;3;4
A42: 39 | B42: 9038 | C42: 收集风灵碎片 | D42: =CONCATENATE("- ",C42,"{0}/{1}") -> - 收集风灵碎片{0}/{1} | G42: 1 | H42: 20006 | I42: 3 | J42: 30015 | L42: 1;2;3;4
A43: 40 | B43: 9039 | C43: 完成神识探索-云隐秘闻 | D43: =CONCATENATE("- ",C43,"{0}/{1}") -> - 完成神识探索-云隐秘闻{0}/{1} | G43: 10 | H43: 30016 | I43: 1 | J43: 30016 | L43: 1;2;3;4
A44: 41 | B44: 9040 | C44: 完成神识探索-误食灵石的妖兽 | D44: =CONCATENATE("- ",C44,"{0}/{1}") -> - 完成神识探索-误食灵石的妖兽{0}/{1} | G44: 10 | H44: 30017 | I44: 3 | J44: 30017 | L44: 1;2;3;4
A45: 42 | B45: 9041 | C45: 完成神识探索-云隐宗长老密信 | D45: =CONCATENATE("- ",C45,"{0}/{1}") -> - 完成神识探索-云隐宗长老密信{0}/{1} | G45: 10 | H45: 30018 | I45: 1 | J45: 30018 | L45: 1;2;3;4
A46: 43 | B46: 9042 | C46: 完成神识探索-抢走玉佩的山林小妖 | D46: =CONCATENATE("- ",C46,"{0}/{1}") -> - 完成神识探索-抢走玉佩的山林小妖{0}/{1} | G46: 10 | H46: 30019 | I46: 2 | J46: 30019 | L46: 1;2;3;4
A47: 44 | B47: 9043 | C47: 完成神识探索-山野采草 | D47: =CONCATENATE("- ",C47,"{0}/{1}") -> - 完成神识探索-山野采草{0}/{1} | G47: 10 | H47: 30020 | I47: 3 | J47: 30020 | L47: 1;2;3;4
A48: 45 | B48: 9044 | C48: 完成神识探索-秘境种子 | D48: =CONCATENATE("- ",C48,"{0}/{1}") -> - 完成神识探索-秘境种子{0}/{1} | G48: 10 | H48: 30021 | I48: 2 | J48: 30021 | L48: 1;2;3;4
A49: 46 | B49: 9045 | C49: 完成神识探索-甜蜜果实 | D49: =CONCATENATE("- ",C49,"{0}/{1}") -> - 完成神识探索-甜蜜果实{0}/{1} | G49: 10 | H49: 30022 | I49: 3 | J49: 30022 | L49: 1;2;3;4

Sheet 条件类型查询
A1: ID | B1: 条件判断类型 | C1: 条件判断值 | D1: 条件完成次数or数量 | E1: 额外文本 | F1: 不可用 | G1: 是否可用于事件 | K1: 事件类型：
A2: 1 | B2: 拥有特定道具 | C2: 道具ID | D2: 数量≥ | E2: 检测背包道具 | G2: 1 | J2: 1 | K2: 1.通用事件
A3: 2 | B3: 灵根判定 | C3: 哪个灵根 | D3: 灵根值≥ | F3: 1 | J3: 2 | K3: 2.挂机事件
A4: 3 | B4: 境界判断 | C4: 境界id | G4: 1 | J4: 4 | K4: 4.主线任务
A5: 5 | B5: 战斗胜利 | C5: 战斗组ID | D5: 胜利次数≥ | J5: 5 | K5: 5.仙山探险
A6: 6 | B6: 获得道具 | C6: 道具的ID | D6: 数量≥ | E6: 探测出事件才开始检测 | J6: 6 | K6: 6.支线事件
A7: 7 | B7: 触发概率 | C7: 概率值 1000=100% | G7: 1 | J7: 88 | K7: 88.特定任务触发的事件
A8: 8 | B8: 使用神识 | D8: 数量≥ | J8: 99 | K8: 99.无标记
A9: 9 | B9: 游戏在线多少时长（秒） | D9: 时间≥（秒） | G9: 1 | J9: 7 | K9: 道友剧情任务
A10: 10 | B10: 前置事件 | C10: 事件ID | G10: 1

Sheet 产出tag查询
A1: 产出TAG | B1: 产出类型
A2: 1 | B2: 金币
A3: 2 | B3: 修为
A4: 3 | B4: 功法灵气
A5: 4 | B5: 法宝灵韵
A6: 5 | B6: 功法碎片
A7: 6 | B7: 法宝碎片
A8: 7 | B8: 修为丹
A9: 8 | B9: 天材地宝
A10: 9 | B10: 渡劫丹
A11: 10 | B11: 好感度礼物
A12: 11 | B12: 心情礼物
A13: 12
A14: 13
A15: 14
A16: 15
A17: 16
A18: 17
A19: 18
A20: 19
A21: 20
A22: 21
A23: 22

Sheet EventNPC
A1: ID | B1: name | C1: ID | D1: DaoyouID
A2: int | B2: int | C2: int | D2: int
A4: ID | B4: 名字 | C4: 半身像icon | D4: 道友ID | E4: 名称
A5: 1 | B5: 3000 | E5: 玩家
A6: 2 | B6: 1953 | D6: 1 | E6: 雀灵儿
A7: 3 | B7: 1954 | D7: 2 | E7: 云枝
A8: 4 | B8: 1955 | D8: 3 | E8: 风瑶
A9: 5 | B9: 1956 | D9: 4 | E9: 婉溪
A10: 6 | B10: 1957 | D10: 5 | E10: 许由
A11: 7 | B11: 1958 | D11: 6 | E11: 疯道人
A12: 8 | B12: 1959 | D12: 7 | E12: 道友7
A13: 9 | B13: 1960 | D13: 8 | E13: 道友8
A14: 10 | B14: 1961 | D14: 9 | E14: 道友9
A15: 11 | B15: 1962 | D15: 10 | E15: 道友10
A17: 100 | B17: 3000 | E17: 玩家
A18: 101 | B18: 3001 | E18: 蜩鸟
A19: 102 | B19: 3002 | E19: 小麻雀
A20: 103 | B20: 3003 | E20: 疯道人
A21: 104 | B21: 3004 | E21: 痴道人
A22: 105 | B22: 3005 | E22: 尧帝
A23: 106 | B23: 3006 | E23: 许由
A24: 107 | B24: 3007 | E24: 村名甲
A25: 108 | B25: 3008 | E25: 村名乙
A26: 109 | B26: 3009 | E26: 村名丙
A27: 110 | B27: 3010 | E27: 樗木之灵
A28: 111 | B28: 2078 | E28: 惠子
A29: 112 | B29: 3021 | E29: 风无咎
A30: 113 | B30: 3034 | E30: 北海剑妖
A31: 114 | B31: 3067 | E31: 拦路妖兽
A32: 115 | B32: 2091 | E32: 小麻雀幻影
A33: 116 | B33: 2092 | E33: 痴道人幻影
A34: 117 | B34: 2093 | E34: 樗木之灵幻影
A35: 118 | B35: 2094 | E35: 神人
A36: 119 | B36: 2095 | E36: 鲲鹏
A37: 120 | B37: 2096 | E37: 妖兽
A38: 121 | B38: 2097 | E38: 云枝
A39: 122 | B39: 2098 | E39: 风瑶
A40: 123 | B40: 2099 | E40: 散修甲
A41: 124 | B41: 2100 | E41: 散修乙
A42: 125 | B42: 2101 | E42: 散修丙

Sheet XianTuLogConfig
A1: ID | B1: EventType | C1: Title | D1: Desc | E1: BigMapID
A2: int | B2: int | C2: int | D2: int | E2: int
A4: ID | B4: 1主线 2事件 | C4: 名称 | D4: 描述 | E4: 属于哪个章节
A5: 1 | B5: 1 | C5: 2087 | D5: 2089 | E5: 1 | F5: 第一章.逍遥游 | G5: 多次渡劫失败的你，误入“无何有之乡”，在这里受到了列子的指引，踏上了寻找七道心境的修仙之路。
A6: 2 | B6: 2 | C6: 2088 | D6: 2090 | E6: 1 | F6: 无用的大葫芦 | G6: 惠子种出了巨大葫芦，他觉得毫无用处，非常生气！
A7: 3 | B7: 2 | C7: 2088 | D7: 2090 | E7: 2 | F7: 无用的大葫芦 | G7: 惠子种出了巨大葫芦，他觉得毫无用处，非常生气！
A8: 4 | B8: 2 | C8: 2088 | D8: 2090 | E8: 3 | F8: 无用的大葫芦 | G8: 惠子种出了巨大葫芦，他觉得毫无用处，非常生气！
